{"text_format":"3","workbook":"xlsx","n_sheets":8,"sheets":["Infos","Anforderungsliste","Dropdown Quelle","Prüfer","Anforderung Antragsteller","Prüfer-Hinweis","Prüfung Priorität","ALT 1.Prüfung"],"not_rendered":{"images":2,"defined_names":9},"read":"whole","date_system":"1900"}

{"sheet":"Infos","index":0,"n_rows":18,"n_cols":7,"rows_kept":18,"merged":[[10,1,10,7]]}
{"$rows_empty":8}
[null,"Informationen zur Anforderungsliste:"]
[]
[null,"Die Anforderungsliste dient als Checkliste für EHPA-Gütesiegel Antragsteller und beinhaltet alle Dokumente und Informationen, welche für ein EHPA-Gütesiegel notwendig sind. Die Anforderungsliste ist verpflichtend auszufüllen und im Antrag hochzuladen.\n\nFühren Sie die Schritte 1 bis 3 durch und tragen Sie in jedem Feld dementsprecheds ein.\n\nEine aktuelle Version dieses Dokumentes finden Sie unter:\nwww.waermepumpe-austria.at/dienste/guetesiegel/dokumente-und-links"]
[]
[null,"Änderungshistorie:"]
[]
[null,"Dokumenten-Version","Version EHPA Regularium","Datum","Beschreibung","Art","Zeile"]
[null,"V13.4","V2.2",null,"*Beginn der Änderungshistorie ab 07.02.2025*"]
[null,"V13.5","V2.2","2025-02-07","Kommastellen bei SCOP Werten ergänzt","Verbesserung der Lesbarkeit","12, 13"]
[null,"V13.6","V2.3","2026-05-15","SCOP Grenzwerte angepasst, Schallangaben bei A2 verpflichtend","Änderung der EHPA Regularien","11, 12, 50"]

{"sheet":"Anforderungsliste","index":1,"n_rows":52,"n_cols":15,"rows_kept":52,"merged":[[0,1,0,5],[2,12,2,14],[3,0,3,1],[3,5,3,6],[4,5,4,6]]}
[null,"Anforderungsliste  für die EHPA-Gütesiegel-Beantragung"]
[null,"1. Antragsform wählen:",null,"*Bitte aus Liste wählen*",null,"3. Felder ausfüllen:"]
[null,"2. Wärmepumpen-Typ wählen:",null,"*Bitte aus Liste wählen*",null,"Grunddaten (verpflichtend)",null,null,"Modelle (verpflichtend)",{"$nulls":3},"Kommentare (optional)"]
[{"$nulls":5},"*Firmenname*",null,null,"*Modell 1*","*Modell 2*","weiter Spalten einfügen für mehr Modelle",null,"*Name*","*Name*","*Name*"]
[null,"Dokument V13.6            Basis: EHPA Regularien Version 2.3 vom 01.04.2026",null,"Anforderung für die gewählte Antragsform",null,"*Serienname*",{"$nulls":6},"*Datum*","*Datum*","*Datum*"]
[1,"Grundlegendes",null,"-",null,"Dokumentenname","Seite",null,"ok … eingereicht\nx … nicht eingereicht / -korrekt\n- … nicht notwendig"]
[null,"akkreditierte Prüfberichte nach EN 12102-1 und -2, EN 14511-2 bis 4 und EN 14825, bzw. EN 16147 bei Trinkwasser\nAnzahl hängt vom Umfang der Modelreihe ab",null,"-",null,"-","-",null,"-","-","-",null,"-","-","-"]
[null,"- Unterschriebener detaillierter akkreditierter Leistungs-Prüfbericht nach EHPA Regularien oder HP-Keymark Regularien UND",null,{"$f":"IF(OR(Antragsform=\"\",$D$3=\"\",Antr=\"*Bitte aus Liste wählen*\",$D$3=\"*Bitte aus Liste wählen*\"),\"Bitte Antragsform und Wärmepumpen-Typ auswählen\",HLOOKUP($D$2&\" \"&$D$3,'Anforderung Antragsteller'!$C$5:$AK$51,ROW()-5,))","v":"Bitte Antragsform und Wärmepumpen-Typ auswählen"},null,"*Dokumentenname*","-"]
[null,"- Unterschriebener detaillierter akkreditierter Schall-Prüfbericht  nach EHPA Regularien oder HP-Keymark Regularien UND",null,{"$f":"IF(OR(Antragsform=\"\",$D$3=\"\",Antr=\"*Bitte aus Liste wählen*\",$D$3=\"*Bitte aus Liste wählen*\"),\"Bitte Antragsform und Wärmepumpen-Typ auswählen\",HLOOKUP($D$2&\" \"&$D$3,'Anforderung Antragsteller'!$C$5:$AK$51,ROW()-5,))","v":"Bitte Antragsform und Wärmepumpen-Typ auswählen"},null,"*Dokumentenname*","-"]
[null,"SCOP Anforderungen für Heizungs-Wärmepumpen",null,"-",null,"-","-",null,"-","-","-",null,"-","-","-"]
[null,"- Niedertemperaturanwendung (35°C) und durchschnittliches Klima:\n       SCOP Min : 3,70 (A/W)         SCOP Min : 4,70 (B/W, W/W)\n       SCOP Min : 4,10 (DX/W)       SCOP Min : 3,40 (A/A)",null,{"$f":"IF(OR(Antragsform=\"\",$D$3=\"\",Antr=\"*Bitte aus Liste wählen*\",$D$3=\"*Bitte aus Liste wählen*\"),\"Bitte Antragsform und Wärmepumpen-Typ auswählen\",HLOOKUP($D$2&\" \"&$D$3,'Anforderung Antragsteller'!$C$5:$AK$51,ROW()-5,))","v":"Bitte Antragsform und Wärmepumpen-Typ auswählen"},null,"*Dokumentenname*","*Seite*"]
[null,"- Mitteltemperaturanwendung (55°C) und durchschnittliches Klima:\n       SCOP Min : 3,20 (A/W)       SCOP Min : 3,70 (B/W, W/W)\n       SCOP Min : 3,38 (DX/W)",null,{"$f":"IF(OR(Antragsform=\"\",$D$3=\"\",Antr=\"*Bitte aus Liste wählen*\",$D$3=\"*Bitte aus Liste wählen*\"),\"Bitte Antragsform und Wärmepumpen-Typ auswählen\",HLOOKUP($D$2&\" \"&$D$3,'Anforderung Antragsteller'!$C$5:$AK$51,ROW()-5,))","v":"Bitte Antragsform und Wärmepumpen-Typ auswählen"},null,"*Dokumentenname*","*Seite*"]
[null,"Anforderungen für Brauchwasser-Wärmepumpen",null,"-",null,"-","-",null,"-","-","-",null,"-","-","-"]
[null,"- Die Wärmpumpe muss mindestens 52°C Warmwasser erzeugen können",null,{"$f":"IF(OR(Antragsform=\"\",$D$3=\"\",Antr=\"*Bitte aus Liste wählen*\",$D$3=\"*Bitte aus Liste wählen*\"),\"Bitte Antragsform und Wärmepumpen-Typ auswählen\",HLOOKUP($D$2&\" \"&$D$3,'Anforderung Antragsteller'!$C$5:$AK$51,ROW()-5,))","v":"Bitte Antragsform und Wärmepumpen-Typ auswählen"},null,"*Dokumentenname*","*Seite*"]
[null,"- Minmaler \"SCOP_domestic hot water\", bzw. \"COP_domestic hot water\" wird eingehalten\nA7 ≥ 2,8 / A15 ≥ 2,9 / A20 ≥ 3,2 / B0 ≥ 2,8 / W10 ≥ 3,0",null,{"$f":"IF(OR(Antragsform=\"\",$D$3=\"\",Antr=\"*Bitte aus Liste wählen*\",$D$3=\"*Bitte aus Liste wählen*\"),\"Bitte Antragsform und Wärmepumpen-Typ auswählen\",HLOOKUP($D$2&\" \"&$D$3,'Anforderung Antragsteller'!$C$5:$AK$51,ROW()-5,))","v":"Bitte Antragsform und Wärmepumpen-Typ auswählen"},null,"*Dokumentenname*","*Seite*"]
[null,"Unterfertigte Baugleicheitsbescheinigung des Herstellers, falls die Produktbezeichnungen am Prüfbericht/HP Keymark und am EHPA Label nicht gleich sind (siehe Vorlage unter www.waermepumpe-austria.at/dienste/guetesiegel/dokumente-und-links)",null,{"$f":"IF(OR(Antragsform=\"\",$D$3=\"\",Antr=\"*Bitte aus Liste wählen*\",$D$3=\"*Bitte aus Liste wählen*\"),\"Bitte Antragsform und Wärmepumpen-Typ auswählen\",HLOOKUP($D$2&\" \"&$D$3,'Anforderung Antragsteller'!$C$5:$AK$51,ROW()-5,))","v":"Bitte Antragsform und Wärmepumpen-Typ auswählen"},null,"*Dokumentenname*","*Seite*"]
[null,"Unterfertigte CE-Konformitäts-Erklärung",null,{"$f":"IF(OR(Antragsform=\"\",$D$3=\"\",Antr=\"*Bitte aus Liste wählen*\",$D$3=\"*Bitte aus Liste wählen*\"),\"Bitte Antragsform und Wärmepumpen-Typ auswählen\",HLOOKUP($D$2&\" \"&$D$3,'Anforderung Antragsteller'!$C$5:$AK$51,ROW()-5,))","v":"Bitte Antragsform und Wärmepumpen-Typ auswählen"},null,"*Dokumentenname*","*Seite*"]
[null,"Formelle Zustimmung vom Elterngütesiegel-Halter (siehe Vorlage unter www.waermepumpe-austria.at/dienste/guetesiegel/dokumente-und-links)",null,{"$f":"IF(OR(Antragsform=\"\",$D$3=\"\",Antr=\"*Bitte aus Liste wählen*\",$D$3=\"*Bitte aus Liste wählen*\"),\"Bitte Antragsform und Wärmepumpen-Typ auswählen\",HLOOKUP($D$2&\" \"&$D$3,'Anforderung Antragsteller'!$C$5:$AK$51,ROW()-5,))","v":"Bitte Antragsform und Wärmepumpen-Typ auswählen"},null,"*Dokumentenname*","*Seite*"]
[2,"Antrag",null,"-",null,"-","-","-","-","-","-",null,"-","-","-"]
[null,"Hauptkomponenten Liste hochladen (Hersteller, Typenbezeichnung) und in der Online-Maske im Model inkl. SCOP Werte ausfüllen.",null,{"$f":"IF(OR(Antragsform=\"\",$D$3=\"\",Antr=\"*Bitte aus Liste wählen*\",$D$3=\"*Bitte aus Liste wählen*\"),\"Bitte Antragsform und Wärmepumpen-Typ auswählen\",HLOOKUP($D$2&\" \"&$D$3,'Anforderung Antragsteller'!$C$5:$AK$51,ROW()-5,))","v":"Bitte Antragsform und Wärmepumpen-Typ auswählen"},null,"Bitte tragen Sie diese Information im Online-Portal bei jedem Model ein.","-"]
[null,"Eintragen der Daten nach EN 14511, EN 14825 und EN 12102-1 in der Online-Maske bei den einzelnen Modellen ausfüllen.",null,{"$f":"IF(OR(Antragsform=\"\",$D$3=\"\",Antr=\"*Bitte aus Liste wählen*\",$D$3=\"*Bitte aus Liste wählen*\"),\"Bitte Antragsform und Wärmepumpen-Typ auswählen\",HLOOKUP($D$2&\" \"&$D$3,'Anforderung Antragsteller'!$C$5:$AK$51,ROW()-5,))","v":"Bitte Antragsform und Wärmepumpen-Typ auswählen"},null,"Bitte tragen Sie diese Information im Online-Portal bei jedem Model ein.","-"]
[3,"Kundenservice  (deutschsprachig)",null,"-",null,"-","-",null,"-","-","-",null,"-","-","-"]
[null,"Formular-Vorlage für den Inbetriebnahme- und Wartungs-Techniker",null,{"$f":"IF(OR(Antragsform=\"\",$D$3=\"\",Antr=\"*Bitte aus Liste wählen*\",$D$3=\"*Bitte aus Liste wählen*\"),\"Bitte Antragsform und Wärmepumpen-Typ auswählen\",HLOOKUP($D$2&\" \"&$D$3,'Anforderung Antragsteller'!$C$5:$AK$51,ROW()-5,))","v":"Bitte Antragsform und Wärmepumpen-Typ auswählen"},null,"*Dokumentenname*","*Seite*"]
[null,"Garantie für mindestens 2 Jahre",null,{"$f":"IF(OR(Antragsform=\"\",$D$3=\"\",Antr=\"*Bitte aus Liste wählen*\",$D$3=\"*Bitte aus Liste wählen*\"),\"Bitte Antragsform und Wärmepumpen-Typ auswählen\",HLOOKUP($D$2&\" \"&$D$3,'Anforderung Antragsteller'!$C$5:$AK$51,ROW()-5,))","v":"Bitte Antragsform und Wärmepumpen-Typ auswählen"},null,"*Dokumentenname*","*Seite*"]
[null,"Ersatzteilgarantie für mindestens 10 Jahre",null,{"$f":"IF(OR(Antragsform=\"\",$D$3=\"\",Antr=\"*Bitte aus Liste wählen*\",$D$3=\"*Bitte aus Liste wählen*\"),\"Bitte Antragsform und Wärmepumpen-Typ auswählen\",HLOOKUP($D$2&\" \"&$D$3,'Anforderung Antragsteller'!$C$5:$AK$51,ROW()-5,))","v":"Bitte Antragsform und Wärmepumpen-Typ auswählen"},null,"*Dokumentenname*","*Seite*"]
[null,"Reaktionszeit des Kundendienstes im Vertriebsgebiet innerhalb von 24\nStunden und Kontaktdaten zum Kundendienst im Vertriebsgebiet   (siehe Vorlage unter www.waermepumpe-austria.at/dienste/guetesiegel/dokumente-und-links)",null,{"$f":"IF(OR(Antragsform=\"\",$D$3=\"\",Antr=\"*Bitte aus Liste wählen*\",$D$3=\"*Bitte aus Liste wählen*\"),\"Bitte Antragsform und Wärmepumpen-Typ auswählen\",HLOOKUP($D$2&\" \"&$D$3,'Anforderung Antragsteller'!$C$5:$AK$51,ROW()-5,))","v":"Bitte Antragsform und Wärmepumpen-Typ auswählen"},null,"*Dokumentenname*","*Seite*"]
[4,"Bedienungsanleitungen  (deutschsprachig)",null,"-",null,"-","-",null,"-","-","-",null,"-","-","-"]
[null,"Informationen und Sicherheitshinweise für eine ordnungsgemäße\nNutzung",null,{"$f":"IF(OR(Antragsform=\"\",$D$3=\"\",Antr=\"*Bitte aus Liste wählen*\",$D$3=\"*Bitte aus Liste wählen*\"),\"Bitte Antragsform und Wärmepumpen-Typ auswählen\",HLOOKUP($D$2&\" \"&$D$3,'Anforderung Antragsteller'!$C$5:$AK$51,ROW()-5,))","v":"Bitte Antragsform und Wärmepumpen-Typ auswählen"},null,"*Dokumentenname*","*Seite*"]
[null,"Anleitung zur Bedienung der Wärmepumpe",null,{"$f":"IF(OR(Antragsform=\"\",$D$3=\"\",Antr=\"*Bitte aus Liste wählen*\",$D$3=\"*Bitte aus Liste wählen*\"),\"Bitte Antragsform und Wärmepumpen-Typ auswählen\",HLOOKUP($D$2&\" \"&$D$3,'Anforderung Antragsteller'!$C$5:$AK$51,ROW()-5,))","v":"Bitte Antragsform und Wärmepumpen-Typ auswählen"},null,"*Dokumentenname*","*Seite*"]
[null,"Ersatzteilliste",null,{"$f":"IF(OR(Antragsform=\"\",$D$3=\"\",Antr=\"*Bitte aus Liste wählen*\",$D$3=\"*Bitte aus Liste wählen*\"),\"Bitte Antragsform und Wärmepumpen-Typ auswählen\",HLOOKUP($D$2&\" \"&$D$3,'Anforderung Antragsteller'!$C$5:$AK$51,ROW()-5,))","v":"Bitte Antragsform und Wärmepumpen-Typ auswählen"},null,"*Dokumentenname*","*Seite*"]
[5,"Installationsanleitungen  (deutschsprachig)",null,"-",null,"-","-",null,"-","-","-",null,"-","-","-"]
[null,"Installationsanleitung",null,{"$f":"IF(OR(Antragsform=\"\",$D$3=\"\",Antr=\"*Bitte aus Liste wählen*\",$D$3=\"*Bitte aus Liste wählen*\"),\"Bitte Antragsform und Wärmepumpen-Typ auswählen\",HLOOKUP($D$2&\" \"&$D$3,'Anforderung Antragsteller'!$C$5:$AK$51,ROW()-5,))","v":"Bitte Antragsform und Wärmepumpen-Typ auswählen"},null,"*Dokumentenname*","*Seite*"]
[null,"Sicherheitshinweise",null,{"$f":"IF(OR(Antragsform=\"\",$D$3=\"\",Antr=\"*Bitte aus Liste wählen*\",$D$3=\"*Bitte aus Liste wählen*\"),\"Bitte Antragsform und Wärmepumpen-Typ auswählen\",HLOOKUP($D$2&\" \"&$D$3,'Anforderung Antragsteller'!$C$5:$AK$51,ROW()-5,))","v":"Bitte Antragsform und Wärmepumpen-Typ auswählen"},null,"*Dokumentenname*","*Seite*"]
[null,"Inbetriebnahmehinweise",null,{"$f":"IF(OR(Antragsform=\"\",$D$3=\"\",Antr=\"*Bitte aus Liste wählen*\",$D$3=\"*Bitte aus Liste wählen*\"),\"Bitte Antragsform und Wärmepumpen-Typ auswählen\",HLOOKUP($D$2&\" \"&$D$3,'Anforderung Antragsteller'!$C$5:$AK$51,ROW()-5,))","v":"Bitte Antragsform und Wärmepumpen-Typ auswählen"},null,"*Dokumentenname*","*Seite*"]
[null,"Fluidschemata Kältekreis und Wasserkreis",null,{"$f":"IF(OR(Antragsform=\"\",$D$3=\"\",Antr=\"*Bitte aus Liste wählen*\",$D$3=\"*Bitte aus Liste wählen*\"),\"Bitte Antragsform und Wärmepumpen-Typ auswählen\",HLOOKUP($D$2&\" \"&$D$3,'Anforderung Antragsteller'!$C$5:$AK$51,ROW()-5,))","v":"Bitte Antragsform und Wärmepumpen-Typ auswählen"},null,"*Dokumentenname*","*Seite*"]
[null,"Elektroschema zum Anschluss der Wärmepumpe",null,{"$f":"IF(OR(Antragsform=\"\",$D$3=\"\",Antr=\"*Bitte aus Liste wählen*\",$D$3=\"*Bitte aus Liste wählen*\"),\"Bitte Antragsform und Wärmepumpen-Typ auswählen\",HLOOKUP($D$2&\" \"&$D$3,'Anforderung Antragsteller'!$C$5:$AK$51,ROW()-5,))","v":"Bitte Antragsform und Wärmepumpen-Typ auswählen"},null,"*Dokumentenname*","*Seite*"]
[null,"Energy-Label und Energy-Label-Datenblatt nach 811/2013 (Heizungs- und Kombiwärmepumpen), bzw 812/2013 (Warmwasserwärmepumpe)\n(nur bei Geräten mit höchstens 70kW Nennleistung)",null,{"$f":"IF(OR(Antragsform=\"\",$D$3=\"\",Antr=\"*Bitte aus Liste wählen*\",$D$3=\"*Bitte aus Liste wählen*\"),\"Bitte Antragsform und Wärmepumpen-Typ auswählen\",HLOOKUP($D$2&\" \"&$D$3,'Anforderung Antragsteller'!$C$5:$AK$51,ROW()-5,))","v":"Bitte Antragsform und Wärmepumpen-Typ auswählen"},null,"*Dokumentenname*","*Seite*"]
[6,"Technische Daten  (deutschsprachig)",null,"-",null,"-","-",null,"-","-","-",null,"-","-","-"]
[null,"Leistungsdaten (Wärmeleistung, elektrische Leistungsaufnahme und COP über den gesamten Leistungsbereich)",null,{"$f":"IF(OR(Antragsform=\"\",$D$3=\"\",Antr=\"*Bitte aus Liste wählen*\",$D$3=\"*Bitte aus Liste wählen*\"),\"Bitte Antragsform und Wärmepumpen-Typ auswählen\",HLOOKUP($D$2&\" \"&$D$3,'Anforderung Antragsteller'!$C$5:$AK$51,ROW()-5,))","v":"Bitte Antragsform und Wärmepumpen-Typ auswählen"},null,"*Dokumentenname*","*Seite*"]
[null,"Leistungsdaten nach EN 14511 bei A7/W35 (Wärmeleistung, elektrische Leistungsaufnahme und COP)",null,{"$f":"IF(OR(Antragsform=\"\",$D$3=\"\",Antr=\"*Bitte aus Liste wählen*\",$D$3=\"*Bitte aus Liste wählen*\"),\"Bitte Antragsform und Wärmepumpen-Typ auswählen\",HLOOKUP($D$2&\" \"&$D$3,'Anforderung Antragsteller'!$C$5:$AK$51,ROW()-5,))","v":"Bitte Antragsform und Wärmepumpen-Typ auswählen"},null,"*Dokumentenname*","*Seite*"]
[null,"Maßzeichnung",null,{"$f":"IF(OR(Antragsform=\"\",$D$3=\"\",Antr=\"*Bitte aus Liste wählen*\",$D$3=\"*Bitte aus Liste wählen*\"),\"Bitte Antragsform und Wärmepumpen-Typ auswählen\",HLOOKUP($D$2&\" \"&$D$3,'Anforderung Antragsteller'!$C$5:$AK$51,ROW()-5,))","v":"Bitte Antragsform und Wärmepumpen-Typ auswählen"},null,"*Dokumentenname*","*Seite*"]
[null,"Mindestabstände",null,{"$f":"IF(OR(Antragsform=\"\",$D$3=\"\",Antr=\"*Bitte aus Liste wählen*\",$D$3=\"*Bitte aus Liste wählen*\"),\"Bitte Antragsform und Wärmepumpen-Typ auswählen\",HLOOKUP($D$2&\" \"&$D$3,'Anforderung Antragsteller'!$C$5:$AK$51,ROW()-5,))","v":"Bitte Antragsform und Wärmepumpen-Typ auswählen"},null,"*Dokumentenname*","*Seite*"]
[null,"Kältemittel: Art und Füllmenge",null,{"$f":"IF(OR(Antragsform=\"\",$D$3=\"\",Antr=\"*Bitte aus Liste wählen*\",$D$3=\"*Bitte aus Liste wählen*\"),\"Bitte Antragsform und Wärmepumpen-Typ auswählen\",HLOOKUP($D$2&\" \"&$D$3,'Anforderung Antragsteller'!$C$5:$AK$51,ROW()-5,))","v":"Bitte Antragsform und Wärmepumpen-Typ auswählen"},null,"*Dokumentenname*","*Seite*"]
[null,"Anlaufstrom / maximaler Betriebsstrom in A",null,{"$f":"IF(OR(Antragsform=\"\",$D$3=\"\",Antr=\"*Bitte aus Liste wählen*\",$D$3=\"*Bitte aus Liste wählen*\"),\"Bitte Antragsform und Wärmepumpen-Typ auswählen\",HLOOKUP($D$2&\" \"&$D$3,'Anforderung Antragsteller'!$C$5:$AK$51,ROW()-5,))","v":"Bitte Antragsform und Wärmepumpen-Typ auswählen"},null,"*Dokumentenname*","*Seite*"]
[null,"Einsatzbereich / Einsatzgrenzen",null,{"$f":"IF(OR(Antragsform=\"\",$D$3=\"\",Antr=\"*Bitte aus Liste wählen*\",$D$3=\"*Bitte aus Liste wählen*\"),\"Bitte Antragsform und Wärmepumpen-Typ auswählen\",HLOOKUP($D$2&\" \"&$D$3,'Anforderung Antragsteller'!$C$5:$AK$51,ROW()-5,))","v":"Bitte Antragsform und Wärmepumpen-Typ auswählen"},null,"*Dokumentenname*","*Seite*"]
[null,"Volumenstrom Quelle- und Senkenseite in m³/h, l/min",null,{"$f":"IF(OR(Antragsform=\"\",$D$3=\"\",Antr=\"*Bitte aus Liste wählen*\",$D$3=\"*Bitte aus Liste wählen*\"),\"Bitte Antragsform und Wärmepumpen-Typ auswählen\",HLOOKUP($D$2&\" \"&$D$3,'Anforderung Antragsteller'!$C$5:$AK$51,ROW()-5,))","v":"Bitte Antragsform und Wärmepumpen-Typ auswählen"},null,"*Dokumentenname*","*Seite*"]
[null,"Volumen des WW-Speichers in Liter",null,{"$f":"IF(OR(Antragsform=\"\",$D$3=\"\",Antr=\"*Bitte aus Liste wählen*\",$D$3=\"*Bitte aus Liste wählen*\"),\"Bitte Antragsform und Wärmepumpen-Typ auswählen\",HLOOKUP($D$2&\" \"&$D$3,'Anforderung Antragsteller'!$C$5:$AK$51,ROW()-5,))","v":"Bitte Antragsform und Wärmepumpen-Typ auswählen"},null,"*Dokumentenname*","*Seite*"]
[null,"Gewicht in kg",null,{"$f":"IF(OR(Antragsform=\"\",$D$3=\"\",Antr=\"*Bitte aus Liste wählen*\",$D$3=\"*Bitte aus Liste wählen*\"),\"Bitte Antragsform und Wärmepumpen-Typ auswählen\",HLOOKUP($D$2&\" \"&$D$3,'Anforderung Antragsteller'!$C$5:$AK$51,ROW()-5,))","v":"Bitte Antragsform und Wärmepumpen-Typ auswählen"},null,"*Dokumentenname*","*Seite*"]
[null,"Schallleistung nach EN 12102 / Energy-Label in [dB(A)]",null,{"$f":"IF(OR(Antragsform=\"\",$D$3=\"\",Antr=\"*Bitte aus Liste wählen*\",$D$3=\"*Bitte aus Liste wählen*\"),\"Bitte Antragsform und Wärmepumpen-Typ auswählen\",HLOOKUP($D$2&\" \"&$D$3,'Anforderung Antragsteller'!$C$5:$AK$51,ROW()-5,))","v":"Bitte Antragsform und Wärmepumpen-Typ auswählen"},null,"*Dokumentenname*","*Seite*"]
[null,"Schallleistung im EN 14825 Prüfpunkt B (A2) in [dB(A)]",null,{"$f":"IF(OR(Antragsform=\"\",$D$3=\"\",Antr=\"*Bitte aus Liste wählen*\",$D$3=\"*Bitte aus Liste wählen*\"),\"Bitte Antragsform und Wärmepumpen-Typ auswählen\",HLOOKUP($D$2&\" \"&$D$3,'Anforderung Antragsteller'!$C$5:$AK$51,ROW()-5,))","v":"Bitte Antragsform und Wärmepumpen-Typ auswählen"},null,"*Dokumentenname*","*Seite*"]
[null,"maximaler Schallleistungspegel in dB(A) und dazugehörige Heizleistung in kW",null,{"$f":"IF(OR(Antragsform=\"\",$D$3=\"\",Antr=\"*Bitte aus Liste wählen*\",$D$3=\"*Bitte aus Liste wählen*\"),\"Bitte Antragsform und Wärmepumpen-Typ auswählen\",HLOOKUP($D$2&\" \"&$D$3,'Anforderung Antragsteller'!$C$5:$AK$51,ROW()-5,))","v":"Bitte Antragsform und Wärmepumpen-Typ auswählen"},null,"*Dokumentenname*","*Seite*"]
[null,"maximaler Schallleistungspegel \"Silent-Mode\" in dB(A) und dazugehörige Heizleistung in kW",null,{"$f":"IF(OR(Antragsform=\"\",$D$3=\"\",Antr=\"*Bitte aus Liste wählen*\",$D$3=\"*Bitte aus Liste wählen*\"),\"Bitte Antragsform und Wärmepumpen-Typ auswählen\",HLOOKUP($D$2&\" \"&$D$3,'Anforderung Antragsteller'!$C$5:$AK$51,ROW()-5,))","v":"Bitte Antragsform und Wärmepumpen-Typ auswählen"},null,"*Dokumentenname*","*Seite*"]

{"sheet":"Dropdown Quelle","index":2,"n_rows":7,"n_cols":9,"rows_kept":7,"hidden":true}
[]
[]
[]
[]
["Antragsform wählen:","*Bitte aus Liste wählen*","Erstantrag","Übertragung von anderem Land oder anderem Unternehmen","1. und 2. Verlängerung  (Gültigkeit max. 9 Jahre)","ab 3. Verlängerung (Gültigkeit über 9 Jahre)","Erweiterung von eigenem Gütesiegel","Änderung der Produktbezeichnungen","Technische Änderungen am Produkt"]
[]
["Wärmepumpen-Typ:","*Bitte aus Liste wählen*","Luft/Wasser","Wasser/Wasser","Sole/Wasser","Luft/Luft","Brauchwasser Wärmepumpe"]

{"sheet":"Prüfer","index":3,"n_rows":52,"n_cols":7,"rows_kept":52,"hidden":true,"merged":[[3,0,3,1],[3,5,3,6],[4,5,4,6]]}
[null,"Anforderungsliste  für die EHPA-Gütesiegel-Beantragung"]
[null,"Antragsform:",null,{"$f":"Antr","v":"*Bitte aus Liste wählen*"}]
[null,"Wärmepumpen-Typ:",null,{"$f":"Anforderungsliste!D3","v":"*Bitte aus Liste wählen*"}]
[{"$nulls":5},{"$f":"Anforderungsliste!F4","v":"*Firmenname*"}]
[{"$nulls":3},"Anforderung für die gewählte Antragsform",null,{"$f":"Anforderungsliste!F5","v":"*Serienname*"}]
[1,"Grundlegendes",{"$nulls":3},"Hinweise zur Prüfung","ist verpflichtend zum Ausstellen"]
[null,"akkreditierte Prüfberichte nach EN 12102-1 und -2, EN 14511-2 bis 4 und EN 14825, bzw. EN 16147 bei Trinkwasser\nAnzahl hängt vom Umfang der Modelreihe ab",null,{"$f":"IF(OR(Antragsform=\"\",$D$3=\"\"),\"Bitte Antragsform und Wärmepumpen-Typ auswählen\",HLOOKUP($D$2&\" \"&$D$3,'Anforderung Antragsteller'!$C$5:$AG$51,ROW()-5,))","v":{"$error":"#N/A"}},null,"EHPA_","-"]
[null,"- Unterschriebener detaillierter akkreditierter Leistungs-Prüfbericht nach EHPA Regularien oder HP-Keymark Regularien UND",null,{"$f":"IF(OR(Antragsform=\"\",$D$3=\"\"),\"Bitte Antragsform und Wärmepumpen-Typ auswählen\",HLOOKUP($D$2&\" \"&$D$3,'Anforderung Antragsteller'!$C$5:$AK$51,ROW()-5,))","v":{"$error":"#N/A"}},null,{"$f":"IF($D$2=\"\",\"Bitte Antragsform auswählen\",HLOOKUP($D$2,'Prüfer-Hinweis'!$C$3:$I$49,ROW()-4,))","v":{"$error":"#N/A"}},{"$f":"IF($D$2=\"\",\"Bitte Antragsform auswählen\",HLOOKUP($D$2,'Prüfung Priorität'!$C$3:$I$50,ROW()-4,))","v":{"$error":"#N/A"}}]
[null,"- Unterschriebener detaillierter akkreditierter Schall-Prüfbericht  nach EHPA Regularien oder HP-Keymark Regularien UND",null,{"$f":"IF(OR(Antragsform=\"\",$D$3=\"\"),\"Bitte Antragsform und Wärmepumpen-Typ auswählen\",HLOOKUP($D$2&\" \"&$D$3,'Anforderung Antragsteller'!$C$5:$AK$51,ROW()-5,))","v":{"$error":"#N/A"}},null,{"$f":"IF($D$2=\"\",\"Bitte Antragsform auswählen\",HLOOKUP($D$2,'Prüfer-Hinweis'!$C$3:$I$49,ROW()-4,))","v":{"$error":"#N/A"}},{"$f":"IF($D$2=\"\",\"Bitte Antragsform auswählen\",HLOOKUP($D$2,'Prüfung Priorität'!$C$3:$I$50,ROW()-4,))","v":{"$error":"#N/A"}}]
[null,"SCOP Anforderungen für Heizungs-Wärmepumpen",null,{"$f":"IF(OR(Antragsform=\"\",$D$3=\"\"),\"Bitte Antragsform und Wärmepumpen-Typ auswählen\",HLOOKUP($D$2&\" \"&$D$3,'Anforderung Antragsteller'!$C$5:$AK$51,ROW()-5,))","v":{"$error":"#N/A"}},null,{"$f":"IF($D$2=\"\",\"Bitte Antragsform auswählen\",HLOOKUP($D$2,'Prüfer-Hinweis'!$C$3:$I$49,ROW()-4,))","v":{"$error":"#N/A"}},{"$f":"IF($D$2=\"\",\"Bitte Antragsform auswählen\",HLOOKUP($D$2,'Prüfung Priorität'!$C$3:$I$50,ROW()-4,))","v":{"$error":"#N/A"}}]
[null,"- Niedertemperaturanwendung (35°C) und durchschnittliches Klima:\n       SCOP Min : 3,70 (A/W)         SCOP Min : 4,70 (B/W, W/W)\n       SCOP Min : 4,10 (DX/W)       SCOP Min : 3,40 (A/A)",null,{"$f":"IF(OR(Antragsform=\"\",$D$3=\"\"),\"Bitte Antragsform und Wärmepumpen-Typ auswählen\",HLOOKUP($D$2&\" \"&$D$3,'Anforderung Antragsteller'!$C$5:$AK$51,ROW()-5,))","v":{"$error":"#N/A"}},null,{"$f":"IF($D$2=\"\",\"Bitte Antragsform auswählen\",HLOOKUP($D$2,'Prüfer-Hinweis'!$C$3:$I$49,ROW()-4,))","v":{"$error":"#N/A"}},{"$f":"IF($D$2=\"\",\"Bitte Antragsform auswählen\",HLOOKUP($D$2,'Prüfung Priorität'!$C$3:$I$50,ROW()-4,))","v":{"$error":"#N/A"}}]
[null,"- Mitteltemperaturanwendung (55°C) und durchschnittliches Klima:\n       SCOP Min : 3,20 (A/W)       SCOP Min : 3,70 (B/W, W/W)\n       SCOP Min : 3,38 (DX/W)",null,{"$f":"IF(OR(Antragsform=\"\",$D$3=\"\"),\"Bitte Antragsform und Wärmepumpen-Typ auswählen\",HLOOKUP($D$2&\" \"&$D$3,'Anforderung Antragsteller'!$C$5:$AK$51,ROW()-5,))","v":{"$error":"#N/A"}},null,{"$f":"IF($D$2=\"\",\"Bitte Antragsform auswählen\",HLOOKUP($D$2,'Prüfer-Hinweis'!$C$3:$I$49,ROW()-4,))","v":{"$error":"#N/A"}},{"$f":"IF($D$2=\"\",\"Bitte Antragsform auswählen\",HLOOKUP($D$2,'Prüfung Priorität'!$C$3:$I$50,ROW()-4,))","v":{"$error":"#N/A"}}]
[null,"Anforderungen für Brauchwasser-Wärmepumpen",null,{"$f":"IF(OR(Antragsform=\"\",$D$3=\"\"),\"Bitte Antragsform und Wärmepumpen-Typ auswählen\",HLOOKUP($D$2&\" \"&$D$3,'Anforderung Antragsteller'!$C$5:$AK$51,ROW()-5,))","v":{"$error":"#N/A"}},null,{"$f":"IF($D$2=\"\",\"Bitte Antragsform auswählen\",HLOOKUP($D$2,'Prüfer-Hinweis'!$C$3:$I$49,ROW()-4,))","v":{"$error":"#N/A"}},{"$f":"IF($D$2=\"\",\"Bitte Antragsform auswählen\",HLOOKUP($D$2,'Prüfung Priorität'!$C$3:$I$50,ROW()-4,))","v":{"$error":"#N/A"}}]
[null,"- Die Wärmpumpe muss mindestens 52°C Warmwasser erzeugen können",null,{"$f":"IF(OR(Antragsform=\"\",$D$3=\"\"),\"Bitte Antragsform und Wärmepumpen-Typ auswählen\",HLOOKUP($D$2&\" \"&$D$3,'Anforderung Antragsteller'!$C$5:$AK$51,ROW()-5,))","v":{"$error":"#N/A"}},null,{"$f":"IF($D$2=\"\",\"Bitte Antragsform auswählen\",HLOOKUP($D$2,'Prüfer-Hinweis'!$C$3:$I$49,ROW()-4,))","v":{"$error":"#N/A"}},{"$f":"IF($D$2=\"\",\"Bitte Antragsform auswählen\",HLOOKUP($D$2,'Prüfung Priorität'!$C$3:$I$50,ROW()-4,))","v":{"$error":"#N/A"}}]
[null,"- Minmaler \"SCOP_domestic hot water\", bzw. \"COP_domestic hot water\" wird eingehalten\nA7 ≥ 2,8 / A15 ≥ 2,9 / A20 ≥ 3,2 / B0 ≥ 2,8 / W10 ≥ 3,0",null,{"$f":"IF(OR(Antragsform=\"\",$D$3=\"\"),\"Bitte Antragsform und Wärmepumpen-Typ auswählen\",HLOOKUP($D$2&\" \"&$D$3,'Anforderung Antragsteller'!$C$5:$AK$51,ROW()-5,))","v":{"$error":"#N/A"}},null,{"$f":"IF($D$2=\"\",\"Bitte Antragsform auswählen\",HLOOKUP($D$2,'Prüfer-Hinweis'!$C$3:$I$49,ROW()-4,))","v":{"$error":"#N/A"}},{"$f":"IF($D$2=\"\",\"Bitte Antragsform auswählen\",HLOOKUP($D$2,'Prüfung Priorität'!$C$3:$I$50,ROW()-4,))","v":{"$error":"#N/A"}}]
[null,"Unterfertigte Baugleicheitsbescheinigung des Herstellers, falls die Produktbezeichnungen am Prüfbericht/HP Keymark und am EHPA Label nicht gleich sind (siehe Vorlage unter www.waermepumpe-austria.at/dienste/guetesiegel/dokumente-und-links)",null,{"$f":"IF(OR(Antragsform=\"\",$D$3=\"\"),\"Bitte Antragsform und Wärmepumpen-Typ auswählen\",HLOOKUP($D$2&\" \"&$D$3,'Anforderung Antragsteller'!$C$5:$AK$51,ROW()-5,))","v":{"$error":"#N/A"}},null,{"$f":"IF($D$2=\"\",\"Bitte Antragsform auswählen\",HLOOKUP($D$2,'Prüfer-Hinweis'!$C$3:$I$49,ROW()-4,))","v":{"$error":"#N/A"}},{"$f":"IF($D$2=\"\",\"Bitte Antragsform auswählen\",HLOOKUP($D$2,'Prüfung Priorität'!$C$3:$I$50,ROW()-4,))","v":{"$error":"#N/A"}}]
[null,"Unterfertigte CE-Konformitäts-Erklärung",null,{"$f":"IF(OR(Antragsform=\"\",$D$3=\"\"),\"Bitte Antragsform und Wärmepumpen-Typ auswählen\",HLOOKUP($D$2&\" \"&$D$3,'Anforderung Antragsteller'!$C$5:$AK$51,ROW()-5,))","v":{"$error":"#N/A"}},null,{"$f":"IF($D$2=\"\",\"Bitte Antragsform auswählen\",HLOOKUP($D$2,'Prüfer-Hinweis'!$C$3:$I$49,ROW()-4,))","v":{"$error":"#N/A"}},{"$f":"IF($D$2=\"\",\"Bitte Antragsform auswählen\",HLOOKUP($D$2,'Prüfung Priorität'!$C$3:$I$50,ROW()-4,))","v":{"$error":"#N/A"}}]
[null,"Formelle Zustimmung vom Elterngütesiegel-Halter (siehe Vorlage unter www.waermepumpe-austria.at/dienste/guetesiegel/dokumente-und-links)",null,{"$f":"IF(OR(Antragsform=\"\",$D$3=\"\"),\"Bitte Antragsform und Wärmepumpen-Typ auswählen\",HLOOKUP($D$2&\" \"&$D$3,'Anforderung Antragsteller'!$C$5:$AK$51,ROW()-5,))","v":{"$error":"#N/A"}},null,{"$f":"IF($D$2=\"\",\"Bitte Antragsform auswählen\",HLOOKUP($D$2,'Prüfer-Hinweis'!$C$3:$I$49,ROW()-4,))","v":{"$error":"#N/A"}},{"$f":"IF($D$2=\"\",\"Bitte Antragsform auswählen\",HLOOKUP($D$2,'Prüfung Priorität'!$C$3:$I$50,ROW()-4,))","v":{"$error":"#N/A"}}]
[2,"Antrag",null,{"$f":"IF(OR(Antragsform=\"\",$D$3=\"\"),\"Bitte Antragsform und Wärmepumpen-Typ auswählen\",HLOOKUP($D$2&\" \"&$D$3,'Anforderung Antragsteller'!$C$5:$AK$51,ROW()-5,))","v":{"$error":"#N/A"}},null,{"$f":"IF($D$2=\"\",\"Bitte Antragsform auswählen\",HLOOKUP($D$2,'Prüfer-Hinweis'!$C$3:$I$49,ROW()-4,))","v":{"$error":"#N/A"}},{"$f":"IF($D$2=\"\",\"Bitte Antragsform auswählen\",HLOOKUP($D$2,'Prüfung Priorität'!$C$3:$I$50,ROW()-4,))","v":{"$error":"#N/A"}}]
[null,"Hauptkomponenten Liste hochladen (Hersteller, Typenbezeichnung) und in der Online-Maske im Model inkl. SCOP Werte ausfüllen.",null,{"$f":"IF(OR(Antragsform=\"\",$D$3=\"\"),\"Bitte Antragsform und Wärmepumpen-Typ auswählen\",HLOOKUP($D$2&\" \"&$D$3,'Anforderung Antragsteller'!$C$5:$AK$51,ROW()-5,))","v":{"$error":"#N/A"}},null,{"$f":"IF($D$2=\"\",\"Bitte Antragsform auswählen\",HLOOKUP($D$2,'Prüfer-Hinweis'!$C$3:$I$49,ROW()-4,))","v":{"$error":"#N/A"}},{"$f":"IF($D$2=\"\",\"Bitte Antragsform auswählen\",HLOOKUP($D$2,'Prüfung Priorität'!$C$3:$I$50,ROW()-4,))","v":{"$error":"#N/A"}}]
[null,"Eintragen der Daten nach EN 14511, EN 14825 und EN 12102-1 in der Online-Maske bei den einzelnen Modellen ausfüllen.",null,{"$f":"IF(OR(Antragsform=\"\",$D$3=\"\"),\"Bitte Antragsform und Wärmepumpen-Typ auswählen\",HLOOKUP($D$2&\" \"&$D$3,'Anforderung Antragsteller'!$C$5:$AK$51,ROW()-5,))","v":{"$error":"#N/A"}},null,{"$f":"IF($D$2=\"\",\"Bitte Antragsform auswählen\",HLOOKUP($D$2,'Prüfer-Hinweis'!$C$3:$I$49,ROW()-4,))","v":{"$error":"#N/A"}},{"$f":"IF($D$2=\"\",\"Bitte Antragsform auswählen\",HLOOKUP($D$2,'Prüfung Priorität'!$C$3:$I$50,ROW()-4,))","v":{"$error":"#N/A"}}]
[3,"Kundenservice  (deutschsprachig)",null,{"$f":"IF(OR(Antragsform=\"\",$D$3=\"\"),\"Bitte Antragsform und Wärmepumpen-Typ auswählen\",HLOOKUP($D$2&\" \"&$D$3,'Anforderung Antragsteller'!$C$5:$AK$51,ROW()-5,))","v":{"$error":"#N/A"}},null,{"$f":"IF($D$2=\"\",\"Bitte Antragsform auswählen\",HLOOKUP($D$2,'Prüfer-Hinweis'!$C$3:$I$49,ROW()-4,))","v":{"$error":"#N/A"}},{"$f":"IF($D$2=\"\",\"Bitte Antragsform auswählen\",HLOOKUP($D$2,'Prüfung Priorität'!$C$3:$I$50,ROW()-4,))","v":{"$error":"#N/A"}}]
[null,"Formular-Vorlage für den Inbetriebnahme- und Wartungs-Techniker",null,{"$f":"IF(OR(Antragsform=\"\",$D$3=\"\"),\"Bitte Antragsform und Wärmepumpen-Typ auswählen\",HLOOKUP($D$2&\" \"&$D$3,'Anforderung Antragsteller'!$C$5:$AK$51,ROW()-5,))","v":{"$error":"#N/A"}},null,{"$f":"IF($D$2=\"\",\"Bitte Antragsform auswählen\",HLOOKUP($D$2,'Prüfer-Hinweis'!$C$3:$I$49,ROW()-4,))","v":{"$error":"#N/A"}},{"$f":"IF($D$2=\"\",\"Bitte Antragsform auswählen\",HLOOKUP($D$2,'Prüfung Priorität'!$C$3:$I$50,ROW()-4,))","v":{"$error":"#N/A"}}]
[null,"Garantie für mindestens 2 Jahre",null,{"$f":"IF(OR(Antragsform=\"\",$D$3=\"\"),\"Bitte Antragsform und Wärmepumpen-Typ auswählen\",HLOOKUP($D$2&\" \"&$D$3,'Anforderung Antragsteller'!$C$5:$AK$51,ROW()-5,))","v":{"$error":"#N/A"}},null,{"$f":"IF($D$2=\"\",\"Bitte Antragsform auswählen\",HLOOKUP($D$2,'Prüfer-Hinweis'!$C$3:$I$49,ROW()-4,))","v":{"$error":"#N/A"}},{"$f":"IF($D$2=\"\",\"Bitte Antragsform auswählen\",HLOOKUP($D$2,'Prüfung Priorität'!$C$3:$I$50,ROW()-4,))","v":{"$error":"#N/A"}}]
[null,"Ersatzteilgarantie für mindestens 10 Jahre",null,{"$f":"IF(OR(Antragsform=\"\",$D$3=\"\"),\"Bitte Antragsform und Wärmepumpen-Typ auswählen\",HLOOKUP($D$2&\" \"&$D$3,'Anforderung Antragsteller'!$C$5:$AK$51,ROW()-5,))","v":{"$error":"#N/A"}},null,{"$f":"IF($D$2=\"\",\"Bitte Antragsform auswählen\",HLOOKUP($D$2,'Prüfer-Hinweis'!$C$3:$I$49,ROW()-4,))","v":{"$error":"#N/A"}},{"$f":"IF($D$2=\"\",\"Bitte Antragsform auswählen\",HLOOKUP($D$2,'Prüfung Priorität'!$C$3:$I$50,ROW()-4,))","v":{"$error":"#N/A"}}]
[null,"Reaktionszeit des Kundendienstes im Vertriebsgebiet innerhalb von 24\nStunden und Kontaktdaten zum Kundendienst im Vertriebsgebiet   (siehe Vorlage unter www.waermepumpe-austria.at/dienste/guetesiegel/dokumente-und-links)",null,{"$f":"IF(OR(Antragsform=\"\",$D$3=\"\"),\"Bitte Antragsform und Wärmepumpen-Typ auswählen\",HLOOKUP($D$2&\" \"&$D$3,'Anforderung Antragsteller'!$C$5:$AK$51,ROW()-5,))","v":{"$error":"#N/A"}},null,{"$f":"IF($D$2=\"\",\"Bitte Antragsform auswählen\",HLOOKUP($D$2,'Prüfer-Hinweis'!$C$3:$I$49,ROW()-4,))","v":{"$error":"#N/A"}},{"$f":"IF($D$2=\"\",\"Bitte Antragsform auswählen\",HLOOKUP($D$2,'Prüfung Priorität'!$C$3:$I$50,ROW()-4,))","v":{"$error":"#N/A"}}]
[4,"Bedienungsanleitungen  (deutschsprachig)",null,{"$f":"IF(OR(Antragsform=\"\",$D$3=\"\"),\"Bitte Antragsform und Wärmepumpen-Typ auswählen\",HLOOKUP($D$2&\" \"&$D$3,'Anforderung Antragsteller'!$C$5:$AK$51,ROW()-5,))","v":{"$error":"#N/A"}},null,{"$f":"IF($D$2=\"\",\"Bitte Antragsform auswählen\",HLOOKUP($D$2,'Prüfer-Hinweis'!$C$3:$I$49,ROW()-4,))","v":{"$error":"#N/A"}},{"$f":"IF($D$2=\"\",\"Bitte Antragsform auswählen\",HLOOKUP($D$2,'Prüfung Priorität'!$C$3:$I$50,ROW()-4,))","v":{"$error":"#N/A"}}]
[null,"Informationen und Sicherheitshinweise für eine ordnungsgemäße\nNutzung",null,{"$f":"IF(OR(Antragsform=\"\",$D$3=\"\"),\"Bitte Antragsform und Wärmepumpen-Typ auswählen\",HLOOKUP($D$2&\" \"&$D$3,'Anforderung Antragsteller'!$C$5:$AK$51,ROW()-5,))","v":{"$error":"#N/A"}},null,{"$f":"IF($D$2=\"\",\"Bitte Antragsform auswählen\",HLOOKUP($D$2,'Prüfer-Hinweis'!$C$3:$I$49,ROW()-4,))","v":{"$error":"#N/A"}},{"$f":"IF($D$2=\"\",\"Bitte Antragsform auswählen\",HLOOKUP($D$2,'Prüfung Priorität'!$C$3:$I$50,ROW()-4,))","v":{"$error":"#N/A"}}]
[null,"Anleitung zur Bedienung der Wärmepumpe",null,{"$f":"IF(OR(Antragsform=\"\",$D$3=\"\"),\"Bitte Antragsform und Wärmepumpen-Typ auswählen\",HLOOKUP($D$2&\" \"&$D$3,'Anforderung Antragsteller'!$C$5:$AK$51,ROW()-5,))","v":{"$error":"#N/A"}},null,{"$f":"IF($D$2=\"\",\"Bitte Antragsform auswählen\",HLOOKUP($D$2,'Prüfer-Hinweis'!$C$3:$I$49,ROW()-4,))","v":{"$error":"#N/A"}},{"$f":"IF($D$2=\"\",\"Bitte Antragsform auswählen\",HLOOKUP($D$2,'Prüfung Priorität'!$C$3:$I$50,ROW()-4,))","v":{"$error":"#N/A"}}]
[null,"Ersatzteilliste",null,{"$f":"IF(OR(Antragsform=\"\",$D$3=\"\"),\"Bitte Antragsform und Wärmepumpen-Typ auswählen\",HLOOKUP($D$2&\" \"&$D$3,'Anforderung Antragsteller'!$C$5:$AK$51,ROW()-5,))","v":{"$error":"#N/A"}},null,{"$f":"IF($D$2=\"\",\"Bitte Antragsform auswählen\",HLOOKUP($D$2,'Prüfer-Hinweis'!$C$3:$I$49,ROW()-4,))","v":{"$error":"#N/A"}},{"$f":"IF($D$2=\"\",\"Bitte Antragsform auswählen\",HLOOKUP($D$2,'Prüfung Priorität'!$C$3:$I$50,ROW()-4,))","v":{"$error":"#N/A"}}]
[5,"Installationsanleitungen  (deutschsprachig)",null,{"$f":"IF(OR(Antragsform=\"\",$D$3=\"\"),\"Bitte Antragsform und Wärmepumpen-Typ auswählen\",HLOOKUP($D$2&\" \"&$D$3,'Anforderung Antragsteller'!$C$5:$AK$51,ROW()-5,))","v":{"$error":"#N/A"}},null,{"$f":"IF($D$2=\"\",\"Bitte Antragsform auswählen\",HLOOKUP($D$2,'Prüfer-Hinweis'!$C$3:$I$49,ROW()-4,))","v":{"$error":"#N/A"}},{"$f":"IF($D$2=\"\",\"Bitte Antragsform auswählen\",HLOOKUP($D$2,'Prüfung Priorität'!$C$3:$I$50,ROW()-4,))","v":{"$error":"#N/A"}}]
[null,"Installationsanleitung",null,{"$f":"IF(OR(Antragsform=\"\",$D$3=\"\"),\"Bitte Antragsform und Wärmepumpen-Typ auswählen\",HLOOKUP($D$2&\" \"&$D$3,'Anforderung Antragsteller'!$C$5:$AK$51,ROW()-5,))","v":{"$error":"#N/A"}},null,{"$f":"IF($D$2=\"\",\"Bitte Antragsform auswählen\",HLOOKUP($D$2,'Prüfer-Hinweis'!$C$3:$I$49,ROW()-4,))","v":{"$error":"#N/A"}},{"$f":"IF($D$2=\"\",\"Bitte Antragsform auswählen\",HLOOKUP($D$2,'Prüfung Priorität'!$C$3:$I$50,ROW()-4,))","v":{"$error":"#N/A"}}]
[null,"Sicherheitshinweise",null,{"$f":"IF(OR(Antragsform=\"\",$D$3=\"\"),\"Bitte Antragsform und Wärmepumpen-Typ auswählen\",HLOOKUP($D$2&\" \"&$D$3,'Anforderung Antragsteller'!$C$5:$AK$51,ROW()-5,))","v":{"$error":"#N/A"}},null,{"$f":"IF($D$2=\"\",\"Bitte Antragsform auswählen\",HLOOKUP($D$2,'Prüfer-Hinweis'!$C$3:$I$49,ROW()-4,))","v":{"$error":"#N/A"}},{"$f":"IF($D$2=\"\",\"Bitte Antragsform auswählen\",HLOOKUP($D$2,'Prüfung Priorität'!$C$3:$I$50,ROW()-4,))","v":{"$error":"#N/A"}}]
[null,"Inbetriebnahmehinweise",null,{"$f":"IF(OR(Antragsform=\"\",$D$3=\"\"),\"Bitte Antragsform und Wärmepumpen-Typ auswählen\",HLOOKUP($D$2&\" \"&$D$3,'Anforderung Antragsteller'!$C$5:$AK$51,ROW()-5,))","v":{"$error":"#N/A"}},null,{"$f":"IF($D$2=\"\",\"Bitte Antragsform auswählen\",HLOOKUP($D$2,'Prüfer-Hinweis'!$C$3:$I$49,ROW()-4,))","v":{"$error":"#N/A"}},{"$f":"IF($D$2=\"\",\"Bitte Antragsform auswählen\",HLOOKUP($D$2,'Prüfung Priorität'!$C$3:$I$50,ROW()-4,))","v":{"$error":"#N/A"}}]
[null,"Fluidschemata Kältekreis und Wasserkreis",null,{"$f":"IF(OR(Antragsform=\"\",$D$3=\"\"),\"Bitte Antragsform und Wärmepumpen-Typ auswählen\",HLOOKUP($D$2&\" \"&$D$3,'Anforderung Antragsteller'!$C$5:$AK$51,ROW()-5,))","v":{"$error":"#N/A"}},null,{"$f":"IF($D$2=\"\",\"Bitte Antragsform auswählen\",HLOOKUP($D$2,'Prüfer-Hinweis'!$C$3:$I$49,ROW()-4,))","v":{"$error":"#N/A"}},{"$f":"IF($D$2=\"\",\"Bitte Antragsform auswählen\",HLOOKUP($D$2,'Prüfung Priorität'!$C$3:$I$50,ROW()-4,))","v":{"$error":"#N/A"}}]
[null,"Elektroschema zum Anschluss der Wärmepumpe",null,{"$f":"IF(OR(Antragsform=\"\",$D$3=\"\"),\"Bitte Antragsform und Wärmepumpen-Typ auswählen\",HLOOKUP($D$2&\" \"&$D$3,'Anforderung Antragsteller'!$C$5:$AK$51,ROW()-5,))","v":{"$error":"#N/A"}},null,{"$f":"IF($D$2=\"\",\"Bitte Antragsform auswählen\",HLOOKUP($D$2,'Prüfer-Hinweis'!$C$3:$I$49,ROW()-4,))","v":{"$error":"#N/A"}},{"$f":"IF($D$2=\"\",\"Bitte Antragsform auswählen\",HLOOKUP($D$2,'Prüfung Priorität'!$C$3:$I$50,ROW()-4,))","v":{"$error":"#N/A"}}]
[null,"Energy-Label und Energy-Label-Datenblatt nach 811/2013 (Heizungs- und Kombiwärmepumpen), bzw 812/2013 (Warmwasserwärmepumpe)\n(nur bei Geräten mit höchstens 70kW Nennleistung)",null,{"$f":"IF(OR(Antragsform=\"\",$D$3=\"\"),\"Bitte Antragsform und Wärmepumpen-Typ auswählen\",HLOOKUP($D$2&\" \"&$D$3,'Anforderung Antragsteller'!$C$5:$AK$51,ROW()-5,))","v":{"$error":"#N/A"}},null,{"$f":"IF($D$2=\"\",\"Bitte Antragsform auswählen\",HLOOKUP($D$2,'Prüfer-Hinweis'!$C$3:$I$49,ROW()-4,))","v":{"$error":"#N/A"}},{"$f":"IF($D$2=\"\",\"Bitte Antragsform auswählen\",HLOOKUP($D$2,'Prüfung Priorität'!$C$3:$I$50,ROW()-4,))","v":{"$error":"#N/A"}}]
[6,"Technische Daten  (deutschsprachig)",null,{"$f":"IF(OR(Antragsform=\"\",$D$3=\"\"),\"Bitte Antragsform und Wärmepumpen-Typ auswählen\",HLOOKUP($D$2&\" \"&$D$3,'Anforderung Antragsteller'!$C$5:$AK$51,ROW()-5,))","v":{"$error":"#N/A"}},null,{"$f":"IF($D$2=\"\",\"Bitte Antragsform auswählen\",HLOOKUP($D$2,'Prüfer-Hinweis'!$C$3:$I$49,ROW()-4,))","v":{"$error":"#N/A"}},{"$f":"IF($D$2=\"\",\"Bitte Antragsform auswählen\",HLOOKUP($D$2,'Prüfung Priorität'!$C$3:$I$50,ROW()-4,))","v":{"$error":"#N/A"}}]
[null,"Leistungsdaten (Wärmeleistung, elektrische Leistungsaufnahme und COP über den gesamten Leistungsbereich)",null,{"$f":"IF(OR(Antragsform=\"\",$D$3=\"\"),\"Bitte Antragsform und Wärmepumpen-Typ auswählen\",HLOOKUP($D$2&\" \"&$D$3,'Anforderung Antragsteller'!$C$5:$AK$51,ROW()-5,))","v":{"$error":"#N/A"}},null,{"$f":"IF($D$2=\"\",\"Bitte Antragsform auswählen\",HLOOKUP($D$2,'Prüfer-Hinweis'!$C$3:$I$49,ROW()-4,))","v":{"$error":"#N/A"}},{"$f":"IF($D$2=\"\",\"Bitte Antragsform auswählen\",HLOOKUP($D$2,'Prüfung Priorität'!$C$3:$I$50,ROW()-4,))","v":{"$error":"#N/A"}}]
[null,"Leistungsdaten nach EN 14511 bei A7/W35 (Wärmeleistung, elektrische Leistungsaufnahme und COP)",null,{"$f":"IF(OR(Antragsform=\"\",$D$3=\"\"),\"Bitte Antragsform und Wärmepumpen-Typ auswählen\",HLOOKUP($D$2&\" \"&$D$3,'Anforderung Antragsteller'!$C$5:$AK$51,ROW()-5,))","v":{"$error":"#N/A"}},null,{"$f":"IF($D$2=\"\",\"Bitte Antragsform auswählen\",HLOOKUP($D$2,'Prüfer-Hinweis'!$C$3:$I$49,ROW()-4,))","v":{"$error":"#N/A"}},{"$f":"IF($D$2=\"\",\"Bitte Antragsform auswählen\",HLOOKUP($D$2,'Prüfung Priorität'!$C$3:$I$50,ROW()-4,))","v":{"$error":"#N/A"}}]
[null,"Maßzeichnung",null,{"$f":"IF(OR(Antragsform=\"\",$D$3=\"\"),\"Bitte Antragsform und Wärmepumpen-Typ auswählen\",HLOOKUP($D$2&\" \"&$D$3,'Anforderung Antragsteller'!$C$5:$AK$51,ROW()-5,))","v":{"$error":"#N/A"}},null,{"$f":"IF($D$2=\"\",\"Bitte Antragsform auswählen\",HLOOKUP($D$2,'Prüfer-Hinweis'!$C$3:$I$49,ROW()-4,))","v":{"$error":"#N/A"}},{"$f":"IF($D$2=\"\",\"Bitte Antragsform auswählen\",HLOOKUP($D$2,'Prüfung Priorität'!$C$3:$I$50,ROW()-4,))","v":{"$error":"#N/A"}}]
[null,"Mindestabstände",null,{"$f":"IF(OR(Antragsform=\"\",$D$3=\"\"),\"Bitte Antragsform und Wärmepumpen-Typ auswählen\",HLOOKUP($D$2&\" \"&$D$3,'Anforderung Antragsteller'!$C$5:$AK$51,ROW()-5,))","v":{"$error":"#N/A"}},null,{"$f":"IF($D$2=\"\",\"Bitte Antragsform auswählen\",HLOOKUP($D$2,'Prüfer-Hinweis'!$C$3:$I$49,ROW()-4,))","v":{"$error":"#N/A"}},{"$f":"IF($D$2=\"\",\"Bitte Antragsform auswählen\",HLOOKUP($D$2,'Prüfung Priorität'!$C$3:$I$50,ROW()-4,))","v":{"$error":"#N/A"}}]
[null,"Kältemittel: Art und Füllmenge",null,{"$f":"IF(OR(Antragsform=\"\",$D$3=\"\"),\"Bitte Antragsform und Wärmepumpen-Typ auswählen\",HLOOKUP($D$2&\" \"&$D$3,'Anforderung Antragsteller'!$C$5:$AK$51,ROW()-5,))","v":{"$error":"#N/A"}},null,{"$f":"IF($D$2=\"\",\"Bitte Antragsform auswählen\",HLOOKUP($D$2,'Prüfer-Hinweis'!$C$3:$I$49,ROW()-4,))","v":{"$error":"#N/A"}},{"$f":"IF($D$2=\"\",\"Bitte Antragsform auswählen\",HLOOKUP($D$2,'Prüfung Priorität'!$C$3:$I$50,ROW()-4,))","v":{"$error":"#N/A"}}]
[null,"Anlaufstrom / maximaler Betriebsstrom in A",null,{"$f":"IF(OR(Antragsform=\"\",$D$3=\"\"),\"Bitte Antragsform und Wärmepumpen-Typ auswählen\",HLOOKUP($D$2&\" \"&$D$3,'Anforderung Antragsteller'!$C$5:$AK$51,ROW()-5,))","v":{"$error":"#N/A"}},null,{"$f":"IF($D$2=\"\",\"Bitte Antragsform auswählen\",HLOOKUP($D$2,'Prüfer-Hinweis'!$C$3:$I$49,ROW()-4,))","v":{"$error":"#N/A"}},{"$f":"IF($D$2=\"\",\"Bitte Antragsform auswählen\",HLOOKUP($D$2,'Prüfung Priorität'!$C$3:$I$50,ROW()-4,))","v":{"$error":"#N/A"}}]
[null,"Einsatzbereich / Einsatzgrenzen",null,{"$f":"IF(OR(Antragsform=\"\",$D$3=\"\"),\"Bitte Antragsform und Wärmepumpen-Typ auswählen\",HLOOKUP($D$2&\" \"&$D$3,'Anforderung Antragsteller'!$C$5:$AK$51,ROW()-5,))","v":{"$error":"#N/A"}},null,{"$f":"IF($D$2=\"\",\"Bitte Antragsform auswählen\",HLOOKUP($D$2,'Prüfer-Hinweis'!$C$3:$I$49,ROW()-4,))","v":{"$error":"#N/A"}},{"$f":"IF($D$2=\"\",\"Bitte Antragsform auswählen\",HLOOKUP($D$2,'Prüfung Priorität'!$C$3:$I$50,ROW()-4,))","v":{"$error":"#N/A"}}]
[null,"Volumenstrom Quelle- und Senkenseite in m³/h, l/min",null,{"$f":"IF(OR(Antragsform=\"\",$D$3=\"\"),\"Bitte Antragsform und Wärmepumpen-Typ auswählen\",HLOOKUP($D$2&\" \"&$D$3,'Anforderung Antragsteller'!$C$5:$AK$51,ROW()-5,))","v":{"$error":"#N/A"}},null,{"$f":"IF($D$2=\"\",\"Bitte Antragsform auswählen\",HLOOKUP($D$2,'Prüfer-Hinweis'!$C$3:$I$49,ROW()-4,))","v":{"$error":"#N/A"}},{"$f":"IF($D$2=\"\",\"Bitte Antragsform auswählen\",HLOOKUP($D$2,'Prüfung Priorität'!$C$3:$I$50,ROW()-4,))","v":{"$error":"#N/A"}}]
[null,"Volumen des WW-Speichers in Liter",null,{"$f":"IF(OR(Antragsform=\"\",$D$3=\"\"),\"Bitte Antragsform und Wärmepumpen-Typ auswählen\",HLOOKUP($D$2&\" \"&$D$3,'Anforderung Antragsteller'!$C$5:$AK$51,ROW()-5,))","v":{"$error":"#N/A"}},null,{"$f":"IF($D$2=\"\",\"Bitte Antragsform auswählen\",HLOOKUP($D$2,'Prüfer-Hinweis'!$C$3:$I$49,ROW()-4,))","v":{"$error":"#N/A"}},{"$f":"IF($D$2=\"\",\"Bitte Antragsform auswählen\",HLOOKUP($D$2,'Prüfung Priorität'!$C$3:$I$50,ROW()-4,))","v":{"$error":"#N/A"}}]
[null,"Gewicht in kg",null,{"$f":"IF(OR(Antragsform=\"\",$D$3=\"\"),\"Bitte Antragsform und Wärmepumpen-Typ auswählen\",HLOOKUP($D$2&\" \"&$D$3,'Anforderung Antragsteller'!$C$5:$AK$51,ROW()-5,))","v":{"$error":"#N/A"}},null,{"$f":"IF($D$2=\"\",\"Bitte Antragsform auswählen\",HLOOKUP($D$2,'Prüfer-Hinweis'!$C$3:$I$49,ROW()-4,))","v":{"$error":"#N/A"}},{"$f":"IF($D$2=\"\",\"Bitte Antragsform auswählen\",HLOOKUP($D$2,'Prüfung Priorität'!$C$3:$I$50,ROW()-4,))","v":{"$error":"#N/A"}}]
[null,"Schallleistung nach EN 12102 / Energy-Label in dB(A)",null,{"$f":"IF(OR(Antragsform=\"\",$D$3=\"\"),\"Bitte Antragsform und Wärmepumpen-Typ auswählen\",HLOOKUP($D$2&\" \"&$D$3,'Anforderung Antragsteller'!$C$5:$AK$51,ROW()-5,))","v":{"$error":"#N/A"}},null,{"$f":"IF($D$2=\"\",\"Bitte Antragsform auswählen\",HLOOKUP($D$2,'Prüfer-Hinweis'!$C$3:$I$49,ROW()-4,))","v":{"$error":"#N/A"}},{"$f":"IF($D$2=\"\",\"Bitte Antragsform auswählen\",HLOOKUP($D$2,'Prüfung Priorität'!$C$3:$I$50,ROW()-4,))","v":{"$error":"#N/A"}}]
[null,"Schallleistung im EN 14825 Prüfpunkt B (A2) in dB(A)",null,{"$f":"IF(OR(Antragsform=\"\",$D$3=\"\"),\"Bitte Antragsform und Wärmepumpen-Typ auswählen\",HLOOKUP($D$2&\" \"&$D$3,'Anforderung Antragsteller'!$C$5:$AK$51,ROW()-5,))","v":{"$error":"#N/A"}},null,{"$f":"IF($D$2=\"\",\"Bitte Antragsform auswählen\",HLOOKUP($D$2,'Prüfer-Hinweis'!$C$3:$I$49,ROW()-4,))","v":{"$error":"#N/A"}},{"$f":"IF($D$2=\"\",\"Bitte Antragsform auswählen\",HLOOKUP($D$2,'Prüfung Priorität'!$C$3:$I$50,ROW()-4,))","v":{"$error":"#N/A"}}]
[null,"maximaler Schallleistungspegel in dB(A) und dazugehörige Heizleistung in kW",null,{"$f":"IF(OR(Antragsform=\"\",$D$3=\"\"),\"Bitte Antragsform und Wärmepumpen-Typ auswählen\",HLOOKUP($D$2&\" \"&$D$3,'Anforderung Antragsteller'!$C$5:$AK$51,ROW()-5,))","v":{"$error":"#N/A"}},null,{"$f":"IF($D$2=\"\",\"Bitte Antragsform auswählen\",HLOOKUP($D$2,'Prüfer-Hinweis'!$C$3:$I$49,ROW()-4,))","v":{"$error":"#N/A"}},{"$f":"IF($D$2=\"\",\"Bitte Antragsform auswählen\",HLOOKUP($D$2,'Prüfung Priorität'!$C$3:$I$50,ROW()-4,))","v":{"$error":"#N/A"}}]
[null,"maximaler Schallleistungspegel \"Silent-Mode\" in dB(A) und dazugehörige Heizleistung in kW",null,{"$f":"IF(OR(Antragsform=\"\",$D$3=\"\"),\"Bitte Antragsform und Wärmepumpen-Typ auswählen\",HLOOKUP($D$2&\" \"&$D$3,'Anforderung Antragsteller'!$C$5:$AK$51,ROW()-5,))","v":{"$error":"#N/A"}},null,{"$f":"IF($D$2=\"\",\"Bitte Antragsform auswählen\",HLOOKUP($D$2,'Prüfer-Hinweis'!$C$3:$I$49,ROW()-4,))","v":{"$error":"#N/A"}},{"$f":"IF($D$2=\"\",\"Bitte Antragsform auswählen\",HLOOKUP($D$2,'Prüfung Priorität'!$C$3:$I$50,ROW()-4,))","v":{"$error":"#N/A"}}]

{"sheet":"Anforderung Antragsteller","index":4,"n_rows":51,"n_cols":37,"rows_kept":51,"hidden":true,"merged":[[2,2,2,6],[2,7,2,11],[2,12,2,16],[2,17,2,21],[2,22,2,26],[2,27,2,31],[2,32,2,36],[3,2,3,6],[3,7,3,11],[3,12,3,16],[3,17,3,21],[3,22,3,26],[3,27,3,31],[3,32,3,36]]}
["Liste Anforderungen an den Antragsteller je Antrag"]
[]
[null,null,{"$f":"'Dropdown Quelle'!C5","v":"Erstantrag"},{"$nulls":4},{"$f":"'Dropdown Quelle'!D5","v":"Übertragung von anderem Land oder anderem Unternehmen"},{"$nulls":4},{"$f":"'Dropdown Quelle'!E5","v":"1. und 2. Verlängerung  (Gültigkeit max. 9 Jahre)"},{"$nulls":4},{"$f":"'Dropdown Quelle'!F5","v":"ab 3. Verlängerung (Gültigkeit über 9 Jahre)"},{"$nulls":4},{"$f":"'Dropdown Quelle'!G5","v":"Erweiterung von eigenem Gütesiegel"},{"$nulls":4},{"$f":"'Dropdown Quelle'!H5","v":"Änderung der Produktbezeichnungen"},{"$nulls":4},{"$f":"'Dropdown Quelle'!I5","v":"Technische Änderungen am Produkt"}]
[null,null,"Erstantrag (Elterngütesiegel);  Einzelprodukt oder Baureihe",{"$nulls":4},"Übertragung auf Basis eines Elterngütesiegel (Followup-Gütesiegel);   Übertragung zwischen zwei Ländern oder Unternehmen, mit gleicher oder nicht gleicher Produktbezeichnung",{"$nulls":4},"Verlängerung von Elterngütesiegel oder Followup; 1. und 2. Verlängerung des Elterngütesiegels",{"$nulls":4},"Verlängerung von Elterngütesiegel oder Followup; jede weitere Verlängerung",{"$nulls":4},"Erweiterung von Elterngütesiegel oder Followup;  Erweiterung des Gütesiegels um ein oder mehrere Modelle",{"$nulls":4},"Änderung von Elterngütesiegel oder Followup;  Änderung der Produktbezeichnungen",{"$nulls":4},"Technische Änderungen am Produkt"]
[1,"Grundlegendes",{"$f":"$C$3&\" \"&'Dropdown Quelle'!C7","v":"Erstantrag Luft/Wasser"},{"$f":"$C$3&\" \"&'Dropdown Quelle'!D7","v":"Erstantrag Wasser/Wasser"},{"$f":"$C$3&\" \"&'Dropdown Quelle'!E7","v":"Erstantrag Sole/Wasser"},{"$f":"$C$3&\" \"&'Dropdown Quelle'!F7","v":"Erstantrag Luft/Luft"},{"$f":"$C$3&\" \"&'Dropdown Quelle'!G7","v":"Erstantrag Brauchwasser Wärmepumpe"},{"$f":"$H$3&\" \"&'Dropdown Quelle'!C7","v":"Übertragung von anderem Land oder anderem Unternehmen Luft/Wasser"},{"$f":"$H$3&\" \"&'Dropdown Quelle'!D7","v":"Übertragung von anderem Land oder anderem Unternehmen Wasser/Wasser"},{"$f":"$H$3&\" \"&'Dropdown Quelle'!E7","v":"Übertragung von anderem Land oder anderem Unternehmen Sole/Wasser"},{"$f":"$H$3&\" \"&'Dropdown Quelle'!F7","v":"Übertragung von anderem Land oder anderem Unternehmen Luft/Luft"},{"$f":"$H$3&\" \"&'Dropdown Quelle'!G7","v":"Übertragung von anderem Land oder anderem Unternehmen Brauchwasser Wärmepumpe"},{"$f":"$M$3&\" \"&'Dropdown Quelle'!C7","v":"1. und 2. Verlängerung  (Gültigkeit max. 9 Jahre) Luft/Wasser"},{"$f":"$M$3&\" \"&'Dropdown Quelle'!D7","v":"1. und 2. Verlängerung  (Gültigkeit max. 9 Jahre) Wasser/Wasser"},{"$f":"$M$3&\" \"&'Dropdown Quelle'!E7","v":"1. und 2. Verlängerung  (Gültigkeit max. 9 Jahre) Sole/Wasser"},{"$f":"$M$3&\" \"&'Dropdown Quelle'!F7","v":"1. und 2. Verlängerung  (Gültigkeit max. 9 Jahre) Luft/Luft"},{"$f":"$M$3&\" \"&'Dropdown Quelle'!G7","v":"1. und 2. Verlängerung  (Gültigkeit max. 9 Jahre) Brauchwasser Wärmepumpe"},{"$f":"$R$3&\" \"&'Dropdown Quelle'!C7","v":"ab 3. Verlängerung (Gültigkeit über 9 Jahre) Luft/Wasser"},{"$f":"$R$3&\" \"&'Dropdown Quelle'!D7","v":"ab 3. Verlängerung (Gültigkeit über 9 Jahre) Wasser/Wasser"},{"$f":"$R$3&\" \"&'Dropdown Quelle'!E7","v":"ab 3. Verlängerung (Gültigkeit über 9 Jahre) Sole/Wasser"},{"$f":"$R$3&\" \"&'Dropdown Quelle'!F7","v":"ab 3. Verlängerung (Gültigkeit über 9 Jahre) Luft/Luft"},{"$f":"$R$3&\" \"&'Dropdown Quelle'!G7","v":"ab 3. Verlängerung (Gültigkeit über 9 Jahre) Brauchwasser Wärmepumpe"},{"$f":"$W$3&\" \"&'Dropdown Quelle'!C7","v":"Erweiterung von eigenem Gütesiegel Luft/Wasser"},{"$f":"$W$3&\" \"&'Dropdown Quelle'!D7","v":"Erweiterung von eigenem Gütesiegel Wasser/Wasser"},{"$f":"$W$3&\" \"&'Dropdown Quelle'!E7","v":"Erweiterung von eigenem Gütesiegel Sole/Wasser"},{"$f":"$W$3&\" \"&'Dropdown Quelle'!F7","v":"Erweiterung von eigenem Gütesiegel Luft/Luft"},{"$f":"$W$3&\" \"&'Dropdown Quelle'!G7","v":"Erweiterung von eigenem Gütesiegel Brauchwasser Wärmepumpe"},{"$f":"$AB$3&\" \"&'Dropdown Quelle'!C7","v":"Änderung der Produktbezeichnungen Luft/Wasser"},{"$f":"$AB$3&\" \"&'Dropdown Quelle'!D7","v":"Änderung der Produktbezeichnungen Wasser/Wasser"},{"$f":"$AB$3&\" \"&'Dropdown Quelle'!E7","v":"Änderung der Produktbezeichnungen Sole/Wasser"},{"$f":"$AB$3&\" \"&'Dropdown Quelle'!F7","v":"Änderung der Produktbezeichnungen Luft/Luft"},{"$f":"$AB$3&\" \"&'Dropdown Quelle'!G7","v":"Änderung der Produktbezeichnungen Brauchwasser Wärmepumpe"},{"$f":"$AG$3&\" \"&'Dropdown Quelle'!C7","v":"Technische Änderungen am Produkt Luft/Wasser"},{"$f":"$AG$3&\" \"&'Dropdown Quelle'!D7","v":"Technische Änderungen am Produkt Wasser/Wasser"},{"$f":"$AG$3&\" \"&'Dropdown Quelle'!E7","v":"Technische Änderungen am Produkt Sole/Wasser"},{"$f":"$AG$3&\" \"&'Dropdown Quelle'!F7","v":"Technische Änderungen am Produkt Luft/Luft"},{"$f":"$AG$3&\" \"&'Dropdown Quelle'!G7","v":"Technische Änderungen am Produkt Brauchwasser Wärmepumpe"}]
[null,"akkreditierte Prüfberichte nach EN 12102-1 und -2, EN 14511-2 bis 4 und EN 14825, bzw. EN 16147 bei Trinkwasser\nAnzahl hängt vom Umfang der Modelreihe ab","-","-","-","-","-","-","-","-","-","-","-","-","-","-","-","-","-","-","-","-","-","-","-","-","-","-","-","-","-","-","-","-","-","-","-"]
[null,"- Unterschriebener detaillierter akkreditierter Leistungs-Prüfbericht nach EHPA Regularien oder HP-Keymark Regularien UND","erforderlich",{"$f":"$C7","v":"erforderlich"},"erforderlich","erforderlich","erforderlich","erforderlich",{"$f":"$H7","v":"erforderlich"},"erforderlich","erforderlich","erforderlich","nicht erforderlich",{"$f":"$M7","v":"nicht erforderlich"},{"$f":"$M7","v":"nicht erforderlich"},{"$f":"$M7","v":"nicht erforderlich"},{"$f":"$M7","v":"nicht erforderlich"},"erforderlich, wenn von der EHPA Gütesiegelkommission nachgefordert",{"$f":"$R7","v":"erforderlich, wenn von der EHPA Gütesiegelkommission nachgefordert"},"erforderlich, wenn von der EHPA Gütesiegelkommission nachgefordert","erforderlich, wenn von der EHPA Gütesiegelkommission nachgefordert","erforderlich, wenn von der EHPA Gütesiegelkommission nachgefordert","erforderlich, wenn sich die Mindestanzahl der geprüften Geräte durch die Erweiterung der Baurehe ändert",{"$f":"$W7","v":"erforderlich, wenn sich die Mindestanzahl der geprüften Geräte durch die Erweiterung der Baurehe ändert"},{"$f":"$W7","v":"erforderlich, wenn sich die Mindestanzahl der geprüften Geräte durch die Erweiterung der Baurehe ändert"},"erforderlich, wenn sich die Mindestanzahl der geprüften Geräte durch die Erweiterung der Baurehe ändert","erforderlich, wenn sich die Mindestanzahl der geprüften Geräte durch die Erweiterung der Baurehe ändert","nicht erforderlich",{"$f":"$AB7","v":"nicht erforderlich"},{"$f":"$AB7","v":"nicht erforderlich"},"nicht erforderlich","nicht erforderlich","erforderlich, wenn von der EHPA Gütesiegelkommission nachgefordert",{"$f":"$AG7","v":"erforderlich, wenn von der EHPA Gütesiegelkommission nachgefordert"},{"$f":"$AG7","v":"erforderlich, wenn von der EHPA Gütesiegelkommission nachgefordert"},"erforderlich, wenn von der EHPA Gütesiegelkommission nachgefordert","erforderlich, wenn von der EHPA Gütesiegelkommission nachgefordert"]
[null,"- Unterschriebener detaillierter akkreditierter Schall-Prüfbericht  nach EHPA Regularien oder HP-Keymark Regularien UND","erforderlich","erforderlich","erforderlich","erforderlich","erforderlich","erforderlich","erforderlich","erforderlich","erforderlich","erforderlich","nicht erforderlich",{"$f":"$M8","v":"nicht erforderlich"},"nicht erforderlich","nicht erforderlich","nicht erforderlich","erforderlich, wenn von der EHPA Gütesiegelkommission nachgefordert","erforderlich, wenn von der EHPA Gütesiegelkommission nachgefordert","erforderlich, wenn von der EHPA Gütesiegelkommission nachgefordert","erforderlich, wenn von der EHPA Gütesiegelkommission nachgefordert","erforderlich, wenn von der EHPA Gütesiegelkommission nachgefordert","erforderlich, wenn sich die Mindestanzahl der geprüften Geräte durch die Erweiterung der Baurehe ändert",{"$f":"$W8","v":"erforderlich, wenn sich die Mindestanzahl der geprüften Geräte durch die Erweiterung der Baurehe ändert"},"erforderlich, wenn sich die Mindestanzahl der geprüften Geräte durch die Erweiterung der Baurehe ändert","erforderlich, wenn sich die Mindestanzahl der geprüften Geräte durch die Erweiterung der Baurehe ändert","erforderlich, wenn sich die Mindestanzahl der geprüften Geräte durch die Erweiterung der Baurehe ändert","nicht erforderlich",{"$f":"$AB8","v":"nicht erforderlich"},"nicht erforderlich","nicht erforderlich","nicht erforderlich","erforderlich, wenn von der EHPA Gütesiegelkommission nachgefordert",{"$f":"$AG8","v":"erforderlich, wenn von der EHPA Gütesiegelkommission nachgefordert"},"erforderlich, wenn von der EHPA Gütesiegelkommission nachgefordert","erforderlich, wenn von der EHPA Gütesiegelkommission nachgefordert","erforderlich, wenn von der EHPA Gütesiegelkommission nachgefordert"]
[null,"SCOP Anforderungen für Heizungs-Wärmepumpen","-","-","-","-","-","-","-","-","-","-","-","-","-","-","-","-","-","-","-","-","-","-","-","-","-","-","-","-","-","-","-","-","-","-","-"]
[null,"- Niedertemperaturanwendung (35°C) und durchschnittliches Klima:\n       SCOP Min : 3,70 (A/W)         SCOP Min : 4,70 (B/W, W/W)\n       SCOP Min : 4,10 (DX/W)       SCOP Min : 3,40 (A/A)","erforderlich",{"$f":"$C10","v":"erforderlich"},"erforderlich","erforderlich","nicht erforderlich","muss nicht erneut eingereicht werden",{"$f":"$H10","v":"muss nicht erneut eingereicht werden"},"muss nicht erneut eingereicht werden","muss nicht erneut eingereicht werden","nicht erforderlich","nicht erforderlich",{"$f":"$M10","v":"nicht erforderlich"},"nicht erforderlich","nicht erforderlich","nicht erforderlich","erforderlich",{"$f":"$R10","v":"erforderlich"},"erforderlich","erforderlich","nicht erforderlich","erforderlich",{"$f":"$W10","v":"erforderlich"},"erforderlich","erforderlich","nicht erforderlich","nicht erforderlich","nicht erforderlich","nicht erforderlich","nicht erforderlich","nicht erforderlich","erforderlich, wenn von der EHPA Gütesiegelkommission nachgefordert",{"$f":"$AG10","v":"erforderlich, wenn von der EHPA Gütesiegelkommission nachgefordert"},"erforderlich, wenn von der EHPA Gütesiegelkommission nachgefordert","erforderlich, wenn von der EHPA Gütesiegelkommission nachgefordert","erforderlich, wenn von der EHPA Gütesiegelkommission nachgefordert"]
[null,"- Mitteltemperaturanwendung (55°C) und durchschnittliches Klima:\n       SCOP Min : 3,20 (A/W)       SCOP Min : 3,70 (B/W, W/W)\n       SCOP Min : 3,38 (DX/W)","erforderlich","erforderlich","erforderlich","erforderlich","nicht erforderlich","muss nicht erneut eingereicht werden","muss nicht erneut eingereicht werden","muss nicht erneut eingereicht werden","muss nicht erneut eingereicht werden","nicht erforderlich","nicht erforderlich","nicht erforderlich","nicht erforderlich","nicht erforderlich","nicht erforderlich","erforderlich","erforderlich","erforderlich","erforderlich","nicht erforderlich","erforderlich",{"$f":"$W11","v":"erforderlich"},"erforderlich","erforderlich","nicht erforderlich","nicht erforderlich","nicht erforderlich","nicht erforderlich","nicht erforderlich","nicht erforderlich","erforderlich, wenn von der EHPA Gütesiegelkommission nachgefordert","erforderlich, wenn von der EHPA Gütesiegelkommission nachgefordert","erforderlich, wenn von der EHPA Gütesiegelkommission nachgefordert","erforderlich, wenn von der EHPA Gütesiegelkommission nachgefordert","erforderlich, wenn von der EHPA Gütesiegelkommission nachgefordert"]
[null,"Anforderungen für Brauchwasser-Wärmepumpen","-","-","-","-","-","-","-","-","-","-","-","-","-","-","-","-","-","-","-","-","-","-","-","-","-","-","-","-","-","-","-","-","-","-","-"]
[null,"- Die Wärmpumpe muss mindestens 52°C Warmwasser erzeugen können","nicht erforderlich",{"$f":"$C13","v":"nicht erforderlich"},"nicht erforderlich","nicht erforderlich","erforderlich","nicht erforderlich",{"$f":"$H13","v":"nicht erforderlich"},{"$f":"$H13","v":"nicht erforderlich"},{"$f":"$H13","v":"nicht erforderlich"},"erforderlich","nicht erforderlich","nicht erforderlich","nicht erforderlich","nicht erforderlich","nicht erforderlich","nicht erforderlich",{"$f":"$R13","v":"nicht erforderlich"},"nicht erforderlich","nicht erforderlich","erforderlich","nicht erforderlich",{"$f":"$W13","v":"nicht erforderlich"},"nicht erforderlich","nicht erforderlich","erforderlich","nicht erforderlich","nicht erforderlich","nicht erforderlich","nicht erforderlich","nicht erforderlich","erforderlich, wenn von der EHPA Gütesiegelkommission nachgefordert",{"$f":"$AG13","v":"erforderlich, wenn von der EHPA Gütesiegelkommission nachgefordert"},"erforderlich, wenn von der EHPA Gütesiegelkommission nachgefordert","erforderlich, wenn von der EHPA Gütesiegelkommission nachgefordert","erforderlich, wenn von der EHPA Gütesiegelkommission nachgefordert"]
[null,"- Minmaler \"SCOP_domestic hot water\", bzw. \"COP_domestic hot water\" wird eingehalten\nA7 ≥ 2,8 / A15 ≥ 2,9 / A20 ≥ 3,2 / B0 ≥ 2,8 / W10 ≥ 3,0","nicht erforderlich","nicht erforderlich","nicht erforderlich","nicht erforderlich","erforderlich","nicht erforderlich",{"$f":"$H14","v":"nicht erforderlich"},"nicht erforderlich","nicht erforderlich","erforderlich","nicht erforderlich","nicht erforderlich","nicht erforderlich","nicht erforderlich","nicht erforderlich","nicht erforderlich","nicht erforderlich","nicht erforderlich","nicht erforderlich","erforderlich","nicht erforderlich",{"$f":"$W14","v":"nicht erforderlich"},"nicht erforderlich","nicht erforderlich","erforderlich","nicht erforderlich","nicht erforderlich","nicht erforderlich","nicht erforderlich","nicht erforderlich","erforderlich, wenn von der EHPA Gütesiegelkommission nachgefordert","erforderlich, wenn von der EHPA Gütesiegelkommission nachgefordert","erforderlich, wenn von der EHPA Gütesiegelkommission nachgefordert","erforderlich, wenn von der EHPA Gütesiegelkommission nachgefordert","erforderlich, wenn von der EHPA Gütesiegelkommission nachgefordert"]
[null,"Unterfertigte Baugleicheitsbescheinigung des Herstellers, falls die Produktbezeichnungen am Prüfbericht/HP Keymark und am EHPA Label nicht gleich sind (siehe Vorlage unter www.waermepumpe-austria.at/dienste/guetesiegel/dokumente-und-links)","erforderlich, wenn die Produktbezeichnungen am akkreditierten Prüfbericht anders ist als im EHPA-Gütesiegel Antrag","erforderlich, wenn die Produktbezeichnungen am akkreditierten Prüfbericht anders ist als im EHPA-Gütesiegel Antrag","erforderlich, wenn die Produktbezeichnungen am akkreditierten Prüfbericht anders ist als im EHPA-Gütesiegel Antrag","erforderlich, wenn die Produktbezeichnungen am akkreditierten Prüfbericht anders ist als im EHPA-Gütesiegel Antrag",{"$f":"$C15","v":"erforderlich, wenn die Produktbezeichnungen am akkreditierten Prüfbericht anders ist als im EHPA-Gütesiegel Antrag"},"erforderlich, wenn die Produkte anders bezeichnet werden sollen als am Elterngütesiegel oder im Prüfbericht","erforderlich, wenn die Produkte anders bezeichnet werden sollen als am Elterngütesiegel oder im Prüfbericht","erforderlich, wenn die Produkte anders bezeichnet werden sollen als am Elterngütesiegel oder im Prüfbericht","erforderlich, wenn die Produkte anders bezeichnet werden sollen als am Elterngütesiegel oder im Prüfbericht","erforderlich, wenn die Produkte anders bezeichnet werden sollen als am Elterngütesiegel oder im Prüfbericht","nicht erforderlich","nicht erforderlich","nicht erforderlich","nicht erforderlich","nicht erforderlich","erforderlich, wenn von der EHPA Gütesiegelkommission nachgefordert",{"$f":"$R15","v":"erforderlich, wenn von der EHPA Gütesiegelkommission nachgefordert"},"erforderlich, wenn von der EHPA Gütesiegelkommission nachgefordert","erforderlich, wenn von der EHPA Gütesiegelkommission nachgefordert","erforderlich, wenn von der EHPA Gütesiegelkommission nachgefordert","erforderlich, wenn die Produktbezeichnungen am akkreditierten Prüfbericht anders ist als im EHPA-Gütesiegel Antrag",{"$f":"$W15","v":"erforderlich, wenn die Produktbezeichnungen am akkreditierten Prüfbericht anders ist als im EHPA-Gütesiegel Antrag"},"erforderlich, wenn die Produktbezeichnungen am akkreditierten Prüfbericht anders ist als im EHPA-Gütesiegel Antrag","erforderlich, wenn die Produktbezeichnungen am akkreditierten Prüfbericht anders ist als im EHPA-Gütesiegel Antrag","erforderlich, wenn die Produktbezeichnungen am akkreditierten Prüfbericht anders ist als im EHPA-Gütesiegel Antrag","erforderlich","erforderlich","erforderlich","erforderlich","erforderlich","erforderlich, wenn von der EHPA Gütesiegelkommission nachgefordert","erforderlich, wenn von der EHPA Gütesiegelkommission nachgefordert","erforderlich, wenn von der EHPA Gütesiegelkommission nachgefordert","erforderlich, wenn von der EHPA Gütesiegelkommission nachgefordert","erforderlich, wenn von der EHPA Gütesiegelkommission nachgefordert"]
[null,"Unterfertigte CE-Konformitäts-Erklärung","erforderlich","erforderlich","erforderlich","erforderlich",{"$f":"$C16","v":"erforderlich"},"erforderlich, wenn die Produkte anders bezeichnet werden sollen als am Elterngütesiegel oder das  Elterngütesiegel in einem nicht Deutsch sprachigen Land ausgesetllt wurde","erforderlich, wenn die Produkte anders bezeichnet werden sollen als am Elterngütesiegel oder das  Elterngütesiegel in einem nicht Deutsch sprachigen Land ausgesetllt wurde","erforderlich, wenn die Produkte anders bezeichnet werden sollen als am Elterngütesiegel oder das  Elterngütesiegel in einem nicht Deutsch sprachigen Land ausgesetllt wurde","erforderlich, wenn die Produkte anders bezeichnet werden sollen als am Elterngütesiegel oder das  Elterngütesiegel in einem nicht Deutsch sprachigen Land ausgesetllt wurde","erforderlich, wenn die Produkte anders bezeichnet werden sollen als am Elterngütesiegel oder das  Elterngütesiegel in einem nicht Deutsch sprachigen Land ausgesetllt wurde","nicht erforderlich","nicht erforderlich","nicht erforderlich","nicht erforderlich","nicht erforderlich","erforderlich, wenn von der EHPA Gütesiegelkommission nachgefordert","erforderlich, wenn von der EHPA Gütesiegelkommission nachgefordert","erforderlich, wenn von der EHPA Gütesiegelkommission nachgefordert","erforderlich, wenn von der EHPA Gütesiegelkommission nachgefordert","erforderlich, wenn von der EHPA Gütesiegelkommission nachgefordert","erforderlich",{"$f":"$W16","v":"erforderlich"},"erforderlich","erforderlich","erforderlich","erforderlich","erforderlich","erforderlich","erforderlich","erforderlich","erforderlich, wenn von der EHPA Gütesiegelkommission nachgefordert","erforderlich, wenn von der EHPA Gütesiegelkommission nachgefordert","erforderlich, wenn von der EHPA Gütesiegelkommission nachgefordert","erforderlich, wenn von der EHPA Gütesiegelkommission nachgefordert","erforderlich, wenn von der EHPA Gütesiegelkommission nachgefordert"]
[null,"Formelle Zustimmung vom Elterngütesiegel-Halter (siehe Vorlage unter www.waermepumpe-austria.at/dienste/guetesiegel/dokumente-und-links)","nicht erforderlich","nicht erforderlich","nicht erforderlich","nicht erforderlich",{"$f":"$C17","v":"nicht erforderlich"},"erforderlich, wenn das Unternhmen am Elterngütesiegel anders lautet als am Übertragungs-Gütesiegel (Followup)","erforderlich, wenn das Unternhmen am Elterngütesiegel anders lautet als am Übertragungs-Gütesiegel (Followup)","erforderlich, wenn das Unternhmen am Elterngütesiegel anders lautet als am Übertragungs-Gütesiegel (Followup)","erforderlich, wenn das Unternhmen am Elterngütesiegel anders lautet als am Übertragungs-Gütesiegel (Followup)","erforderlich, wenn das Unternhmen am Elterngütesiegel anders lautet als am Übertragungs-Gütesiegel (Followup)","nicht erforderlich","nicht erforderlich","nicht erforderlich","nicht erforderlich","nicht erforderlich","nicht erforderlich",{"$f":"$R17","v":"nicht erforderlich"},"nicht erforderlich","nicht erforderlich","nicht erforderlich","nicht erforderlich",{"$f":"$W17","v":"nicht erforderlich"},"nicht erforderlich","nicht erforderlich","nicht erforderlich","nicht erforderlich","nicht erforderlich","nicht erforderlich","nicht erforderlich","nicht erforderlich","nicht erforderlich","nicht erforderlich","nicht erforderlich","nicht erforderlich","nicht erforderlich"]
[2,"Antrag","-","-","-","-","-","-","-","-","-","-","-","-","-","-","-","-","-","-","-","-","-","-","-","-","-","-","-","-","-","-","-","-","-","-","-"]
[null,"Hauptkomponenten Liste hochladen (Hersteller, Typenbezeichnung) und in der Online-Maske im Model inkl. SCOP Werte ausfüllen.","erforderlich",{"$f":"$C19","v":"erforderlich"},"erforderlich","erforderlich","erforderlich","muss nicht erneut eingereicht werden",{"$f":"$H19","v":"muss nicht erneut eingereicht werden"},"muss nicht erneut eingereicht werden","muss nicht erneut eingereicht werden","muss nicht erneut eingereicht werden","nicht erforderlich",{"$f":"$M19","v":"nicht erforderlich"},"nicht erforderlich","nicht erforderlich","nicht erforderlich","erforderlich, wenn von der EHPA Gütesiegelkommission nachgefordert",{"$f":"$R19","v":"erforderlich, wenn von der EHPA Gütesiegelkommission nachgefordert"},"erforderlich, wenn von der EHPA Gütesiegelkommission nachgefordert","erforderlich, wenn von der EHPA Gütesiegelkommission nachgefordert","erforderlich, wenn von der EHPA Gütesiegelkommission nachgefordert","erforderlich",{"$f":"$W19","v":"erforderlich"},"erforderlich","erforderlich","erforderlich","nicht erforderlich","nicht erforderlich","nicht erforderlich","nicht erforderlich","nicht erforderlich","erforderlich, wenn von der EHPA Gütesiegelkommission nachgefordert",{"$f":"$AG19","v":"erforderlich, wenn von der EHPA Gütesiegelkommission nachgefordert"},"erforderlich, wenn von der EHPA Gütesiegelkommission nachgefordert","erforderlich, wenn von der EHPA Gütesiegelkommission nachgefordert","erforderlich, wenn von der EHPA Gütesiegelkommission nachgefordert"]
[null,"Eintragen der Daten nach EN 14511, EN 14825 und EN 12102-1 in der Online-Maske bei den einzelnen Modellen ausfüllen.","erforderlich","erforderlich","erforderlich","erforderlich","erforderlich","muss nicht erneut eingereicht werden","muss nicht erneut eingereicht werden","muss nicht erneut eingereicht werden","muss nicht erneut eingereicht werden","muss nicht erneut eingereicht werden","nicht erforderlich","nicht erforderlich","nicht erforderlich","nicht erforderlich","nicht erforderlich","erforderlich","erforderlich","erforderlich","erforderlich","erforderlich","erforderlich",{"$f":"$W20","v":"erforderlich"},"erforderlich","erforderlich","erforderlich","erforderlich","erforderlich","erforderlich","erforderlich","erforderlich","erforderlich",{"$f":"$AG20","v":"erforderlich"},"erforderlich","erforderlich","erforderlich"]
[3,"Kundenservice  (deutschsprachig)","-","-","-","-","-","-","-","-","-","-","-","-","-","-","-","-","-","-","-","-","-","-","-","-","-","-","-","-","-","-","-","-","-","-","-"]
[null,"Formular-Vorlage für den Inbetriebnahme- und Wartungs-Techniker","erforderlich",{"$f":"$C22","v":"erforderlich"},"erforderlich","erforderlich","erforderlich","erforderlich, wenn Elterngütesiegel in einem nicht Deutsch sprachigen Land ausgesetllt wurde",{"$f":"$H22","v":"erforderlich, wenn Elterngütesiegel in einem nicht Deutsch sprachigen Land ausgesetllt wurde"},"erforderlich, wenn Elterngütesiegel in einem nicht Deutsch sprachigen Land ausgesetllt wurde","erforderlich, wenn Elterngütesiegel in einem nicht Deutsch sprachigen Land ausgesetllt wurde","erforderlich, wenn Elterngütesiegel in einem nicht Deutsch sprachigen Land ausgesetllt wurde","nicht erforderlich",{"$f":"$M22","v":"nicht erforderlich"},"nicht erforderlich","nicht erforderlich","nicht erforderlich","erforderlich, wenn von der EHPA Gütesiegelkommission nachgefordert",{"$f":"$R22","v":"erforderlich, wenn von der EHPA Gütesiegelkommission nachgefordert"},"erforderlich, wenn von der EHPA Gütesiegelkommission nachgefordert","erforderlich, wenn von der EHPA Gütesiegelkommission nachgefordert","erforderlich, wenn von der EHPA Gütesiegelkommission nachgefordert","muss nicht erneut eingereicht werden",{"$f":"$W22","v":"muss nicht erneut eingereicht werden"},"muss nicht erneut eingereicht werden","muss nicht erneut eingereicht werden","muss nicht erneut eingereicht werden","nicht erforderlich","nicht erforderlich","nicht erforderlich","nicht erforderlich","nicht erforderlich","nicht erforderlich",{"$f":"$AG22","v":"nicht erforderlich"},"nicht erforderlich","nicht erforderlich","nicht erforderlich"]
[null,"Garantie für mindestens 2 Jahre","erforderlich","erforderlich","erforderlich","erforderlich","erforderlich","erforderlich, wenn das Unternhmen und/oder die Produktnamen am Elterngütesiegel anders lauten als am Übertragungs-Gütesiegel (Followup)","erforderlich, wenn das Unternhmen und/oder die Produktnamen am Elterngütesiegel anders lauten als am Übertragungs-Gütesiegel (Followup)","erforderlich, wenn das Unternhmen und/oder die Produktnamen am Elterngütesiegel anders lauten als am Übertragungs-Gütesiegel (Followup)","erforderlich, wenn das Unternhmen und/oder die Produktnamen am Elterngütesiegel anders lauten als am Übertragungs-Gütesiegel (Followup)","erforderlich, wenn das Unternhmen und/oder die Produktnamen am Elterngütesiegel anders lauten als am Übertragungs-Gütesiegel (Followup)","nicht erforderlich","nicht erforderlich","nicht erforderlich","nicht erforderlich","nicht erforderlich","erforderlich, wenn von der EHPA Gütesiegelkommission nachgefordert","erforderlich, wenn von der EHPA Gütesiegelkommission nachgefordert","erforderlich, wenn von der EHPA Gütesiegelkommission nachgefordert","erforderlich, wenn von der EHPA Gütesiegelkommission nachgefordert","erforderlich, wenn von der EHPA Gütesiegelkommission nachgefordert","muss nicht erneut eingereicht werden","muss nicht erneut eingereicht werden","muss nicht erneut eingereicht werden","muss nicht erneut eingereicht werden","muss nicht erneut eingereicht werden","nicht erforderlich","nicht erforderlich","nicht erforderlich","nicht erforderlich","nicht erforderlich","nicht erforderlich","nicht erforderlich","nicht erforderlich","nicht erforderlich","nicht erforderlich"]
[null,"Ersatzteilgarantie für mindestens 10 Jahre","erforderlich","erforderlich","erforderlich","erforderlich","erforderlich","erforderlich, wenn das Unternhmen und/oder die Produktnamen am Elterngütesiegel anders lauten als am Übertragungs-Gütesiegel (Followup)","erforderlich, wenn das Unternhmen und/oder die Produktnamen am Elterngütesiegel anders lauten als am Übertragungs-Gütesiegel (Followup)","erforderlich, wenn das Unternhmen und/oder die Produktnamen am Elterngütesiegel anders lauten als am Übertragungs-Gütesiegel (Followup)","erforderlich, wenn das Unternhmen und/oder die Produktnamen am Elterngütesiegel anders lauten als am Übertragungs-Gütesiegel (Followup)","erforderlich, wenn das Unternhmen und/oder die Produktnamen am Elterngütesiegel anders lauten als am Übertragungs-Gütesiegel (Followup)","nicht erforderlich","nicht erforderlich","nicht erforderlich","nicht erforderlich","nicht erforderlich","erforderlich, wenn von der EHPA Gütesiegelkommission nachgefordert","erforderlich, wenn von der EHPA Gütesiegelkommission nachgefordert","erforderlich, wenn von der EHPA Gütesiegelkommission nachgefordert","erforderlich, wenn von der EHPA Gütesiegelkommission nachgefordert","erforderlich, wenn von der EHPA Gütesiegelkommission nachgefordert","muss nicht erneut eingereicht werden","muss nicht erneut eingereicht werden","muss nicht erneut eingereicht werden","muss nicht erneut eingereicht werden","muss nicht erneut eingereicht werden","nicht erforderlich",{"$f":"$AB24","v":"nicht erforderlich"},"nicht erforderlich","nicht erforderlich","nicht erforderlich","nicht erforderlich","nicht erforderlich","nicht erforderlich","nicht erforderlich","nicht erforderlich"]
[null,"Reaktionszeit des Kundendienstes im Vertriebsgebiet innerhalb von 24\nStunden und Kontaktdaten zum Kundendienst im Vertriebsgebiet   (siehe Vorlage unter www.waermepumpe-austria.at/dienste/guetesiegel/dokumente-und-links)","erforderlich","erforderlich","erforderlich","erforderlich","erforderlich","erforderlich","erforderlich","erforderlich","erforderlich","erforderlich","nicht erforderlich","nicht erforderlich","nicht erforderlich","nicht erforderlich","nicht erforderlich","erforderlich, wenn von der EHPA Gütesiegelkommission nachgefordert","erforderlich, wenn von der EHPA Gütesiegelkommission nachgefordert","erforderlich, wenn von der EHPA Gütesiegelkommission nachgefordert","erforderlich, wenn von der EHPA Gütesiegelkommission nachgefordert","erforderlich, wenn von der EHPA Gütesiegelkommission nachgefordert","muss nicht erneut eingereicht werden","muss nicht erneut eingereicht werden","muss nicht erneut eingereicht werden","muss nicht erneut eingereicht werden","muss nicht erneut eingereicht werden","nicht erforderlich","nicht erforderlich","nicht erforderlich","nicht erforderlich","nicht erforderlich","nicht erforderlich","nicht erforderlich","nicht erforderlich","nicht erforderlich","nicht erforderlich"]
[4,"Bedienungsanleitungen  (deutschsprachig)","-","-","-","-","-","-","-","-","-","-","-","-","-","-","-","-","-","-","-","-","-","-","-","-","-","-","-","-","-","-","-","-","-","-","-"]
[null,"Informationen und Sicherheitshinweise für eine ordnungsgemäße\nNutzung","erforderlich",{"$f":"$C27","v":"erforderlich"},"erforderlich","erforderlich","erforderlich","erforderlich, wenn die Produkte anders bezeichnet werden sollen als am Elterngütesiegel oder das  Elterngütesiegel in einem nicht Deutsch sprachigen Land ausgesetllt wurde",{"$f":"$H27","v":"erforderlich, wenn die Produkte anders bezeichnet werden sollen als am Elterngütesiegel oder das  Elterngütesiegel in einem nicht Deutsch sprachigen Land ausgesetllt wurde"},"erforderlich, wenn die Produkte anders bezeichnet werden sollen als am Elterngütesiegel oder das  Elterngütesiegel in einem nicht Deutsch sprachigen Land ausgesetllt wurde","erforderlich, wenn die Produkte anders bezeichnet werden sollen als am Elterngütesiegel oder das  Elterngütesiegel in einem nicht Deutsch sprachigen Land ausgesetllt wurde","erforderlich, wenn die Produkte anders bezeichnet werden sollen als am Elterngütesiegel oder das  Elterngütesiegel in einem nicht Deutsch sprachigen Land ausgesetllt wurde","nicht erforderlich",{"$f":"$M27","v":"nicht erforderlich"},"nicht erforderlich","nicht erforderlich","nicht erforderlich","erforderlich, wenn von der EHPA Gütesiegelkommission nachgefordert",{"$f":"$R27","v":"erforderlich, wenn von der EHPA Gütesiegelkommission nachgefordert"},"erforderlich, wenn von der EHPA Gütesiegelkommission nachgefordert","erforderlich, wenn von der EHPA Gütesiegelkommission nachgefordert","erforderlich, wenn von der EHPA Gütesiegelkommission nachgefordert","erforderlich",{"$f":"$W27","v":"erforderlich"},"erforderlich","erforderlich","erforderlich","erforderlich für neue Produktnamen",{"$f":"$AB27","v":"erforderlich für neue Produktnamen"},"erforderlich für neue Produktnamen","erforderlich für neue Produktnamen","erforderlich für neue Produktnamen","erforderlich, wenn von der EHPA Gütesiegelkommission nachgefordert",{"$f":"$AG27","v":"erforderlich, wenn von der EHPA Gütesiegelkommission nachgefordert"},"erforderlich, wenn von der EHPA Gütesiegelkommission nachgefordert","erforderlich, wenn von der EHPA Gütesiegelkommission nachgefordert","erforderlich, wenn von der EHPA Gütesiegelkommission nachgefordert"]
[null,"Anleitung zur Bedienung der Wärmepumpe","erforderlich","erforderlich","erforderlich","erforderlich","erforderlich","erforderlich, wenn die Produkte anders bezeichnet werden sollen als am Elterngütesiegel oder das  Elterngütesiegel in einem nicht Deutsch sprachigen Land ausgesetllt wurde","erforderlich, wenn die Produkte anders bezeichnet werden sollen als am Elterngütesiegel oder das  Elterngütesiegel in einem nicht Deutsch sprachigen Land ausgesetllt wurde","erforderlich, wenn die Produkte anders bezeichnet werden sollen als am Elterngütesiegel oder das  Elterngütesiegel in einem nicht Deutsch sprachigen Land ausgesetllt wurde","erforderlich, wenn die Produkte anders bezeichnet werden sollen als am Elterngütesiegel oder das  Elterngütesiegel in einem nicht Deutsch sprachigen Land ausgesetllt wurde","erforderlich, wenn die Produkte anders bezeichnet werden sollen als am Elterngütesiegel oder das  Elterngütesiegel in einem nicht Deutsch sprachigen Land ausgesetllt wurde","nicht erforderlich","nicht erforderlich","nicht erforderlich","nicht erforderlich","nicht erforderlich","erforderlich, wenn von der EHPA Gütesiegelkommission nachgefordert","erforderlich, wenn von der EHPA Gütesiegelkommission nachgefordert","erforderlich, wenn von der EHPA Gütesiegelkommission nachgefordert","erforderlich, wenn von der EHPA Gütesiegelkommission nachgefordert","erforderlich, wenn von der EHPA Gütesiegelkommission nachgefordert","erforderlich","erforderlich","erforderlich","erforderlich","erforderlich","erforderlich für neue Produktnamen","erforderlich für neue Produktnamen","erforderlich für neue Produktnamen","erforderlich für neue Produktnamen","erforderlich für neue Produktnamen","erforderlich, wenn von der EHPA Gütesiegelkommission nachgefordert","erforderlich, wenn von der EHPA Gütesiegelkommission nachgefordert","erforderlich, wenn von der EHPA Gütesiegelkommission nachgefordert","erforderlich, wenn von der EHPA Gütesiegelkommission nachgefordert","erforderlich, wenn von der EHPA Gütesiegelkommission nachgefordert"]
[null,"Ersatzteilliste","erforderlich","erforderlich","erforderlich","erforderlich","erforderlich","erforderlich, wenn die Produkte anders bezeichnet werden sollen als am Elterngütesiegel oder das  Elterngütesiegel in einem nicht Deutsch sprachigen Land ausgesetllt wurde","erforderlich, wenn die Produkte anders bezeichnet werden sollen als am Elterngütesiegel oder das  Elterngütesiegel in einem nicht Deutsch sprachigen Land ausgesetllt wurde","erforderlich, wenn die Produkte anders bezeichnet werden sollen als am Elterngütesiegel oder das  Elterngütesiegel in einem nicht Deutsch sprachigen Land ausgesetllt wurde","erforderlich, wenn die Produkte anders bezeichnet werden sollen als am Elterngütesiegel oder das  Elterngütesiegel in einem nicht Deutsch sprachigen Land ausgesetllt wurde","erforderlich, wenn die Produkte anders bezeichnet werden sollen als am Elterngütesiegel oder das  Elterngütesiegel in einem nicht Deutsch sprachigen Land ausgesetllt wurde","nicht erforderlich","nicht erforderlich","nicht erforderlich","nicht erforderlich","nicht erforderlich","erforderlich, wenn von der EHPA Gütesiegelkommission nachgefordert","erforderlich, wenn von der EHPA Gütesiegelkommission nachgefordert","erforderlich, wenn von der EHPA Gütesiegelkommission nachgefordert","erforderlich, wenn von der EHPA Gütesiegelkommission nachgefordert","erforderlich, wenn von der EHPA Gütesiegelkommission nachgefordert","erforderlich","erforderlich","erforderlich","erforderlich","erforderlich","erforderlich für neue Produktnamen","erforderlich für neue Produktnamen","erforderlich für neue Produktnamen","erforderlich für neue Produktnamen","erforderlich für neue Produktnamen","erforderlich, wenn von der EHPA Gütesiegelkommission nachgefordert","erforderlich, wenn von der EHPA Gütesiegelkommission nachgefordert","erforderlich, wenn von der EHPA Gütesiegelkommission nachgefordert","erforderlich, wenn von der EHPA Gütesiegelkommission nachgefordert","erforderlich, wenn von der EHPA Gütesiegelkommission nachgefordert"]
[5,"Installationsanleitungen  (deutschsprachig)","-","-","-","-","-","-","-","-","-","-","-","-","-","-","-","-","-","-","-","-","-","-","-","-","-","-","-","-","-","-","-","-","-","-","-"]
[null,"Installationsanleitung","erforderlich",{"$f":"$C31","v":"erforderlich"},"erforderlich","erforderlich","erforderlich","erforderlich, wenn die Produkte anders bezeichnet werden sollen als am Elterngütesiegel oder das  Elterngütesiegel in einem nicht Deutsch sprachigen Land ausgesetllt wurde",{"$f":"$H31","v":"erforderlich, wenn die Produkte anders bezeichnet werden sollen als am Elterngütesiegel oder das  Elterngütesiegel in einem nicht Deutsch sprachigen Land ausgesetllt wurde"},"erforderlich, wenn die Produkte anders bezeichnet werden sollen als am Elterngütesiegel oder das  Elterngütesiegel in einem nicht Deutsch sprachigen Land ausgesetllt wurde","erforderlich, wenn die Produkte anders bezeichnet werden sollen als am Elterngütesiegel oder das  Elterngütesiegel in einem nicht Deutsch sprachigen Land ausgesetllt wurde","erforderlich, wenn die Produkte anders bezeichnet werden sollen als am Elterngütesiegel oder das  Elterngütesiegel in einem nicht Deutsch sprachigen Land ausgesetllt wurde","nicht erforderlich",{"$f":"$M31","v":"nicht erforderlich"},"nicht erforderlich","nicht erforderlich","nicht erforderlich","erforderlich, wenn von der EHPA Gütesiegelkommission nachgefordert",{"$f":"$R31","v":"erforderlich, wenn von der EHPA Gütesiegelkommission nachgefordert"},"erforderlich, wenn von der EHPA Gütesiegelkommission nachgefordert","erforderlich, wenn von der EHPA Gütesiegelkommission nachgefordert","erforderlich, wenn von der EHPA Gütesiegelkommission nachgefordert","erforderlich",{"$f":"$W31","v":"erforderlich"},"erforderlich","erforderlich","erforderlich","erforderlich für neue Produktnamen",{"$f":"$AB31","v":"erforderlich für neue Produktnamen"},"erforderlich für neue Produktnamen","erforderlich für neue Produktnamen","erforderlich für neue Produktnamen","erforderlich, wenn von der EHPA Gütesiegelkommission nachgefordert",{"$f":"$AG31","v":"erforderlich, wenn von der EHPA Gütesiegelkommission nachgefordert"},"erforderlich, wenn von der EHPA Gütesiegelkommission nachgefordert","erforderlich, wenn von der EHPA Gütesiegelkommission nachgefordert","erforderlich, wenn von der EHPA Gütesiegelkommission nachgefordert"]
[null,"Sicherheitshinweise","erforderlich","erforderlich","erforderlich","erforderlich","erforderlich","erforderlich, wenn die Produkte anders bezeichnet werden sollen als am Elterngütesiegel oder das  Elterngütesiegel in einem nicht Deutsch sprachigen Land ausgesetllt wurde","erforderlich, wenn die Produkte anders bezeichnet werden sollen als am Elterngütesiegel oder das  Elterngütesiegel in einem nicht Deutsch sprachigen Land ausgesetllt wurde","erforderlich, wenn die Produkte anders bezeichnet werden sollen als am Elterngütesiegel oder das  Elterngütesiegel in einem nicht Deutsch sprachigen Land ausgesetllt wurde","erforderlich, wenn die Produkte anders bezeichnet werden sollen als am Elterngütesiegel oder das  Elterngütesiegel in einem nicht Deutsch sprachigen Land ausgesetllt wurde","erforderlich, wenn die Produkte anders bezeichnet werden sollen als am Elterngütesiegel oder das  Elterngütesiegel in einem nicht Deutsch sprachigen Land ausgesetllt wurde","nicht erforderlich","nicht erforderlich","nicht erforderlich","nicht erforderlich","nicht erforderlich","erforderlich, wenn von der EHPA Gütesiegelkommission nachgefordert","erforderlich, wenn von der EHPA Gütesiegelkommission nachgefordert","erforderlich, wenn von der EHPA Gütesiegelkommission nachgefordert","erforderlich, wenn von der EHPA Gütesiegelkommission nachgefordert","erforderlich, wenn von der EHPA Gütesiegelkommission nachgefordert","erforderlich","erforderlich","erforderlich","erforderlich","erforderlich","erforderlich für neue Produktnamen","erforderlich für neue Produktnamen","erforderlich für neue Produktnamen","erforderlich für neue Produktnamen","erforderlich für neue Produktnamen","erforderlich, wenn von der EHPA Gütesiegelkommission nachgefordert","erforderlich, wenn von der EHPA Gütesiegelkommission nachgefordert","erforderlich, wenn von der EHPA Gütesiegelkommission nachgefordert","erforderlich, wenn von der EHPA Gütesiegelkommission nachgefordert","erforderlich, wenn von der EHPA Gütesiegelkommission nachgefordert"]
[null,"Inbetriebnahmehinweise","erforderlich","erforderlich","erforderlich","erforderlich","erforderlich","erforderlich, wenn die Produkte anders bezeichnet werden sollen als am Elterngütesiegel oder das  Elterngütesiegel in einem nicht Deutsch sprachigen Land ausgesetllt wurde","erforderlich, wenn die Produkte anders bezeichnet werden sollen als am Elterngütesiegel oder das  Elterngütesiegel in einem nicht Deutsch sprachigen Land ausgesetllt wurde","erforderlich, wenn die Produkte anders bezeichnet werden sollen als am Elterngütesiegel oder das  Elterngütesiegel in einem nicht Deutsch sprachigen Land ausgesetllt wurde","erforderlich, wenn die Produkte anders bezeichnet werden sollen als am Elterngütesiegel oder das  Elterngütesiegel in einem nicht Deutsch sprachigen Land ausgesetllt wurde","erforderlich, wenn die Produkte anders bezeichnet werden sollen als am Elterngütesiegel oder das  Elterngütesiegel in einem nicht Deutsch sprachigen Land ausgesetllt wurde","nicht erforderlich","nicht erforderlich","nicht erforderlich","nicht erforderlich","nicht erforderlich","erforderlich, wenn von der EHPA Gütesiegelkommission nachgefordert","erforderlich, wenn von der EHPA Gütesiegelkommission nachgefordert","erforderlich, wenn von der EHPA Gütesiegelkommission nachgefordert","erforderlich, wenn von der EHPA Gütesiegelkommission nachgefordert","erforderlich, wenn von der EHPA Gütesiegelkommission nachgefordert","erforderlich","erforderlich","erforderlich","erforderlich","erforderlich","erforderlich für neue Produktnamen","erforderlich für neue Produktnamen","erforderlich für neue Produktnamen","erforderlich für neue Produktnamen","erforderlich für neue Produktnamen","erforderlich, wenn von der EHPA Gütesiegelkommission nachgefordert","erforderlich, wenn von der EHPA Gütesiegelkommission nachgefordert","erforderlich, wenn von der EHPA Gütesiegelkommission nachgefordert","erforderlich, wenn von der EHPA Gütesiegelkommission nachgefordert","erforderlich, wenn von der EHPA Gütesiegelkommission nachgefordert"]
[null,"Fluidschemata Kältekreis und Wasserkreis","erforderlich","erforderlich","erforderlich","erforderlich","erforderlich","erforderlich, wenn die Produkte anders bezeichnet werden sollen als am Elterngütesiegel oder das  Elterngütesiegel in einem nicht Deutsch sprachigen Land ausgesetllt wurde","erforderlich, wenn die Produkte anders bezeichnet werden sollen als am Elterngütesiegel oder das  Elterngütesiegel in einem nicht Deutsch sprachigen Land ausgesetllt wurde","erforderlich, wenn die Produkte anders bezeichnet werden sollen als am Elterngütesiegel oder das  Elterngütesiegel in einem nicht Deutsch sprachigen Land ausgesetllt wurde","erforderlich, wenn die Produkte anders bezeichnet werden sollen als am Elterngütesiegel oder das  Elterngütesiegel in einem nicht Deutsch sprachigen Land ausgesetllt wurde","erforderlich, wenn die Produkte anders bezeichnet werden sollen als am Elterngütesiegel oder das  Elterngütesiegel in einem nicht Deutsch sprachigen Land ausgesetllt wurde","nicht erforderlich","nicht erforderlich","nicht erforderlich","nicht erforderlich","nicht erforderlich","erforderlich, wenn von der EHPA Gütesiegelkommission nachgefordert","erforderlich, wenn von der EHPA Gütesiegelkommission nachgefordert","erforderlich, wenn von der EHPA Gütesiegelkommission nachgefordert","erforderlich, wenn von der EHPA Gütesiegelkommission nachgefordert","erforderlich, wenn von der EHPA Gütesiegelkommission nachgefordert","erforderlich","erforderlich","erforderlich","erforderlich","erforderlich","erforderlich für neue Produktnamen","erforderlich für neue Produktnamen","erforderlich für neue Produktnamen","erforderlich für neue Produktnamen","erforderlich für neue Produktnamen","erforderlich, wenn von der EHPA Gütesiegelkommission nachgefordert","erforderlich, wenn von der EHPA Gütesiegelkommission nachgefordert","erforderlich, wenn von der EHPA Gütesiegelkommission nachgefordert","erforderlich, wenn von der EHPA Gütesiegelkommission nachgefordert","erforderlich, wenn von der EHPA Gütesiegelkommission nachgefordert"]
[null,"Elektroschema zum Anschluss der Wärmepumpe","erforderlich","erforderlich","erforderlich","erforderlich","erforderlich","erforderlich, wenn die Produkte anders bezeichnet werden sollen als am Elterngütesiegel oder das  Elterngütesiegel in einem nicht Deutsch sprachigen Land ausgesetllt wurde","erforderlich, wenn die Produkte anders bezeichnet werden sollen als am Elterngütesiegel oder das  Elterngütesiegel in einem nicht Deutsch sprachigen Land ausgesetllt wurde","erforderlich, wenn die Produkte anders bezeichnet werden sollen als am Elterngütesiegel oder das  Elterngütesiegel in einem nicht Deutsch sprachigen Land ausgesetllt wurde","erforderlich, wenn die Produkte anders bezeichnet werden sollen als am Elterngütesiegel oder das  Elterngütesiegel in einem nicht Deutsch sprachigen Land ausgesetllt wurde","erforderlich, wenn die Produkte anders bezeichnet werden sollen als am Elterngütesiegel oder das  Elterngütesiegel in einem nicht Deutsch sprachigen Land ausgesetllt wurde","nicht erforderlich","nicht erforderlich","nicht erforderlich","nicht erforderlich","nicht erforderlich","erforderlich, wenn von der EHPA Gütesiegelkommission nachgefordert","erforderlich, wenn von der EHPA Gütesiegelkommission nachgefordert","erforderlich, wenn von der EHPA Gütesiegelkommission nachgefordert","erforderlich, wenn von der EHPA Gütesiegelkommission nachgefordert","erforderlich, wenn von der EHPA Gütesiegelkommission nachgefordert","erforderlich","erforderlich","erforderlich","erforderlich","erforderlich","erforderlich für neue Produktnamen","erforderlich für neue Produktnamen","erforderlich für neue Produktnamen","erforderlich für neue Produktnamen","erforderlich für neue Produktnamen","erforderlich, wenn von der EHPA Gütesiegelkommission nachgefordert","erforderlich, wenn von der EHPA Gütesiegelkommission nachgefordert","erforderlich, wenn von der EHPA Gütesiegelkommission nachgefordert","erforderlich, wenn von der EHPA Gütesiegelkommission nachgefordert","erforderlich, wenn von der EHPA Gütesiegelkommission nachgefordert"]
[null,"Energy-Label und Energy-Label-Datenblatt nach 811/2013 (Heizungs- und Kombiwärmepumpen), bzw 812/2013 (Warmwasserwärmepumpe)\n(nur bei Geräten mit höchstens 70kW Nennleistung)","erforderlich",{"$f":"$C36","v":"erforderlich"},"erforderlich","erforderlich","erforderlich","erforderlich, wenn die Produkte anders bezeichnet werden sollen als am Elterngütesiegel oder das  Elterngütesiegel in einem nicht Deutsch sprachigen Land ausgesetllt wurde","erforderlich, wenn die Produkte anders bezeichnet werden sollen als am Elterngütesiegel oder das  Elterngütesiegel in einem nicht Deutsch sprachigen Land ausgesetllt wurde","erforderlich, wenn die Produkte anders bezeichnet werden sollen als am Elterngütesiegel oder das  Elterngütesiegel in einem nicht Deutsch sprachigen Land ausgesetllt wurde","erforderlich, wenn die Produkte anders bezeichnet werden sollen als am Elterngütesiegel oder das  Elterngütesiegel in einem nicht Deutsch sprachigen Land ausgesetllt wurde","erforderlich, wenn die Produkte anders bezeichnet werden sollen als am Elterngütesiegel oder das  Elterngütesiegel in einem nicht Deutsch sprachigen Land ausgesetllt wurde","nicht erforderlich","nicht erforderlich","nicht erforderlich","nicht erforderlich","nicht erforderlich","erforderlich, wenn von der EHPA Gütesiegelkommission nachgefordert","erforderlich, wenn von der EHPA Gütesiegelkommission nachgefordert","erforderlich, wenn von der EHPA Gütesiegelkommission nachgefordert","erforderlich, wenn von der EHPA Gütesiegelkommission nachgefordert","erforderlich, wenn von der EHPA Gütesiegelkommission nachgefordert","erforderlich","erforderlich","erforderlich","erforderlich","erforderlich","erforderlich für neue Produktnamen","erforderlich für neue Produktnamen","erforderlich für neue Produktnamen","erforderlich für neue Produktnamen","erforderlich für neue Produktnamen","erforderlich, wenn von der EHPA Gütesiegelkommission nachgefordert","erforderlich, wenn von der EHPA Gütesiegelkommission nachgefordert","erforderlich, wenn von der EHPA Gütesiegelkommission nachgefordert","erforderlich, wenn von der EHPA Gütesiegelkommission nachgefordert","erforderlich, wenn von der EHPA Gütesiegelkommission nachgefordert"]
[6,"Technische Daten  (deutschsprachig)","-","-","-","-","-","-","-","-","-","-","-","-","-","-","-","-","-","-","-","-","-","-","-","-","-","-","-","-","-","-","-","-","-","-","-"]
[null,"Leistungsdaten (Wärmeleistung, elektrische Leistungsaufnahme und COP über den gesamten Leistungsbereich)","erforderlich","erforderlich","erforderlich","erforderlich","erforderlich","erforderlich, wenn die Produkte anders bezeichnet werden sollen als am Elterngütesiegel oder das  Elterngütesiegel in einem nicht Deutsch sprachigen Land ausgesetllt wurde",{"$f":"$H38","v":"erforderlich, wenn die Produkte anders bezeichnet werden sollen als am Elterngütesiegel oder das  Elterngütesiegel in einem nicht Deutsch sprachigen Land ausgesetllt wurde"},"erforderlich, wenn die Produkte anders bezeichnet werden sollen als am Elterngütesiegel oder das  Elterngütesiegel in einem nicht Deutsch sprachigen Land ausgesetllt wurde","erforderlich, wenn die Produkte anders bezeichnet werden sollen als am Elterngütesiegel oder das  Elterngütesiegel in einem nicht Deutsch sprachigen Land ausgesetllt wurde","erforderlich, wenn die Produkte anders bezeichnet werden sollen als am Elterngütesiegel oder das  Elterngütesiegel in einem nicht Deutsch sprachigen Land ausgesetllt wurde","nicht erforderlich",{"$f":"$M38","v":"nicht erforderlich"},"nicht erforderlich","nicht erforderlich","nicht erforderlich","erforderlich","erforderlich","erforderlich","erforderlich","erforderlich","erforderlich",{"$f":"$W38","v":"erforderlich"},"erforderlich","erforderlich","erforderlich","erforderlich für neue Produktnamen",{"$f":"$AB38","v":"erforderlich für neue Produktnamen"},"erforderlich für neue Produktnamen","erforderlich für neue Produktnamen","erforderlich für neue Produktnamen","erforderlich, wenn von der EHPA Gütesiegelkommission nachgefordert",{"$f":"$AG38","v":"erforderlich, wenn von der EHPA Gütesiegelkommission nachgefordert"},"erforderlich, wenn von der EHPA Gütesiegelkommission nachgefordert","erforderlich, wenn von der EHPA Gütesiegelkommission nachgefordert","erforderlich, wenn von der EHPA Gütesiegelkommission nachgefordert"]
[null,"Leistungsdaten nach EN 14511 bei A7/W35 (Wärmeleistung, elektrische Leistungsaufnahme und COP)","erforderlich","nicht erforderlich","nicht erforderlich","nicht erforderlich","nicht erforderlich","erforderlich","nicht erforderlich","nicht erforderlich","nicht erforderlich","nicht erforderlich","nicht erforderlich","nicht erforderlich","nicht erforderlich","nicht erforderlich","nicht erforderlich","erforderlich, wenn von der EHPA Gütesiegelkommission nachgefordert",{"$f":"$R39","v":"erforderlich, wenn von der EHPA Gütesiegelkommission nachgefordert"},"erforderlich, wenn von der EHPA Gütesiegelkommission nachgefordert","erforderlich, wenn von der EHPA Gütesiegelkommission nachgefordert","erforderlich, wenn von der EHPA Gütesiegelkommission nachgefordert","erforderlich","nicht erforderlich","nicht erforderlich","nicht erforderlich","nicht erforderlich","erforderlich für neue Produktnamen","nicht erforderlich","nicht erforderlich","nicht erforderlich","nicht erforderlich","erforderlich, wenn von der EHPA Gütesiegelkommission nachgefordert","erforderlich, wenn von der EHPA Gütesiegelkommission nachgefordert","erforderlich, wenn von der EHPA Gütesiegelkommission nachgefordert","erforderlich, wenn von der EHPA Gütesiegelkommission nachgefordert","erforderlich, wenn von der EHPA Gütesiegelkommission nachgefordert"]
[null,"Maßzeichnung","erforderlich","erforderlich","erforderlich","erforderlich","erforderlich","erforderlich, wenn die Produkte anders bezeichnet werden sollen als am Elterngütesiegel oder das  Elterngütesiegel in einem nicht Deutsch sprachigen Land ausgesetllt wurde","erforderlich, wenn die Produkte anders bezeichnet werden sollen als am Elterngütesiegel oder das  Elterngütesiegel in einem nicht Deutsch sprachigen Land ausgesetllt wurde","erforderlich, wenn die Produkte anders bezeichnet werden sollen als am Elterngütesiegel oder das  Elterngütesiegel in einem nicht Deutsch sprachigen Land ausgesetllt wurde","erforderlich, wenn die Produkte anders bezeichnet werden sollen als am Elterngütesiegel oder das  Elterngütesiegel in einem nicht Deutsch sprachigen Land ausgesetllt wurde","erforderlich, wenn die Produkte anders bezeichnet werden sollen als am Elterngütesiegel oder das  Elterngütesiegel in einem nicht Deutsch sprachigen Land ausgesetllt wurde","nicht erforderlich","nicht erforderlich","nicht erforderlich","nicht erforderlich","nicht erforderlich","erforderlich, wenn von der EHPA Gütesiegelkommission nachgefordert","erforderlich, wenn von der EHPA Gütesiegelkommission nachgefordert","erforderlich, wenn von der EHPA Gütesiegelkommission nachgefordert","erforderlich, wenn von der EHPA Gütesiegelkommission nachgefordert","erforderlich, wenn von der EHPA Gütesiegelkommission nachgefordert","erforderlich","erforderlich","erforderlich","erforderlich","erforderlich","erforderlich für neue Produktnamen","erforderlich für neue Produktnamen","erforderlich für neue Produktnamen","erforderlich für neue Produktnamen","erforderlich für neue Produktnamen","erforderlich, wenn von der EHPA Gütesiegelkommission nachgefordert","erforderlich, wenn von der EHPA Gütesiegelkommission nachgefordert","erforderlich, wenn von der EHPA Gütesiegelkommission nachgefordert","erforderlich, wenn von der EHPA Gütesiegelkommission nachgefordert","erforderlich, wenn von der EHPA Gütesiegelkommission nachgefordert"]
[null,"Mindestabstände","erforderlich","erforderlich","erforderlich","erforderlich","erforderlich","erforderlich, wenn die Produkte anders bezeichnet werden sollen als am Elterngütesiegel oder das  Elterngütesiegel in einem nicht Deutsch sprachigen Land ausgesetllt wurde","erforderlich, wenn die Produkte anders bezeichnet werden sollen als am Elterngütesiegel oder das  Elterngütesiegel in einem nicht Deutsch sprachigen Land ausgesetllt wurde","erforderlich, wenn die Produkte anders bezeichnet werden sollen als am Elterngütesiegel oder das  Elterngütesiegel in einem nicht Deutsch sprachigen Land ausgesetllt wurde","erforderlich, wenn die Produkte anders bezeichnet werden sollen als am Elterngütesiegel oder das  Elterngütesiegel in einem nicht Deutsch sprachigen Land ausgesetllt wurde","erforderlich, wenn die Produkte anders bezeichnet werden sollen als am Elterngütesiegel oder das  Elterngütesiegel in einem nicht Deutsch sprachigen Land ausgesetllt wurde","nicht erforderlich","nicht erforderlich","nicht erforderlich","nicht erforderlich","nicht erforderlich","erforderlich, wenn von der EHPA Gütesiegelkommission nachgefordert","erforderlich, wenn von der EHPA Gütesiegelkommission nachgefordert","erforderlich, wenn von der EHPA Gütesiegelkommission nachgefordert","erforderlich, wenn von der EHPA Gütesiegelkommission nachgefordert","erforderlich, wenn von der EHPA Gütesiegelkommission nachgefordert","erforderlich","erforderlich","erforderlich","erforderlich","erforderlich","erforderlich für neue Produktnamen","erforderlich für neue Produktnamen","erforderlich für neue Produktnamen","erforderlich für neue Produktnamen","erforderlich für neue Produktnamen","erforderlich, wenn von der EHPA Gütesiegelkommission nachgefordert","erforderlich, wenn von der EHPA Gütesiegelkommission nachgefordert","erforderlich, wenn von der EHPA Gütesiegelkommission nachgefordert","erforderlich, wenn von der EHPA Gütesiegelkommission nachgefordert","erforderlich, wenn von der EHPA Gütesiegelkommission nachgefordert"]
[null,"Kältemittel: Art und Füllmenge","erforderlich","erforderlich","erforderlich","erforderlich","erforderlich","erforderlich, wenn die Produkte anders bezeichnet werden sollen als am Elterngütesiegel oder das  Elterngütesiegel in einem nicht Deutsch sprachigen Land ausgesetllt wurde","erforderlich, wenn die Produkte anders bezeichnet werden sollen als am Elterngütesiegel oder das  Elterngütesiegel in einem nicht Deutsch sprachigen Land ausgesetllt wurde","erforderlich, wenn die Produkte anders bezeichnet werden sollen als am Elterngütesiegel oder das  Elterngütesiegel in einem nicht Deutsch sprachigen Land ausgesetllt wurde","erforderlich, wenn die Produkte anders bezeichnet werden sollen als am Elterngütesiegel oder das  Elterngütesiegel in einem nicht Deutsch sprachigen Land ausgesetllt wurde","erforderlich, wenn die Produkte anders bezeichnet werden sollen als am Elterngütesiegel oder das  Elterngütesiegel in einem nicht Deutsch sprachigen Land ausgesetllt wurde","nicht erforderlich","nicht erforderlich","nicht erforderlich","nicht erforderlich","nicht erforderlich","erforderlich, wenn von der EHPA Gütesiegelkommission nachgefordert","erforderlich, wenn von der EHPA Gütesiegelkommission nachgefordert","erforderlich, wenn von der EHPA Gütesiegelkommission nachgefordert","erforderlich, wenn von der EHPA Gütesiegelkommission nachgefordert","erforderlich, wenn von der EHPA Gütesiegelkommission nachgefordert","erforderlich","erforderlich","erforderlich","erforderlich","erforderlich","erforderlich für neue Produktnamen","erforderlich für neue Produktnamen","erforderlich für neue Produktnamen","erforderlich für neue Produktnamen","erforderlich für neue Produktnamen","erforderlich, wenn von der EHPA Gütesiegelkommission nachgefordert","erforderlich, wenn von der EHPA Gütesiegelkommission nachgefordert","erforderlich, wenn von der EHPA Gütesiegelkommission nachgefordert","erforderlich, wenn von der EHPA Gütesiegelkommission nachgefordert","erforderlich, wenn von der EHPA Gütesiegelkommission nachgefordert"]
[null,"Anlaufstrom / maximaler Betriebsstrom in A","erforderlich","erforderlich","erforderlich","erforderlich","erforderlich","erforderlich, wenn die Produkte anders bezeichnet werden sollen als am Elterngütesiegel oder das  Elterngütesiegel in einem nicht Deutsch sprachigen Land ausgesetllt wurde","erforderlich, wenn die Produkte anders bezeichnet werden sollen als am Elterngütesiegel oder das  Elterngütesiegel in einem nicht Deutsch sprachigen Land ausgesetllt wurde","erforderlich, wenn die Produkte anders bezeichnet werden sollen als am Elterngütesiegel oder das  Elterngütesiegel in einem nicht Deutsch sprachigen Land ausgesetllt wurde","erforderlich, wenn die Produkte anders bezeichnet werden sollen als am Elterngütesiegel oder das  Elterngütesiegel in einem nicht Deutsch sprachigen Land ausgesetllt wurde","erforderlich, wenn die Produkte anders bezeichnet werden sollen als am Elterngütesiegel oder das  Elterngütesiegel in einem nicht Deutsch sprachigen Land ausgesetllt wurde","nicht erforderlich","nicht erforderlich","nicht erforderlich","nicht erforderlich","nicht erforderlich","erforderlich, wenn von der EHPA Gütesiegelkommission nachgefordert","erforderlich, wenn von der EHPA Gütesiegelkommission nachgefordert","erforderlich, wenn von der EHPA Gütesiegelkommission nachgefordert","erforderlich, wenn von der EHPA Gütesiegelkommission nachgefordert","erforderlich, wenn von der EHPA Gütesiegelkommission nachgefordert","erforderlich","erforderlich","erforderlich","erforderlich","erforderlich","erforderlich für neue Produktnamen","erforderlich für neue Produktnamen","erforderlich für neue Produktnamen","erforderlich für neue Produktnamen","erforderlich für neue Produktnamen","erforderlich, wenn von der EHPA Gütesiegelkommission nachgefordert","erforderlich, wenn von der EHPA Gütesiegelkommission nachgefordert","erforderlich, wenn von der EHPA Gütesiegelkommission nachgefordert","erforderlich, wenn von der EHPA Gütesiegelkommission nachgefordert","erforderlich, wenn von der EHPA Gütesiegelkommission nachgefordert"]
[null,"Einsatzbereich / Einsatzgrenzen","erforderlich",{"$f":"$C44","v":"erforderlich"},"erforderlich","erforderlich","erforderlich","erforderlich, wenn die Produkte anders bezeichnet werden sollen als am Elterngütesiegel oder das  Elterngütesiegel in einem nicht Deutsch sprachigen Land ausgesetllt wurde","erforderlich, wenn die Produkte anders bezeichnet werden sollen als am Elterngütesiegel oder das  Elterngütesiegel in einem nicht Deutsch sprachigen Land ausgesetllt wurde","erforderlich, wenn die Produkte anders bezeichnet werden sollen als am Elterngütesiegel oder das  Elterngütesiegel in einem nicht Deutsch sprachigen Land ausgesetllt wurde","erforderlich, wenn die Produkte anders bezeichnet werden sollen als am Elterngütesiegel oder das  Elterngütesiegel in einem nicht Deutsch sprachigen Land ausgesetllt wurde","erforderlich, wenn die Produkte anders bezeichnet werden sollen als am Elterngütesiegel oder das  Elterngütesiegel in einem nicht Deutsch sprachigen Land ausgesetllt wurde","nicht erforderlich","nicht erforderlich","nicht erforderlich","nicht erforderlich","nicht erforderlich","erforderlich, wenn von der EHPA Gütesiegelkommission nachgefordert","erforderlich, wenn von der EHPA Gütesiegelkommission nachgefordert","erforderlich, wenn von der EHPA Gütesiegelkommission nachgefordert","erforderlich, wenn von der EHPA Gütesiegelkommission nachgefordert","erforderlich, wenn von der EHPA Gütesiegelkommission nachgefordert","erforderlich","erforderlich","erforderlich","erforderlich","erforderlich","erforderlich für neue Produktnamen","erforderlich für neue Produktnamen","erforderlich für neue Produktnamen","erforderlich für neue Produktnamen","erforderlich für neue Produktnamen","erforderlich, wenn von der EHPA Gütesiegelkommission nachgefordert","erforderlich, wenn von der EHPA Gütesiegelkommission nachgefordert","erforderlich, wenn von der EHPA Gütesiegelkommission nachgefordert","erforderlich, wenn von der EHPA Gütesiegelkommission nachgefordert","erforderlich, wenn von der EHPA Gütesiegelkommission nachgefordert"]
[null,"Volumenstrom Quelle- und Senkenseite in m³/h, l/min","erforderlich","erforderlich","erforderlich","erforderlich","erforderlich","erforderlich, wenn die Produkte anders bezeichnet werden sollen als am Elterngütesiegel oder das  Elterngütesiegel in einem nicht Deutsch sprachigen Land ausgesetllt wurde","erforderlich, wenn die Produkte anders bezeichnet werden sollen als am Elterngütesiegel oder das  Elterngütesiegel in einem nicht Deutsch sprachigen Land ausgesetllt wurde","erforderlich, wenn die Produkte anders bezeichnet werden sollen als am Elterngütesiegel oder das  Elterngütesiegel in einem nicht Deutsch sprachigen Land ausgesetllt wurde","erforderlich, wenn die Produkte anders bezeichnet werden sollen als am Elterngütesiegel oder das  Elterngütesiegel in einem nicht Deutsch sprachigen Land ausgesetllt wurde","erforderlich, wenn die Produkte anders bezeichnet werden sollen als am Elterngütesiegel oder das  Elterngütesiegel in einem nicht Deutsch sprachigen Land ausgesetllt wurde","nicht erforderlich","nicht erforderlich","nicht erforderlich","nicht erforderlich","nicht erforderlich","erforderlich, wenn von der EHPA Gütesiegelkommission nachgefordert","erforderlich, wenn von der EHPA Gütesiegelkommission nachgefordert","erforderlich, wenn von der EHPA Gütesiegelkommission nachgefordert","erforderlich, wenn von der EHPA Gütesiegelkommission nachgefordert","erforderlich, wenn von der EHPA Gütesiegelkommission nachgefordert","erforderlich","erforderlich","erforderlich","erforderlich","erforderlich","erforderlich für neue Produktnamen","erforderlich für neue Produktnamen","erforderlich für neue Produktnamen","erforderlich für neue Produktnamen","erforderlich für neue Produktnamen","erforderlich, wenn von der EHPA Gütesiegelkommission nachgefordert","erforderlich, wenn von der EHPA Gütesiegelkommission nachgefordert","erforderlich, wenn von der EHPA Gütesiegelkommission nachgefordert","erforderlich, wenn von der EHPA Gütesiegelkommission nachgefordert","erforderlich, wenn von der EHPA Gütesiegelkommission nachgefordert"]
[null,"Volumen des WW-Speichers in Liter","nicht erforderlich",{"$f":"$C46","v":"nicht erforderlich"},"nicht erforderlich","nicht erforderlich","erforderlich","nicht erforderlich",{"$f":"$H46","v":"nicht erforderlich"},{"$f":"$H46","v":"nicht erforderlich"},{"$f":"$H46","v":"nicht erforderlich"},"erforderlich, wenn die Produkte anders bezeichnet werden sollen als am Elterngütesiegel oder das  Elterngütesiegel in einem nicht Deutsch sprachigen Land ausgesetllt wurde","nicht erforderlich","nicht erforderlich","nicht erforderlich","nicht erforderlich","nicht erforderlich","nicht erforderlich","nicht erforderlich","nicht erforderlich","nicht erforderlich","nicht erforderlich","nicht erforderlich","nicht erforderlich","nicht erforderlich","nicht erforderlich","erforderlich","nicht erforderlich","nicht erforderlich","nicht erforderlich","nicht erforderlich","erforderlich für neue Produktnamen","erforderlich, wenn von der EHPA Gütesiegelkommission nachgefordert","erforderlich, wenn von der EHPA Gütesiegelkommission nachgefordert","erforderlich, wenn von der EHPA Gütesiegelkommission nachgefordert","erforderlich, wenn von der EHPA Gütesiegelkommission nachgefordert","erforderlich, wenn von der EHPA Gütesiegelkommission nachgefordert"]
[null,"Gewicht in kg","erforderlich","erforderlich","erforderlich","erforderlich",{"$f":"$C47","v":"erforderlich"},"erforderlich, wenn die Produkte anders bezeichnet werden sollen als am Elterngütesiegel oder das  Elterngütesiegel in einem nicht Deutsch sprachigen Land ausgesetllt wurde","erforderlich, wenn die Produkte anders bezeichnet werden sollen als am Elterngütesiegel oder das  Elterngütesiegel in einem nicht Deutsch sprachigen Land ausgesetllt wurde","erforderlich, wenn die Produkte anders bezeichnet werden sollen als am Elterngütesiegel oder das  Elterngütesiegel in einem nicht Deutsch sprachigen Land ausgesetllt wurde","erforderlich, wenn die Produkte anders bezeichnet werden sollen als am Elterngütesiegel oder das  Elterngütesiegel in einem nicht Deutsch sprachigen Land ausgesetllt wurde","erforderlich, wenn die Produkte anders bezeichnet werden sollen als am Elterngütesiegel oder das  Elterngütesiegel in einem nicht Deutsch sprachigen Land ausgesetllt wurde","nicht erforderlich","nicht erforderlich","nicht erforderlich","nicht erforderlich","nicht erforderlich","erforderlich, wenn von der EHPA Gütesiegelkommission nachgefordert","erforderlich, wenn von der EHPA Gütesiegelkommission nachgefordert","erforderlich, wenn von der EHPA Gütesiegelkommission nachgefordert","erforderlich, wenn von der EHPA Gütesiegelkommission nachgefordert","erforderlich, wenn von der EHPA Gütesiegelkommission nachgefordert","erforderlich","erforderlich","erforderlich","erforderlich","erforderlich","erforderlich für neue Produktnamen","erforderlich für neue Produktnamen","erforderlich für neue Produktnamen","erforderlich für neue Produktnamen","erforderlich für neue Produktnamen","erforderlich, wenn von der EHPA Gütesiegelkommission nachgefordert","erforderlich, wenn von der EHPA Gütesiegelkommission nachgefordert","erforderlich, wenn von der EHPA Gütesiegelkommission nachgefordert","erforderlich, wenn von der EHPA Gütesiegelkommission nachgefordert","erforderlich, wenn von der EHPA Gütesiegelkommission nachgefordert"]
[null,"Schallleistung nach EN 12102 / Energy-Label in dB(A)","erforderlich","erforderlich","erforderlich","erforderlich",{"$f":"$C48","v":"erforderlich"},"erforderlich, wenn die Produkte anders bezeichnet werden sollen als am Elterngütesiegel oder das  Elterngütesiegel in einem nicht Deutsch sprachigen Land ausgesetllt wurde","erforderlich, wenn die Produkte anders bezeichnet werden sollen als am Elterngütesiegel oder das  Elterngütesiegel in einem nicht Deutsch sprachigen Land ausgesetllt wurde","erforderlich, wenn die Produkte anders bezeichnet werden sollen als am Elterngütesiegel oder das  Elterngütesiegel in einem nicht Deutsch sprachigen Land ausgesetllt wurde","erforderlich, wenn die Produkte anders bezeichnet werden sollen als am Elterngütesiegel oder das  Elterngütesiegel in einem nicht Deutsch sprachigen Land ausgesetllt wurde","erforderlich, wenn die Produkte anders bezeichnet werden sollen als am Elterngütesiegel oder das  Elterngütesiegel in einem nicht Deutsch sprachigen Land ausgesetllt wurde","nicht erforderlich","nicht erforderlich","nicht erforderlich","nicht erforderlich","nicht erforderlich","erforderlich","erforderlich","erforderlich","erforderlich","erforderlich","erforderlich","erforderlich","erforderlich","erforderlich","erforderlich","erforderlich für neue Produktnamen","erforderlich für neue Produktnamen","erforderlich für neue Produktnamen","erforderlich für neue Produktnamen","erforderlich für neue Produktnamen","erforderlich, wenn von der EHPA Gütesiegelkommission nachgefordert","erforderlich, wenn von der EHPA Gütesiegelkommission nachgefordert","erforderlich, wenn von der EHPA Gütesiegelkommission nachgefordert","erforderlich, wenn von der EHPA Gütesiegelkommission nachgefordert","erforderlich, wenn von der EHPA Gütesiegelkommission nachgefordert"]
[null,"Schallleistung im EN 14825 Prüfpunkt B (A2) in dB(A)","erforderlich","erforderlich","erforderlich","erforderlich",{"$f":"$C49","v":"erforderlich"},"erforderlich, wenn die Produkte anders bezeichnet werden sollen als am Elterngütesiegel oder das  Elterngütesiegel in einem nicht Deutsch sprachigen Land ausgesetllt wurde","erforderlich, wenn die Produkte anders bezeichnet werden sollen als am Elterngütesiegel oder das  Elterngütesiegel in einem nicht Deutsch sprachigen Land ausgesetllt wurde","erforderlich, wenn die Produkte anders bezeichnet werden sollen als am Elterngütesiegel oder das  Elterngütesiegel in einem nicht Deutsch sprachigen Land ausgesetllt wurde","erforderlich, wenn die Produkte anders bezeichnet werden sollen als am Elterngütesiegel oder das  Elterngütesiegel in einem nicht Deutsch sprachigen Land ausgesetllt wurde","erforderlich, wenn die Produkte anders bezeichnet werden sollen als am Elterngütesiegel oder das  Elterngütesiegel in einem nicht Deutsch sprachigen Land ausgesetllt wurde","nicht erforderlich","nicht erforderlich","nicht erforderlich","nicht erforderlich","nicht erforderlich","erforderlich","erforderlich","erforderlich","erforderlich","erforderlich","erforderlich","erforderlich","erforderlich","erforderlich","erforderlich","erforderlich für neue Produktnamen","erforderlich für neue Produktnamen","erforderlich für neue Produktnamen","erforderlich für neue Produktnamen","erforderlich für neue Produktnamen","erforderlich, wenn von der EHPA Gütesiegelkommission nachgefordert","erforderlich, wenn von der EHPA Gütesiegelkommission nachgefordert","erforderlich, wenn von der EHPA Gütesiegelkommission nachgefordert","erforderlich, wenn von der EHPA Gütesiegelkommission nachgefordert","erforderlich, wenn von der EHPA Gütesiegelkommission nachgefordert"]
[null,"maximaler Schallleistungspegel in dB(A) und dazugehörige Heizleistung in kW","erforderlich","nicht erforderlich","nicht erforderlich","erforderlich","nicht erforderlich","erforderlich, wenn die Produkte anders bezeichnet werden sollen als am Elterngütesiegel oder das  Elterngütesiegel in einem nicht Deutsch sprachigen Land ausgesetllt wurde","nicht erforderlich","nicht erforderlich",{"$f":"$H50","v":"erforderlich, wenn die Produkte anders bezeichnet werden sollen als am Elterngütesiegel oder das  Elterngütesiegel in einem nicht Deutsch sprachigen Land ausgesetllt wurde"},"nicht erforderlich","nicht erforderlich","nicht erforderlich","nicht erforderlich","nicht erforderlich","nicht erforderlich","erforderlich","nicht erforderlich","nicht erforderlich","erforderlich","nicht erforderlich","erforderlich","nicht erforderlich","nicht erforderlich","erforderlich","nicht erforderlich","erforderlich für neue Produktnamen","nicht erforderlich","nicht erforderlich","erforderlich für neue Produktnamen","nicht erforderlich","erforderlich, wenn von der EHPA Gütesiegelkommission nachgefordert","erforderlich, wenn von der EHPA Gütesiegelkommission nachgefordert","erforderlich, wenn von der EHPA Gütesiegelkommission nachgefordert","erforderlich, wenn von der EHPA Gütesiegelkommission nachgefordert","erforderlich, wenn von der EHPA Gütesiegelkommission nachgefordert"]
[null,"maximaler Schallleistungspegel \"Silent-Mode\" in dB(A) und dazugehörige Heizleistung in kW","erforderlich","nicht erforderlich","nicht erforderlich","erforderlich","nicht erforderlich","erforderlich, wenn die Produkte anders bezeichnet werden sollen als am Elterngütesiegel oder das  Elterngütesiegel in einem nicht Deutsch sprachigen Land ausgesetllt wurde","nicht erforderlich","nicht erforderlich",{"$f":"$H51","v":"erforderlich, wenn die Produkte anders bezeichnet werden sollen als am Elterngütesiegel oder das  Elterngütesiegel in einem nicht Deutsch sprachigen Land ausgesetllt wurde"},"nicht erforderlich","nicht erforderlich","nicht erforderlich","nicht erforderlich","nicht erforderlich","nicht erforderlich","erforderlich","nicht erforderlich","nicht erforderlich","erforderlich","nicht erforderlich","erforderlich","nicht erforderlich","nicht erforderlich","erforderlich","nicht erforderlich","erforderlich für neue Produktnamen","nicht erforderlich","nicht erforderlich","erforderlich für neue Produktnamen","nicht erforderlich","erforderlich, wenn von der EHPA Gütesiegelkommission nachgefordert","erforderlich, wenn von der EHPA Gütesiegelkommission nachgefordert","erforderlich, wenn von der EHPA Gütesiegelkommission nachgefordert","erforderlich, wenn von der EHPA Gütesiegelkommission nachgefordert","erforderlich, wenn von der EHPA Gütesiegelkommission nachgefordert"]

{"sheet":"Prüfer-Hinweis","index":5,"n_rows":50,"n_cols":9,"rows_kept":50,"hidden":true}
["2. Prüfung Prüferhinweis"]
[]
[null,null,{"$f":"'Anforderung Antragsteller'!C3","v":"Erstantrag"},{"$f":"'Anforderung Antragsteller'!H3","v":"Übertragung von anderem Land oder anderem Unternehmen"},{"$f":"'Anforderung Antragsteller'!M3","v":"1. und 2. Verlängerung  (Gültigkeit max. 9 Jahre)"},{"$f":"'Anforderung Antragsteller'!R3","v":"ab 3. Verlängerung (Gültigkeit über 9 Jahre)"},{"$f":"'Anforderung Antragsteller'!W3","v":"Erweiterung von eigenem Gütesiegel"},{"$f":"'Anforderung Antragsteller'!AB3","v":"Änderung der Produktbezeichnungen"},{"$f":"'Anforderung Antragsteller'!AG3","v":"Technische Änderungen am Produkt"}]
[1,"Grundlegendes"]
[null,"akkreditierte Prüfberichte nach EN 12102-1 und -2, EN 14511-2 bis 4 und EN 14825, bzw. EN 16147 bei Trinkwasser\nAnzahl hängt vom Umfang der Modelreihe ab","-","-","-","-","-","-","-"]
[null,"- Unterschriebener detaillierter akkreditierter Leistungs-Prüfbericht nach EHPA Regularien oder HP-Keymark Regularien UND","Ist die Prüfung nach EHPA Regularien oder HP-Keymark-Schema und unter der Akkreditierung des Prüfinsitutes durchgeführt worden (Logo eines nationalen oder Internationalen Akkreditierungs-Institiutes oder schriftlicher Verweis auf die Akkreditierung); ist der Prüfbericht unterschrieben oder gültig digital signiert; stimmen Leistungswerte mit den technischen Unterlagen überein (SCOP +- 0,1 lt. Freimüller); wurden die erforderliche Anzahl an Prüfberichten eingereicht; Wird das Gerät als LT und MT verkauft müssen auch im Prüfbericht SCOP Werte für beide Temperaturanwendungen enthalten sein.",{"$f":"IF(OR('Anforderung Antragsteller'!H7=\"muss nicht erneut eingereicht werden\",'Anforderung Antragsteller'!H7=\"nicht erforderlich\"),\"-\",$C6)","v":"Ist die Prüfung nach EHPA Regularien oder HP-Keymark-Schema und unter der Akkreditierung des Prüfinsitutes durchgeführt worden (Logo eines nationalen oder Internationalen Akkreditierungs-Institiutes oder schriftlicher Verweis auf die Akkreditierung); ist der Prüfbericht unterschrieben oder gültig digital signiert; stimmen Leistungswerte mit den technischen Unterlagen überein (SCOP +- 0,1 lt. Freimüller); wurden die erforderliche Anzahl an Prüfberichten eingereicht; Wird das Gerät als LT und MT verkauft müssen auch im Prüfbericht SCOP Werte für beide Temperaturanwendungen enthalten sein."},{"$f":"IF(OR('Anforderung Antragsteller'!M7=\"muss nicht erneut eingereicht werden\",'Anforderung Antragsteller'!M7=\"nicht erforderlich\"),\"-\",$C6)","v":"-"},{"$f":"IF(OR('Anforderung Antragsteller'!R7=\"muss nicht erneut eingereicht werden\",'Anforderung Antragsteller'!R7=\"nicht erforderlich\"),\"-\",$C6)","v":"Ist die Prüfung nach EHPA Regularien oder HP-Keymark-Schema und unter der Akkreditierung des Prüfinsitutes durchgeführt worden (Logo eines nationalen oder Internationalen Akkreditierungs-Institiutes oder schriftlicher Verweis auf die Akkreditierung); ist der Prüfbericht unterschrieben oder gültig digital signiert; stimmen Leistungswerte mit den technischen Unterlagen überein (SCOP +- 0,1 lt. Freimüller); wurden die erforderliche Anzahl an Prüfberichten eingereicht; Wird das Gerät als LT und MT verkauft müssen auch im Prüfbericht SCOP Werte für beide Temperaturanwendungen enthalten sein."},{"$f":"IF(OR('Anforderung Antragsteller'!W7=\"muss nicht erneut eingereicht werden\",'Anforderung Antragsteller'!W7=\"nicht erforderlich\"),\"-\",$C6)","v":"Ist die Prüfung nach EHPA Regularien oder HP-Keymark-Schema und unter der Akkreditierung des Prüfinsitutes durchgeführt worden (Logo eines nationalen oder Internationalen Akkreditierungs-Institiutes oder schriftlicher Verweis auf die Akkreditierung); ist der Prüfbericht unterschrieben oder gültig digital signiert; stimmen Leistungswerte mit den technischen Unterlagen überein (SCOP +- 0,1 lt. Freimüller); wurden die erforderliche Anzahl an Prüfberichten eingereicht; Wird das Gerät als LT und MT verkauft müssen auch im Prüfbericht SCOP Werte für beide Temperaturanwendungen enthalten sein."},{"$f":"IF(OR('Anforderung Antragsteller'!AB7=\"muss nicht erneut eingereicht werden\",'Anforderung Antragsteller'!AB7=\"nicht erforderlich\"),\"-\",$C6)","v":"-"},"Prübreicht ist nur dann notwendig, wenn die Gütesiegel-Kommission eine Nachmessung verlangt"]
[null,"- Unterschriebener detaillierter akkreditierter Schall-Prüfbericht  nach EHPA Regularien oder HP-Keymark Regularien UND","Ist die Prüfung nach EHPA Regularien oder HP-Keymark-Schema und unter der Akkreditierung des Prüfinsitutes durchgeführt worden (Logo eines nationalen oder Internationalen Akkreditierungs-Institiutes oder schriftlicher Verweis auf die Akkreditierung); ist der Prüfbericht unterschrieben oder gültig digital signiert; stimmen Leistungswerte mit den technischen Unterlagen überein (SCOP +- 0,1 lt. Freimüller); wurden die erforderliche Anzahl an Prüfberichten eingereicht; Wird das Gerät als LT und MT verkauft müssen auch im Prüfbericht SCOP Werte für beide Temperaturanwendungen enthalten sein.",{"$f":"IF(OR('Anforderung Antragsteller'!H8=\"muss nicht erneut eingereicht werden\",'Anforderung Antragsteller'!H8=\"nicht erforderlich\"),\"-\",$C7)","v":"Ist die Prüfung nach EHPA Regularien oder HP-Keymark-Schema und unter der Akkreditierung des Prüfinsitutes durchgeführt worden (Logo eines nationalen oder Internationalen Akkreditierungs-Institiutes oder schriftlicher Verweis auf die Akkreditierung); ist der Prüfbericht unterschrieben oder gültig digital signiert; stimmen Leistungswerte mit den technischen Unterlagen überein (SCOP +- 0,1 lt. Freimüller); wurden die erforderliche Anzahl an Prüfberichten eingereicht; Wird das Gerät als LT und MT verkauft müssen auch im Prüfbericht SCOP Werte für beide Temperaturanwendungen enthalten sein."},{"$f":"IF(OR('Anforderung Antragsteller'!M8=\"muss nicht erneut eingereicht werden\",'Anforderung Antragsteller'!M8=\"nicht erforderlich\"),\"-\",$C7)","v":"-"},{"$f":"IF(OR('Anforderung Antragsteller'!R8=\"muss nicht erneut eingereicht werden\",'Anforderung Antragsteller'!R8=\"nicht erforderlich\"),\"-\",$C7)","v":"Ist die Prüfung nach EHPA Regularien oder HP-Keymark-Schema und unter der Akkreditierung des Prüfinsitutes durchgeführt worden (Logo eines nationalen oder Internationalen Akkreditierungs-Institiutes oder schriftlicher Verweis auf die Akkreditierung); ist der Prüfbericht unterschrieben oder gültig digital signiert; stimmen Leistungswerte mit den technischen Unterlagen überein (SCOP +- 0,1 lt. Freimüller); wurden die erforderliche Anzahl an Prüfberichten eingereicht; Wird das Gerät als LT und MT verkauft müssen auch im Prüfbericht SCOP Werte für beide Temperaturanwendungen enthalten sein."},{"$f":"IF(OR('Anforderung Antragsteller'!W8=\"muss nicht erneut eingereicht werden\",'Anforderung Antragsteller'!W8=\"nicht erforderlich\"),\"-\",$C7)","v":"Ist die Prüfung nach EHPA Regularien oder HP-Keymark-Schema und unter der Akkreditierung des Prüfinsitutes durchgeführt worden (Logo eines nationalen oder Internationalen Akkreditierungs-Institiutes oder schriftlicher Verweis auf die Akkreditierung); ist der Prüfbericht unterschrieben oder gültig digital signiert; stimmen Leistungswerte mit den technischen Unterlagen überein (SCOP +- 0,1 lt. Freimüller); wurden die erforderliche Anzahl an Prüfberichten eingereicht; Wird das Gerät als LT und MT verkauft müssen auch im Prüfbericht SCOP Werte für beide Temperaturanwendungen enthalten sein."},{"$f":"IF(OR('Anforderung Antragsteller'!AB8=\"muss nicht erneut eingereicht werden\",'Anforderung Antragsteller'!AB8=\"nicht erforderlich\"),\"-\",$C7)","v":"-"},"Prübreicht ist nur dann notwendig, wenn die Gütesiegel-Kommission eine Nachmessung verlangt"]
[null,"SCOP Anforderungen für Heizungs-Wärmepumpen","-",{"$f":"IF(OR('Anforderung Antragsteller'!H9=\"muss nicht erneut eingereicht werden\",'Anforderung Antragsteller'!H9=\"nicht erforderlich\"),\"-\",$C8)","v":"-"},{"$f":"IF(OR('Anforderung Antragsteller'!M9=\"muss nicht erneut eingereicht werden\",'Anforderung Antragsteller'!M9=\"nicht erforderlich\"),\"-\",$C8)","v":"-"},{"$f":"IF(OR('Anforderung Antragsteller'!R9=\"muss nicht erneut eingereicht werden\",'Anforderung Antragsteller'!R9=\"nicht erforderlich\"),\"-\",$C8)","v":"-"},{"$f":"IF(OR('Anforderung Antragsteller'!W9=\"muss nicht erneut eingereicht werden\",'Anforderung Antragsteller'!W9=\"nicht erforderlich\"),\"-\",$C8)","v":"-"},{"$f":"IF(OR('Anforderung Antragsteller'!AB9=\"muss nicht erneut eingereicht werden\",'Anforderung Antragsteller'!AB9=\"nicht erforderlich\"),\"-\",$C8)","v":"-"},{"$f":"IF(OR('Anforderung Antragsteller'!AG9=\"muss nicht erneut eingereicht werden\",'Anforderung Antragsteller'!AG9=\"nicht erforderlich\"),\"-\",$C8)","v":"-"}]
[null,"- Niedertemperaturanwendung (35°C) und durchschnittliches Klima:\n       SCOP Min : 3,70 (A/W)         SCOP Min : 4,70 (B/W, W/W)\n       SCOP Min : 4,10 (DX/W)       SCOP Min : 3,40 (A/A)","werden die EHPA Grenzen eingehalten und sind die SCOP Grenzen in allen Unterlagen gleich angegeben, bzw. stimmen diese mit dem Prüfbericht überein",{"$f":"IF(OR('Anforderung Antragsteller'!H10=\"muss nicht erneut eingereicht werden\",'Anforderung Antragsteller'!H10=\"nicht erforderlich\"),\"-\",$C9)","v":"-"},{"$f":"IF(OR('Anforderung Antragsteller'!M10=\"muss nicht erneut eingereicht werden\",'Anforderung Antragsteller'!M10=\"nicht erforderlich\"),\"-\",$C9)","v":"-"},{"$f":"IF(OR('Anforderung Antragsteller'!R10=\"muss nicht erneut eingereicht werden\",'Anforderung Antragsteller'!R10=\"nicht erforderlich\"),\"-\",$C9)","v":"werden die EHPA Grenzen eingehalten und sind die SCOP Grenzen in allen Unterlagen gleich angegeben, bzw. stimmen diese mit dem Prüfbericht überein"},{"$f":"IF(OR('Anforderung Antragsteller'!W10=\"muss nicht erneut eingereicht werden\",'Anforderung Antragsteller'!W10=\"nicht erforderlich\"),\"-\",$C9)","v":"werden die EHPA Grenzen eingehalten und sind die SCOP Grenzen in allen Unterlagen gleich angegeben, bzw. stimmen diese mit dem Prüfbericht überein"},{"$f":"IF(OR('Anforderung Antragsteller'!AB10=\"muss nicht erneut eingereicht werden\",'Anforderung Antragsteller'!AB10=\"nicht erforderlich\"),\"-\",$C9)","v":"-"},"Wenn keine gravierende Änderung am Produkt passiert ist, dann muss der Hersteller bestätigen, dass die Effizienz gleich geblieben oder besser wird."]
[null,"- Mitteltemperaturanwendung (55°C) und durchschnittliches Klima:\n       SCOP Min : 3,20 (A/W)       SCOP Min : 3,70 (B/W, W/W)\n       SCOP Min : 3,38 (DX/W)","werden die EHPA Grenzen eingehalten und sind die SCOP Grenzen in allen Unterlagen gleich angegeben, bzw. stimmen diese mit dem Prüfbericht überein",{"$f":"IF(OR('Anforderung Antragsteller'!H11=\"muss nicht erneut eingereicht werden\",'Anforderung Antragsteller'!H11=\"nicht erforderlich\"),\"-\",$C10)","v":"-"},{"$f":"IF(OR('Anforderung Antragsteller'!M11=\"muss nicht erneut eingereicht werden\",'Anforderung Antragsteller'!M11=\"nicht erforderlich\"),\"-\",$C10)","v":"-"},{"$f":"IF(OR('Anforderung Antragsteller'!R11=\"muss nicht erneut eingereicht werden\",'Anforderung Antragsteller'!R11=\"nicht erforderlich\"),\"-\",$C10)","v":"werden die EHPA Grenzen eingehalten und sind die SCOP Grenzen in allen Unterlagen gleich angegeben, bzw. stimmen diese mit dem Prüfbericht überein"},{"$f":"IF(OR('Anforderung Antragsteller'!W11=\"muss nicht erneut eingereicht werden\",'Anforderung Antragsteller'!W11=\"nicht erforderlich\"),\"-\",$C10)","v":"werden die EHPA Grenzen eingehalten und sind die SCOP Grenzen in allen Unterlagen gleich angegeben, bzw. stimmen diese mit dem Prüfbericht überein"},{"$f":"IF(OR('Anforderung Antragsteller'!AB11=\"muss nicht erneut eingereicht werden\",'Anforderung Antragsteller'!AB11=\"nicht erforderlich\"),\"-\",$C10)","v":"-"},"Wenn keine gravierende Änderung am Produkt passiert ist, dann muss der Hersteller bestätigen, dass die Effizienz gleich geblieben oder besser wird."]
[null,"Anforderungen für Brauchwasser-Wärmepumpen","-",{"$f":"IF(OR('Anforderung Antragsteller'!H12=\"muss nicht erneut eingereicht werden\",'Anforderung Antragsteller'!H12=\"nicht erforderlich\"),\"-\",$C11)","v":"-"},{"$f":"IF(OR('Anforderung Antragsteller'!M12=\"muss nicht erneut eingereicht werden\",'Anforderung Antragsteller'!M12=\"nicht erforderlich\"),\"-\",$C11)","v":"-"},{"$f":"IF(OR('Anforderung Antragsteller'!R12=\"muss nicht erneut eingereicht werden\",'Anforderung Antragsteller'!R12=\"nicht erforderlich\"),\"-\",$C11)","v":"-"},{"$f":"IF(OR('Anforderung Antragsteller'!W12=\"muss nicht erneut eingereicht werden\",'Anforderung Antragsteller'!W12=\"nicht erforderlich\"),\"-\",$C11)","v":"-"},{"$f":"IF(OR('Anforderung Antragsteller'!AB12=\"muss nicht erneut eingereicht werden\",'Anforderung Antragsteller'!AB12=\"nicht erforderlich\"),\"-\",$C11)","v":"-"},{"$f":"IF(OR('Anforderung Antragsteller'!AG12=\"muss nicht erneut eingereicht werden\",'Anforderung Antragsteller'!AG12=\"nicht erforderlich\"),\"-\",$C11)","v":"-"}]
[null,"- Die Wärmpumpe muss mindestens 52°C Warmwasser erzeugen können","werden die EHPA Grenzen eingehalten",{"$f":"IF(OR('Anforderung Antragsteller'!H13=\"muss nicht erneut eingereicht werden\",'Anforderung Antragsteller'!H13=\"nicht erforderlich\"),\"-\",$C12)","v":"-"},{"$f":"IF(OR('Anforderung Antragsteller'!M13=\"muss nicht erneut eingereicht werden\",'Anforderung Antragsteller'!M13=\"nicht erforderlich\"),\"-\",$C12)","v":"-"},{"$f":"IF(OR('Anforderung Antragsteller'!R13=\"muss nicht erneut eingereicht werden\",'Anforderung Antragsteller'!R13=\"nicht erforderlich\"),\"-\",$C12)","v":"-"},{"$f":"IF(OR('Anforderung Antragsteller'!W13=\"muss nicht erneut eingereicht werden\",'Anforderung Antragsteller'!W13=\"nicht erforderlich\"),\"-\",$C12)","v":"-"},{"$f":"IF(OR('Anforderung Antragsteller'!AB13=\"muss nicht erneut eingereicht werden\",'Anforderung Antragsteller'!AB13=\"nicht erforderlich\"),\"-\",$C12)","v":"-"},"Wenn keine gravierende Änderung am Produkt passiert ist, dann muss der Hersteller bestätigen, dass die 52°C weiterhin eingehalten werden."]
[null,"- Minmaler \"SCOP_domestic hot water\", bzw. \"COP_domestic hot water\" wird eingehalten\nA7 ≥ 2,8 / A15 ≥ 2,9 / A20 ≥ 3,2 / B0 ≥ 2,8 / W10 ≥ 3,0","werden die EHPA Grenzen eingehalten und sind die SCOP Grenzen in allen Unterlagen gleich angegeben, bzw. stimmen diese mit dem Prüfbericht überein",{"$f":"IF(OR('Anforderung Antragsteller'!H14=\"muss nicht erneut eingereicht werden\",'Anforderung Antragsteller'!H14=\"nicht erforderlich\"),\"-\",$C13)","v":"-"},{"$f":"IF(OR('Anforderung Antragsteller'!M14=\"muss nicht erneut eingereicht werden\",'Anforderung Antragsteller'!M14=\"nicht erforderlich\"),\"-\",$C13)","v":"-"},{"$f":"IF(OR('Anforderung Antragsteller'!R14=\"muss nicht erneut eingereicht werden\",'Anforderung Antragsteller'!R14=\"nicht erforderlich\"),\"-\",$C13)","v":"-"},{"$f":"IF(OR('Anforderung Antragsteller'!W14=\"muss nicht erneut eingereicht werden\",'Anforderung Antragsteller'!W14=\"nicht erforderlich\"),\"-\",$C13)","v":"-"},{"$f":"IF(OR('Anforderung Antragsteller'!AB14=\"muss nicht erneut eingereicht werden\",'Anforderung Antragsteller'!AB14=\"nicht erforderlich\"),\"-\",$C13)","v":"-"},"Wenn keine gravierende Änderung am Produkt passiert ist, dann muss der Hersteller bestätigen, dass die Effizienz gleich geblieben oder besser wird."]
[null,"Unterfertigte Baugleicheitsbescheinigung des Herstellers, falls die Produktbezeichnungen am Prüfbericht/HP Keymark und am EHPA Label nicht gleich sind (siehe Vorlage unter www.waermepumpe-austria.at/dienste/guetesiegel/dokumente-und-links)","Ist der Produktname am Prüfbericht nicht ident mit dem Produktnamen am Gütesiegel, muss bestätigt werden, dass nur der Name unterschiedlich ist. Die Hardware und somit auch die Leistungsdaten sind gleich.",{"$f":"IF(OR('Anforderung Antragsteller'!H15=\"muss nicht erneut eingereicht werden\",'Anforderung Antragsteller'!H15=\"nicht erforderlich\"),\"-\",$C14)","v":"Ist der Produktname am Prüfbericht nicht ident mit dem Produktnamen am Gütesiegel, muss bestätigt werden, dass nur der Name unterschiedlich ist. Die Hardware und somit auch die Leistungsdaten sind gleich."},{"$f":"IF(OR('Anforderung Antragsteller'!M15=\"muss nicht erneut eingereicht werden\",'Anforderung Antragsteller'!M15=\"nicht erforderlich\"),\"-\",$C14)","v":"-"},{"$f":"IF(OR('Anforderung Antragsteller'!R15=\"muss nicht erneut eingereicht werden\",'Anforderung Antragsteller'!R15=\"nicht erforderlich\"),\"-\",$C14)","v":"Ist der Produktname am Prüfbericht nicht ident mit dem Produktnamen am Gütesiegel, muss bestätigt werden, dass nur der Name unterschiedlich ist. Die Hardware und somit auch die Leistungsdaten sind gleich."},{"$f":"IF(OR('Anforderung Antragsteller'!W15=\"muss nicht erneut eingereicht werden\",'Anforderung Antragsteller'!W15=\"nicht erforderlich\"),\"-\",$C14)","v":"Ist der Produktname am Prüfbericht nicht ident mit dem Produktnamen am Gütesiegel, muss bestätigt werden, dass nur der Name unterschiedlich ist. Die Hardware und somit auch die Leistungsdaten sind gleich."},{"$f":"IF(OR('Anforderung Antragsteller'!AB15=\"muss nicht erneut eingereicht werden\",'Anforderung Antragsteller'!AB15=\"nicht erforderlich\"),\"-\",$C14)","v":"Ist der Produktname am Prüfbericht nicht ident mit dem Produktnamen am Gütesiegel, muss bestätigt werden, dass nur der Name unterschiedlich ist. Die Hardware und somit auch die Leistungsdaten sind gleich."},"-"]
[null,"Unterfertigte CE-Konformitäts-Erklärung","Der Produktname muss gefunden werden, sie muss unterfertigt sein und die gängigen EU Normen und Vorschriften enthalten.",{"$f":"IF(OR('Anforderung Antragsteller'!H16=\"muss nicht erneut eingereicht werden\",'Anforderung Antragsteller'!H16=\"nicht erforderlich\"),\"-\",$C15)","v":"Der Produktname muss gefunden werden, sie muss unterfertigt sein und die gängigen EU Normen und Vorschriften enthalten."},{"$f":"IF(OR('Anforderung Antragsteller'!M16=\"muss nicht erneut eingereicht werden\",'Anforderung Antragsteller'!M16=\"nicht erforderlich\"),\"-\",$C15)","v":"-"},{"$f":"IF(OR('Anforderung Antragsteller'!R16=\"muss nicht erneut eingereicht werden\",'Anforderung Antragsteller'!R16=\"nicht erforderlich\"),\"-\",$C15)","v":"Der Produktname muss gefunden werden, sie muss unterfertigt sein und die gängigen EU Normen und Vorschriften enthalten."},{"$f":"IF(OR('Anforderung Antragsteller'!W16=\"muss nicht erneut eingereicht werden\",'Anforderung Antragsteller'!W16=\"nicht erforderlich\"),\"-\",$C15)","v":"Der Produktname muss gefunden werden, sie muss unterfertigt sein und die gängigen EU Normen und Vorschriften enthalten."},{"$f":"IF(OR('Anforderung Antragsteller'!AB16=\"muss nicht erneut eingereicht werden\",'Anforderung Antragsteller'!AB16=\"nicht erforderlich\"),\"-\",$C15)","v":"Der Produktname muss gefunden werden, sie muss unterfertigt sein und die gängigen EU Normen und Vorschriften enthalten."},"-"]
[null,"Formelle Zustimmung vom Elterngütesiegel-Halter (siehe Vorlage unter www.waermepumpe-austria.at/dienste/guetesiegel/dokumente-und-links)","-","ausgefüllte und unterzeichnete Vorlage",{"$f":"IF(OR('Anforderung Antragsteller'!M17=\"muss nicht erneut eingereicht werden\",'Anforderung Antragsteller'!M17=\"nicht erforderlich\"),\"-\",$C16)","v":"-"},{"$f":"IF(OR('Anforderung Antragsteller'!R17=\"muss nicht erneut eingereicht werden\",'Anforderung Antragsteller'!R17=\"nicht erforderlich\"),\"-\",$C16)","v":"-"},{"$f":"IF(OR('Anforderung Antragsteller'!W17=\"muss nicht erneut eingereicht werden\",'Anforderung Antragsteller'!W17=\"nicht erforderlich\"),\"-\",$C16)","v":"-"},{"$f":"IF(OR('Anforderung Antragsteller'!AB17=\"muss nicht erneut eingereicht werden\",'Anforderung Antragsteller'!AB17=\"nicht erforderlich\"),\"-\",$C16)","v":"-"},"-"]
[2,"Antrag","-",{"$f":"IF(OR('Anforderung Antragsteller'!H18=\"muss nicht erneut eingereicht werden\",'Anforderung Antragsteller'!H18=\"nicht erforderlich\"),\"-\",$C17)","v":"-"},{"$f":"IF(OR('Anforderung Antragsteller'!M18=\"muss nicht erneut eingereicht werden\",'Anforderung Antragsteller'!M18=\"nicht erforderlich\"),\"-\",$C17)","v":"-"},{"$f":"IF(OR('Anforderung Antragsteller'!R18=\"muss nicht erneut eingereicht werden\",'Anforderung Antragsteller'!R18=\"nicht erforderlich\"),\"-\",$C17)","v":"-"},{"$f":"IF(OR('Anforderung Antragsteller'!W18=\"muss nicht erneut eingereicht werden\",'Anforderung Antragsteller'!W18=\"nicht erforderlich\"),\"-\",$C17)","v":"-"},{"$f":"IF(OR('Anforderung Antragsteller'!AB18=\"muss nicht erneut eingereicht werden\",'Anforderung Antragsteller'!AB18=\"nicht erforderlich\"),\"-\",$C17)","v":"-"},{"$f":"IF(OR('Anforderung Antragsteller'!AG18=\"muss nicht erneut eingereicht werden\",'Anforderung Antragsteller'!AG18=\"nicht erforderlich\"),\"-\",$C17)","v":"-"}]
[null,"Hauptkomponenten Liste hochladen (Hersteller, Typenbezeichnung) und in der Online-Maske im Model inkl. SCOP Werte ausfüllen.","Die eingetragenen Werte müssen mit den Datenblättern, bzw. dem Prüfbericht übereinstimmen. Die Hauptkomponenten müssen mit dem Prüfbericht übereinstimmen. Bei den Hauptkomponenten muss ein Herstellername und genaue Typenbezeichnung angegeben sein. Softwareversion muss die derzeit aktuelle eingetragen sein.",{"$f":"IF(OR('Anforderung Antragsteller'!H19=\"muss nicht erneut eingereicht werden\",'Anforderung Antragsteller'!H19=\"nicht erforderlich\"),\"-\",$C18)","v":"-"},{"$f":"IF(OR('Anforderung Antragsteller'!M19=\"muss nicht erneut eingereicht werden\",'Anforderung Antragsteller'!M19=\"nicht erforderlich\"),\"-\",$C18)","v":"-"},{"$f":"IF(OR('Anforderung Antragsteller'!R19=\"muss nicht erneut eingereicht werden\",'Anforderung Antragsteller'!R19=\"nicht erforderlich\"),\"-\",$C18)","v":"Die eingetragenen Werte müssen mit den Datenblättern, bzw. dem Prüfbericht übereinstimmen. Die Hauptkomponenten müssen mit dem Prüfbericht übereinstimmen. Bei den Hauptkomponenten muss ein Herstellername und genaue Typenbezeichnung angegeben sein. Softwareversion muss die derzeit aktuelle eingetragen sein."},{"$f":"IF(OR('Anforderung Antragsteller'!W19=\"muss nicht erneut eingereicht werden\",'Anforderung Antragsteller'!W19=\"nicht erforderlich\"),\"-\",$C18)","v":"Die eingetragenen Werte müssen mit den Datenblättern, bzw. dem Prüfbericht übereinstimmen. Die Hauptkomponenten müssen mit dem Prüfbericht übereinstimmen. Bei den Hauptkomponenten muss ein Herstellername und genaue Typenbezeichnung angegeben sein. Softwareversion muss die derzeit aktuelle eingetragen sein."},{"$f":"IF(OR('Anforderung Antragsteller'!AB19=\"muss nicht erneut eingereicht werden\",'Anforderung Antragsteller'!AB19=\"nicht erforderlich\"),\"-\",$C18)","v":"-"},"Wenn eine Hauptkomponente geändert wurde, muss die Gütesiegelkommission entscheiden was gemacht werden muss."]
[null,"Eintragen der Daten nach EN 14511, EN 14825 und EN 12102-1 in der Online-Maske bei den einzelnen Modellen ausfüllen.","Eingetragene Werte sind mit den Unterlagen auf Übereinstimmung zu prüfen",{"$f":"IF(OR('Anforderung Antragsteller'!H20=\"muss nicht erneut eingereicht werden\",'Anforderung Antragsteller'!H20=\"nicht erforderlich\"),\"-\",$C19)","v":"-"},{"$f":"IF(OR('Anforderung Antragsteller'!M20=\"muss nicht erneut eingereicht werden\",'Anforderung Antragsteller'!M20=\"nicht erforderlich\"),\"-\",$C19)","v":"-"},{"$f":"IF(OR('Anforderung Antragsteller'!R20=\"muss nicht erneut eingereicht werden\",'Anforderung Antragsteller'!R20=\"nicht erforderlich\"),\"-\",$C19)","v":"Eingetragene Werte sind mit den Unterlagen auf Übereinstimmung zu prüfen"},{"$f":"IF(OR('Anforderung Antragsteller'!W20=\"muss nicht erneut eingereicht werden\",'Anforderung Antragsteller'!W20=\"nicht erforderlich\"),\"-\",$C19)","v":"Eingetragene Werte sind mit den Unterlagen auf Übereinstimmung zu prüfen"},{"$f":"IF(OR('Anforderung Antragsteller'!AB20=\"muss nicht erneut eingereicht werden\",'Anforderung Antragsteller'!AB20=\"nicht erforderlich\"),\"-\",$C19)","v":"Eingetragene Werte sind mit den Unterlagen auf Übereinstimmung zu prüfen"},{"$f":"IF(OR('Anforderung Antragsteller'!AG20=\"muss nicht erneut eingereicht werden\",'Anforderung Antragsteller'!AG20=\"nicht erforderlich\"),\"-\",$C19)","v":"Eingetragene Werte sind mit den Unterlagen auf Übereinstimmung zu prüfen"}]
[3,"Kundenservice  (deutschsprachig)","-",{"$f":"IF(OR('Anforderung Antragsteller'!H21=\"muss nicht erneut eingereicht werden\",'Anforderung Antragsteller'!H21=\"nicht erforderlich\"),\"-\",$C20)","v":"-"},{"$f":"IF(OR('Anforderung Antragsteller'!M21=\"muss nicht erneut eingereicht werden\",'Anforderung Antragsteller'!M21=\"nicht erforderlich\"),\"-\",$C20)","v":"-"},{"$f":"IF(OR('Anforderung Antragsteller'!R21=\"muss nicht erneut eingereicht werden\",'Anforderung Antragsteller'!R21=\"nicht erforderlich\"),\"-\",$C20)","v":"-"},{"$f":"IF(OR('Anforderung Antragsteller'!W21=\"muss nicht erneut eingereicht werden\",'Anforderung Antragsteller'!W21=\"nicht erforderlich\"),\"-\",$C20)","v":"-"},{"$f":"IF(OR('Anforderung Antragsteller'!AB21=\"muss nicht erneut eingereicht werden\",'Anforderung Antragsteller'!AB21=\"nicht erforderlich\"),\"-\",$C20)","v":"-"},{"$f":"IF(OR('Anforderung Antragsteller'!AG21=\"muss nicht erneut eingereicht werden\",'Anforderung Antragsteller'!AG21=\"nicht erforderlich\"),\"-\",$C20)","v":"-"}]
[null,"Formular-Vorlage für den Inbetriebnahme- und Wartungs-Techniker","-",{"$f":"IF(OR('Anforderung Antragsteller'!H22=\"muss nicht erneut eingereicht werden\",'Anforderung Antragsteller'!H22=\"nicht erforderlich\"),\"-\",$C21)","v":"-"},{"$f":"IF(OR('Anforderung Antragsteller'!M22=\"muss nicht erneut eingereicht werden\",'Anforderung Antragsteller'!M22=\"nicht erforderlich\"),\"-\",$C21)","v":"-"},{"$f":"IF(OR('Anforderung Antragsteller'!R22=\"muss nicht erneut eingereicht werden\",'Anforderung Antragsteller'!R22=\"nicht erforderlich\"),\"-\",$C21)","v":"-"},{"$f":"IF(OR('Anforderung Antragsteller'!W22=\"muss nicht erneut eingereicht werden\",'Anforderung Antragsteller'!W22=\"nicht erforderlich\"),\"-\",$C21)","v":"-"},{"$f":"IF(OR('Anforderung Antragsteller'!AB22=\"muss nicht erneut eingereicht werden\",'Anforderung Antragsteller'!AB22=\"nicht erforderlich\"),\"-\",$C21)","v":"-"},{"$f":"IF(OR('Anforderung Antragsteller'!AG22=\"muss nicht erneut eingereicht werden\",'Anforderung Antragsteller'!AG22=\"nicht erforderlich\"),\"-\",$C21)","v":"-"}]
[null,"Garantie für mindestens 2 Jahre","Teilweise wird dies in den AGBs angeführt, teilweise durch eine separates Schriftstück bestätigt. Wichtig ist, dass es nicht die gesetzliche Gewährleistung ist, sondern eine Garantie. Diese Garantie muss unabhängig von Service/Wartungsverträgen sein.",{"$f":"IF(OR('Anforderung Antragsteller'!H23=\"muss nicht erneut eingereicht werden\",'Anforderung Antragsteller'!H23=\"nicht erforderlich\"),\"-\",$C22)","v":"Teilweise wird dies in den AGBs angeführt, teilweise durch eine separates Schriftstück bestätigt. Wichtig ist, dass es nicht die gesetzliche Gewährleistung ist, sondern eine Garantie. Diese Garantie muss unabhängig von Service/Wartungsverträgen sein."},{"$f":"IF(OR('Anforderung Antragsteller'!M23=\"muss nicht erneut eingereicht werden\",'Anforderung Antragsteller'!M23=\"nicht erforderlich\"),\"-\",$C22)","v":"-"},{"$f":"IF(OR('Anforderung Antragsteller'!R23=\"muss nicht erneut eingereicht werden\",'Anforderung Antragsteller'!R23=\"nicht erforderlich\"),\"-\",$C22)","v":"Teilweise wird dies in den AGBs angeführt, teilweise durch eine separates Schriftstück bestätigt. Wichtig ist, dass es nicht die gesetzliche Gewährleistung ist, sondern eine Garantie. Diese Garantie muss unabhängig von Service/Wartungsverträgen sein."},{"$f":"IF(OR('Anforderung Antragsteller'!W23=\"muss nicht erneut eingereicht werden\",'Anforderung Antragsteller'!W23=\"nicht erforderlich\"),\"-\",$C22)","v":"-"},{"$f":"IF(OR('Anforderung Antragsteller'!AB23=\"muss nicht erneut eingereicht werden\",'Anforderung Antragsteller'!AB23=\"nicht erforderlich\"),\"-\",$C22)","v":"-"},{"$f":"IF(OR('Anforderung Antragsteller'!AG23=\"muss nicht erneut eingereicht werden\",'Anforderung Antragsteller'!AG23=\"nicht erforderlich\"),\"-\",$C22)","v":"-"}]
[null,"Ersatzteilgarantie für mindestens 10 Jahre","Teilweise wird dies in den AGBs angeführt, teilweise durch eine separates Schriftstück bestätigt. Diese Garantie muss unabhängig von Service/Wartungsverträgen sein.",{"$f":"IF(OR('Anforderung Antragsteller'!H24=\"muss nicht erneut eingereicht werden\",'Anforderung Antragsteller'!H24=\"nicht erforderlich\"),\"-\",$C23)","v":"Teilweise wird dies in den AGBs angeführt, teilweise durch eine separates Schriftstück bestätigt. Diese Garantie muss unabhängig von Service/Wartungsverträgen sein."},{"$f":"IF(OR('Anforderung Antragsteller'!M24=\"muss nicht erneut eingereicht werden\",'Anforderung Antragsteller'!M24=\"nicht erforderlich\"),\"-\",$C23)","v":"-"},{"$f":"IF(OR('Anforderung Antragsteller'!R24=\"muss nicht erneut eingereicht werden\",'Anforderung Antragsteller'!R24=\"nicht erforderlich\"),\"-\",$C23)","v":"Teilweise wird dies in den AGBs angeführt, teilweise durch eine separates Schriftstück bestätigt. Diese Garantie muss unabhängig von Service/Wartungsverträgen sein."},{"$f":"IF(OR('Anforderung Antragsteller'!W24=\"muss nicht erneut eingereicht werden\",'Anforderung Antragsteller'!W24=\"nicht erforderlich\"),\"-\",$C23)","v":"-"},{"$f":"IF(OR('Anforderung Antragsteller'!AB24=\"muss nicht erneut eingereicht werden\",'Anforderung Antragsteller'!AB24=\"nicht erforderlich\"),\"-\",$C23)","v":"-"},{"$f":"IF(OR('Anforderung Antragsteller'!AG24=\"muss nicht erneut eingereicht werden\",'Anforderung Antragsteller'!AG24=\"nicht erforderlich\"),\"-\",$C23)","v":"-"}]
[null,"Reaktionszeit des Kundendienstes im Vertriebsgebiet innerhalb von 24\nStunden und Kontaktdaten zum Kundendienst im Vertriebsgebiet   (siehe Vorlage unter www.waermepumpe-austria.at/dienste/guetesiegel/dokumente-und-links)","Ausgefüllte Vorlage",{"$f":"IF(OR('Anforderung Antragsteller'!H25=\"muss nicht erneut eingereicht werden\",'Anforderung Antragsteller'!H25=\"nicht erforderlich\"),\"-\",$C24)","v":"Ausgefüllte Vorlage"},{"$f":"IF(OR('Anforderung Antragsteller'!M25=\"muss nicht erneut eingereicht werden\",'Anforderung Antragsteller'!M25=\"nicht erforderlich\"),\"-\",$C24)","v":"-"},{"$f":"IF(OR('Anforderung Antragsteller'!R25=\"muss nicht erneut eingereicht werden\",'Anforderung Antragsteller'!R25=\"nicht erforderlich\"),\"-\",$C24)","v":"Ausgefüllte Vorlage"},{"$f":"IF(OR('Anforderung Antragsteller'!W25=\"muss nicht erneut eingereicht werden\",'Anforderung Antragsteller'!W25=\"nicht erforderlich\"),\"-\",$C24)","v":"-"},{"$f":"IF(OR('Anforderung Antragsteller'!AB25=\"muss nicht erneut eingereicht werden\",'Anforderung Antragsteller'!AB25=\"nicht erforderlich\"),\"-\",$C24)","v":"-"},{"$f":"IF(OR('Anforderung Antragsteller'!AG25=\"muss nicht erneut eingereicht werden\",'Anforderung Antragsteller'!AG25=\"nicht erforderlich\"),\"-\",$C24)","v":"-"}]
[4,"Bedienungsanleitungen  (deutschsprachig)","-",{"$f":"IF(OR('Anforderung Antragsteller'!H26=\"muss nicht erneut eingereicht werden\",'Anforderung Antragsteller'!H26=\"nicht erforderlich\"),\"-\",$C25)","v":"-"},{"$f":"IF(OR('Anforderung Antragsteller'!M26=\"muss nicht erneut eingereicht werden\",'Anforderung Antragsteller'!M26=\"nicht erforderlich\"),\"-\",$C25)","v":"-"},{"$f":"IF(OR('Anforderung Antragsteller'!R26=\"muss nicht erneut eingereicht werden\",'Anforderung Antragsteller'!R26=\"nicht erforderlich\"),\"-\",$C25)","v":"-"},{"$f":"IF(OR('Anforderung Antragsteller'!W26=\"muss nicht erneut eingereicht werden\",'Anforderung Antragsteller'!W26=\"nicht erforderlich\"),\"-\",$C25)","v":"-"},{"$f":"IF(OR('Anforderung Antragsteller'!AB26=\"muss nicht erneut eingereicht werden\",'Anforderung Antragsteller'!AB26=\"nicht erforderlich\"),\"-\",$C25)","v":"-"},{"$f":"IF(OR('Anforderung Antragsteller'!AG26=\"muss nicht erneut eingereicht werden\",'Anforderung Antragsteller'!AG26=\"nicht erforderlich\"),\"-\",$C25)","v":"-"}]
[null,"Informationen und Sicherheitshinweise für eine ordnungsgemäße\nNutzung","Meist ein paar Seiten in der Montageanleitung oder Installationsanleitung. Inhalt wird hier nur grob überflogen",{"$f":"IF(OR('Anforderung Antragsteller'!H27=\"muss nicht erneut eingereicht werden\",'Anforderung Antragsteller'!H27=\"nicht erforderlich\"),\"-\",$C26)","v":"Meist ein paar Seiten in der Montageanleitung oder Installationsanleitung. Inhalt wird hier nur grob überflogen"},{"$f":"IF(OR('Anforderung Antragsteller'!M27=\"muss nicht erneut eingereicht werden\",'Anforderung Antragsteller'!M27=\"nicht erforderlich\"),\"-\",$C26)","v":"-"},{"$f":"IF(OR('Anforderung Antragsteller'!R27=\"muss nicht erneut eingereicht werden\",'Anforderung Antragsteller'!R27=\"nicht erforderlich\"),\"-\",$C26)","v":"Meist ein paar Seiten in der Montageanleitung oder Installationsanleitung. Inhalt wird hier nur grob überflogen"},{"$f":"IF(OR('Anforderung Antragsteller'!W27=\"muss nicht erneut eingereicht werden\",'Anforderung Antragsteller'!W27=\"nicht erforderlich\"),\"-\",$C26)","v":"Meist ein paar Seiten in der Montageanleitung oder Installationsanleitung. Inhalt wird hier nur grob überflogen"},{"$f":"IF(OR('Anforderung Antragsteller'!AB27=\"muss nicht erneut eingereicht werden\",'Anforderung Antragsteller'!AB27=\"nicht erforderlich\"),\"-\",$C26)","v":"Meist ein paar Seiten in der Montageanleitung oder Installationsanleitung. Inhalt wird hier nur grob überflogen"},"muss im Technischen Datenblatt angepasst werden wenn durch die technische Änderung am Produkt betroffen"]
[null,"Anleitung zur Bedienung der Wärmepumpe","Bedienungsanleitung + Regleranleitung für Endkunden",{"$f":"IF(OR('Anforderung Antragsteller'!H28=\"muss nicht erneut eingereicht werden\",'Anforderung Antragsteller'!H28=\"nicht erforderlich\"),\"-\",$C27)","v":"Bedienungsanleitung + Regleranleitung für Endkunden"},{"$f":"IF(OR('Anforderung Antragsteller'!M28=\"muss nicht erneut eingereicht werden\",'Anforderung Antragsteller'!M28=\"nicht erforderlich\"),\"-\",$C27)","v":"-"},{"$f":"IF(OR('Anforderung Antragsteller'!R28=\"muss nicht erneut eingereicht werden\",'Anforderung Antragsteller'!R28=\"nicht erforderlich\"),\"-\",$C27)","v":"Bedienungsanleitung + Regleranleitung für Endkunden"},{"$f":"IF(OR('Anforderung Antragsteller'!W28=\"muss nicht erneut eingereicht werden\",'Anforderung Antragsteller'!W28=\"nicht erforderlich\"),\"-\",$C27)","v":"Bedienungsanleitung + Regleranleitung für Endkunden"},{"$f":"IF(OR('Anforderung Antragsteller'!AB28=\"muss nicht erneut eingereicht werden\",'Anforderung Antragsteller'!AB28=\"nicht erforderlich\"),\"-\",$C27)","v":"Bedienungsanleitung + Regleranleitung für Endkunden"},"muss im Technischen Datenblatt angepasst werden wenn durch die technische Änderung am Produkt betroffen"]
[null,"Ersatzteilliste","Es müssen für alle Produkte Ersatzteile angeführt werde. Stichprobenartig prüfen ob Hauptkomponenten enthalten sind.",{"$f":"IF(OR('Anforderung Antragsteller'!H29=\"muss nicht erneut eingereicht werden\",'Anforderung Antragsteller'!H29=\"nicht erforderlich\"),\"-\",$C28)","v":"Es müssen für alle Produkte Ersatzteile angeführt werde. Stichprobenartig prüfen ob Hauptkomponenten enthalten sind."},{"$f":"IF(OR('Anforderung Antragsteller'!M29=\"muss nicht erneut eingereicht werden\",'Anforderung Antragsteller'!M29=\"nicht erforderlich\"),\"-\",$C28)","v":"-"},{"$f":"IF(OR('Anforderung Antragsteller'!R29=\"muss nicht erneut eingereicht werden\",'Anforderung Antragsteller'!R29=\"nicht erforderlich\"),\"-\",$C28)","v":"Es müssen für alle Produkte Ersatzteile angeführt werde. Stichprobenartig prüfen ob Hauptkomponenten enthalten sind."},{"$f":"IF(OR('Anforderung Antragsteller'!W29=\"muss nicht erneut eingereicht werden\",'Anforderung Antragsteller'!W29=\"nicht erforderlich\"),\"-\",$C28)","v":"Es müssen für alle Produkte Ersatzteile angeführt werde. Stichprobenartig prüfen ob Hauptkomponenten enthalten sind."},{"$f":"IF(OR('Anforderung Antragsteller'!AB29=\"muss nicht erneut eingereicht werden\",'Anforderung Antragsteller'!AB29=\"nicht erforderlich\"),\"-\",$C28)","v":"Es müssen für alle Produkte Ersatzteile angeführt werde. Stichprobenartig prüfen ob Hauptkomponenten enthalten sind."},{"$f":"IF(OR('Anforderung Antragsteller'!AG30=\"muss nicht erneut eingereicht werden\",'Anforderung Antragsteller'!AG30=\"nicht erforderlich\"),\"-\",$C28)","v":"Es müssen für alle Produkte Ersatzteile angeführt werde. Stichprobenartig prüfen ob Hauptkomponenten enthalten sind."}]
[5,"Installationsanleitungen  (deutschsprachig)","-",{"$f":"IF(OR('Anforderung Antragsteller'!H30=\"muss nicht erneut eingereicht werden\",'Anforderung Antragsteller'!H30=\"nicht erforderlich\"),\"-\",$C29)","v":"-"},{"$f":"IF(OR('Anforderung Antragsteller'!M30=\"muss nicht erneut eingereicht werden\",'Anforderung Antragsteller'!M30=\"nicht erforderlich\"),\"-\",$C29)","v":"-"},{"$f":"IF(OR('Anforderung Antragsteller'!R30=\"muss nicht erneut eingereicht werden\",'Anforderung Antragsteller'!R30=\"nicht erforderlich\"),\"-\",$C29)","v":"-"},{"$f":"IF(OR('Anforderung Antragsteller'!W30=\"muss nicht erneut eingereicht werden\",'Anforderung Antragsteller'!W30=\"nicht erforderlich\"),\"-\",$C29)","v":"-"},{"$f":"IF(OR('Anforderung Antragsteller'!AB30=\"muss nicht erneut eingereicht werden\",'Anforderung Antragsteller'!AB30=\"nicht erforderlich\"),\"-\",$C29)","v":"-"},{"$f":"IF(OR('Anforderung Antragsteller'!AG30=\"muss nicht erneut eingereicht werden\",'Anforderung Antragsteller'!AG30=\"nicht erforderlich\"),\"-\",$C29)","v":"-"}]
[null,"Installationsanleitung","Installationsanleitung muss vorhanden sein",{"$f":"IF(OR('Anforderung Antragsteller'!H31=\"muss nicht erneut eingereicht werden\",'Anforderung Antragsteller'!H31=\"nicht erforderlich\"),\"-\",$C30)","v":"Installationsanleitung muss vorhanden sein"},{"$f":"IF(OR('Anforderung Antragsteller'!M31=\"muss nicht erneut eingereicht werden\",'Anforderung Antragsteller'!M31=\"nicht erforderlich\"),\"-\",$C30)","v":"-"},{"$f":"IF(OR('Anforderung Antragsteller'!R31=\"muss nicht erneut eingereicht werden\",'Anforderung Antragsteller'!R31=\"nicht erforderlich\"),\"-\",$C30)","v":"Installationsanleitung muss vorhanden sein"},{"$f":"IF(OR('Anforderung Antragsteller'!W31=\"muss nicht erneut eingereicht werden\",'Anforderung Antragsteller'!W31=\"nicht erforderlich\"),\"-\",$C30)","v":"Installationsanleitung muss vorhanden sein"},{"$f":"IF(OR('Anforderung Antragsteller'!AB31=\"muss nicht erneut eingereicht werden\",'Anforderung Antragsteller'!AB31=\"nicht erforderlich\"),\"-\",$C30)","v":"Installationsanleitung muss vorhanden sein"},"muss im Technischen Datenblatt angepasst werden wenn durch die technische Änderung am Produkt betroffen"]
[null,"Sicherheitshinweise","Sicherheitshinweise müssen enthalten sein",{"$f":"IF(OR('Anforderung Antragsteller'!H32=\"muss nicht erneut eingereicht werden\",'Anforderung Antragsteller'!H32=\"nicht erforderlich\"),\"-\",$C31)","v":"Sicherheitshinweise müssen enthalten sein"},{"$f":"IF(OR('Anforderung Antragsteller'!M33=\"muss nicht erneut eingereicht werden\",'Anforderung Antragsteller'!M33=\"nicht erforderlich\"),\"-\",$C31)","v":"-"},{"$f":"IF(OR('Anforderung Antragsteller'!R32=\"muss nicht erneut eingereicht werden\",'Anforderung Antragsteller'!R32=\"nicht erforderlich\"),\"-\",$C31)","v":"Sicherheitshinweise müssen enthalten sein"},{"$f":"IF(OR('Anforderung Antragsteller'!W32=\"muss nicht erneut eingereicht werden\",'Anforderung Antragsteller'!W32=\"nicht erforderlich\"),\"-\",$C31)","v":"Sicherheitshinweise müssen enthalten sein"},{"$f":"IF(OR('Anforderung Antragsteller'!AB32=\"muss nicht erneut eingereicht werden\",'Anforderung Antragsteller'!AB32=\"nicht erforderlich\"),\"-\",$C31)","v":"Sicherheitshinweise müssen enthalten sein"},"muss im Technischen Datenblatt angepasst werden wenn durch die technische Änderung am Produkt betroffen"]
[null,"Inbetriebnahmehinweise","Inbetriebnahmehinweise müssen enthalten sein (zum Beispiel: Transport, Aufstellung, Anschluss Wasser/Kälte, Anschluss Strom, Inbetriebnahme am Regler, Fehlerbeschreibung,…)",{"$f":"IF(OR('Anforderung Antragsteller'!H33=\"muss nicht erneut eingereicht werden\",'Anforderung Antragsteller'!H33=\"nicht erforderlich\"),\"-\",$C32)","v":"Inbetriebnahmehinweise müssen enthalten sein (zum Beispiel: Transport, Aufstellung, Anschluss Wasser/Kälte, Anschluss Strom, Inbetriebnahme am Regler, Fehlerbeschreibung,…)"},{"$f":"IF(OR('Anforderung Antragsteller'!M34=\"muss nicht erneut eingereicht werden\",'Anforderung Antragsteller'!M34=\"nicht erforderlich\"),\"-\",$C32)","v":"-"},{"$f":"IF(OR('Anforderung Antragsteller'!R33=\"muss nicht erneut eingereicht werden\",'Anforderung Antragsteller'!R33=\"nicht erforderlich\"),\"-\",$C32)","v":"Inbetriebnahmehinweise müssen enthalten sein (zum Beispiel: Transport, Aufstellung, Anschluss Wasser/Kälte, Anschluss Strom, Inbetriebnahme am Regler, Fehlerbeschreibung,…)"},{"$f":"IF(OR('Anforderung Antragsteller'!W33=\"muss nicht erneut eingereicht werden\",'Anforderung Antragsteller'!W33=\"nicht erforderlich\"),\"-\",$C32)","v":"Inbetriebnahmehinweise müssen enthalten sein (zum Beispiel: Transport, Aufstellung, Anschluss Wasser/Kälte, Anschluss Strom, Inbetriebnahme am Regler, Fehlerbeschreibung,…)"},{"$f":"IF(OR('Anforderung Antragsteller'!AB33=\"muss nicht erneut eingereicht werden\",'Anforderung Antragsteller'!AB33=\"nicht erforderlich\"),\"-\",$C32)","v":"Inbetriebnahmehinweise müssen enthalten sein (zum Beispiel: Transport, Aufstellung, Anschluss Wasser/Kälte, Anschluss Strom, Inbetriebnahme am Regler, Fehlerbeschreibung,…)"},"muss im Technischen Datenblatt angepasst werden wenn durch die technische Änderung am Produkt betroffen"]
[null,"Fluidschemata Kältekreis und Wasserkreis","Es muss ein Schema mit Beschriftung der Komponenten des Kältekreises vorhanden sein und eine schematische Empfehlung für die Wasserinstallation (Heizung, Warmwasser). Das Kältekreisschema der beantragten Modelle muss der Definition der Modelreihe entsprechen -> gleiche Kompressortechnologie",{"$f":"IF(OR('Anforderung Antragsteller'!H34=\"muss nicht erneut eingereicht werden\",'Anforderung Antragsteller'!H34=\"nicht erforderlich\"),\"-\",$C33)","v":"Es muss ein Schema mit Beschriftung der Komponenten des Kältekreises vorhanden sein und eine schematische Empfehlung für die Wasserinstallation (Heizung, Warmwasser). Das Kältekreisschema der beantragten Modelle muss der Definition der Modelreihe entsprechen -> gleiche Kompressortechnologie"},{"$f":"IF(OR('Anforderung Antragsteller'!M35=\"muss nicht erneut eingereicht werden\",'Anforderung Antragsteller'!M35=\"nicht erforderlich\"),\"-\",$C33)","v":"-"},{"$f":"IF(OR('Anforderung Antragsteller'!R34=\"muss nicht erneut eingereicht werden\",'Anforderung Antragsteller'!R34=\"nicht erforderlich\"),\"-\",$C33)","v":"Es muss ein Schema mit Beschriftung der Komponenten des Kältekreises vorhanden sein und eine schematische Empfehlung für die Wasserinstallation (Heizung, Warmwasser). Das Kältekreisschema der beantragten Modelle muss der Definition der Modelreihe entsprechen -> gleiche Kompressortechnologie"},{"$f":"IF(OR('Anforderung Antragsteller'!W34=\"muss nicht erneut eingereicht werden\",'Anforderung Antragsteller'!W34=\"nicht erforderlich\"),\"-\",$C33)","v":"Es muss ein Schema mit Beschriftung der Komponenten des Kältekreises vorhanden sein und eine schematische Empfehlung für die Wasserinstallation (Heizung, Warmwasser). Das Kältekreisschema der beantragten Modelle muss der Definition der Modelreihe entsprechen -> gleiche Kompressortechnologie"},{"$f":"IF(OR('Anforderung Antragsteller'!AB34=\"muss nicht erneut eingereicht werden\",'Anforderung Antragsteller'!AB34=\"nicht erforderlich\"),\"-\",$C33)","v":"Es muss ein Schema mit Beschriftung der Komponenten des Kältekreises vorhanden sein und eine schematische Empfehlung für die Wasserinstallation (Heizung, Warmwasser). Das Kältekreisschema der beantragten Modelle muss der Definition der Modelreihe entsprechen -> gleiche Kompressortechnologie"},"muss im Technischen Datenblatt angepasst werden wenn durch die technische Änderung am Produkt betroffen"]
[null,"Elektroschema zum Anschluss der Wärmepumpe","Es müssen mindestens die Ein- und Ausgangsklemmen beschrieben sein (Funktion und Elektrische Angaben)",{"$f":"IF(OR('Anforderung Antragsteller'!H35=\"muss nicht erneut eingereicht werden\",'Anforderung Antragsteller'!H35=\"nicht erforderlich\"),\"-\",$C34)","v":"Es müssen mindestens die Ein- und Ausgangsklemmen beschrieben sein (Funktion und Elektrische Angaben)"},{"$f":"IF(OR('Anforderung Antragsteller'!M36=\"muss nicht erneut eingereicht werden\",'Anforderung Antragsteller'!M36=\"nicht erforderlich\"),\"-\",$C34)","v":"-"},{"$f":"IF(OR('Anforderung Antragsteller'!R35=\"muss nicht erneut eingereicht werden\",'Anforderung Antragsteller'!R35=\"nicht erforderlich\"),\"-\",$C34)","v":"Es müssen mindestens die Ein- und Ausgangsklemmen beschrieben sein (Funktion und Elektrische Angaben)"},{"$f":"IF(OR('Anforderung Antragsteller'!W35=\"muss nicht erneut eingereicht werden\",'Anforderung Antragsteller'!W35=\"nicht erforderlich\"),\"-\",$C34)","v":"Es müssen mindestens die Ein- und Ausgangsklemmen beschrieben sein (Funktion und Elektrische Angaben)"},{"$f":"IF(OR('Anforderung Antragsteller'!AB35=\"muss nicht erneut eingereicht werden\",'Anforderung Antragsteller'!AB35=\"nicht erforderlich\"),\"-\",$C34)","v":"Es müssen mindestens die Ein- und Ausgangsklemmen beschrieben sein (Funktion und Elektrische Angaben)"},"muss im Technischen Datenblatt angepasst werden wenn durch die technische Änderung am Produkt betroffen"]
[null,"Energy-Label und Energy-Label-Datenblatt nach 811/2013 (Heizungs- und Kombiwärmepumpen), bzw 812/2013 (Warmwasserwärmepumpe)\n(nur bei Geräten mit höchstens 70kW Nennleistung)","Produktname muss mit dem Namen am Gütesiegel übereinstimmen und Effizienzwerte und Schallwerte müssen mit den anderen Unterlagen übereinstimmen.",{"$f":"IF(OR('Anforderung Antragsteller'!H36=\"muss nicht erneut eingereicht werden\",'Anforderung Antragsteller'!H36=\"nicht erforderlich\"),\"-\",$C35)","v":"Produktname muss mit dem Namen am Gütesiegel übereinstimmen und Effizienzwerte und Schallwerte müssen mit den anderen Unterlagen übereinstimmen."},{"$f":"IF(OR('Anforderung Antragsteller'!M37=\"muss nicht erneut eingereicht werden\",'Anforderung Antragsteller'!M37=\"nicht erforderlich\"),\"-\",$C35)","v":"Produktname muss mit dem Namen am Gütesiegel übereinstimmen und Effizienzwerte und Schallwerte müssen mit den anderen Unterlagen übereinstimmen."},{"$f":"IF(OR('Anforderung Antragsteller'!R36=\"muss nicht erneut eingereicht werden\",'Anforderung Antragsteller'!R36=\"nicht erforderlich\"),\"-\",$C35)","v":"Produktname muss mit dem Namen am Gütesiegel übereinstimmen und Effizienzwerte und Schallwerte müssen mit den anderen Unterlagen übereinstimmen."},{"$f":"IF(OR('Anforderung Antragsteller'!W36=\"muss nicht erneut eingereicht werden\",'Anforderung Antragsteller'!W36=\"nicht erforderlich\"),\"-\",$C35)","v":"Produktname muss mit dem Namen am Gütesiegel übereinstimmen und Effizienzwerte und Schallwerte müssen mit den anderen Unterlagen übereinstimmen."},{"$f":"IF(OR('Anforderung Antragsteller'!AB36=\"muss nicht erneut eingereicht werden\",'Anforderung Antragsteller'!AB36=\"nicht erforderlich\"),\"-\",$C35)","v":"Produktname muss mit dem Namen am Gütesiegel übereinstimmen und Effizienzwerte und Schallwerte müssen mit den anderen Unterlagen übereinstimmen."},{"$f":"IF(OR('Anforderung Antragsteller'!AG37=\"muss nicht erneut eingereicht werden\",'Anforderung Antragsteller'!AG37=\"nicht erforderlich\"),\"-\",$C35)","v":"Produktname muss mit dem Namen am Gütesiegel übereinstimmen und Effizienzwerte und Schallwerte müssen mit den anderen Unterlagen übereinstimmen."}]
[6,"Technische Daten  (deutschsprachig)","-",{"$f":"IF(OR('Anforderung Antragsteller'!H37=\"muss nicht erneut eingereicht werden\",'Anforderung Antragsteller'!H37=\"nicht erforderlich\"),\"-\",$C36)","v":"-"},{"$f":"IF(OR('Anforderung Antragsteller'!M38=\"muss nicht erneut eingereicht werden\",'Anforderung Antragsteller'!M38=\"nicht erforderlich\"),\"-\",$C36)","v":"-"},{"$f":"IF(OR('Anforderung Antragsteller'!R37=\"muss nicht erneut eingereicht werden\",'Anforderung Antragsteller'!R37=\"nicht erforderlich\"),\"-\",$C36)","v":"-"},{"$f":"IF(OR('Anforderung Antragsteller'!W37=\"muss nicht erneut eingereicht werden\",'Anforderung Antragsteller'!W37=\"nicht erforderlich\"),\"-\",$C36)","v":"-"},{"$f":"IF(OR('Anforderung Antragsteller'!AB37=\"muss nicht erneut eingereicht werden\",'Anforderung Antragsteller'!AB37=\"nicht erforderlich\"),\"-\",$C36)","v":"-"},{"$f":"IF(OR('Anforderung Antragsteller'!AG37=\"muss nicht erneut eingereicht werden\",'Anforderung Antragsteller'!AG37=\"nicht erforderlich\"),\"-\",$C36)","v":"-"}]
[null,"Leistungsdaten (Wärmeleistung, elektrische Leistungsaufnahme und COP über den gesamten Leistungsbereich)","muss lt. EHPA Regularien nicht enthalten sein, wird jedoch verlangt, da diese Daten in der GET-Datenbank notwendig sind",{"$f":"IF(OR('Anforderung Antragsteller'!H38=\"muss nicht erneut eingereicht werden\",'Anforderung Antragsteller'!H38=\"nicht erforderlich\"),\"-\",$C37)","v":"muss lt. EHPA Regularien nicht enthalten sein, wird jedoch verlangt, da diese Daten in der GET-Datenbank notwendig sind"},"-",{"$f":"IF(OR('Anforderung Antragsteller'!R38=\"muss nicht erneut eingereicht werden\",'Anforderung Antragsteller'!R38=\"nicht erforderlich\"),\"-\",$C37)","v":"muss lt. EHPA Regularien nicht enthalten sein, wird jedoch verlangt, da diese Daten in der GET-Datenbank notwendig sind"},{"$f":"IF(OR('Anforderung Antragsteller'!W38=\"muss nicht erneut eingereicht werden\",'Anforderung Antragsteller'!W38=\"nicht erforderlich\"),\"-\",$C37)","v":"muss lt. EHPA Regularien nicht enthalten sein, wird jedoch verlangt, da diese Daten in der GET-Datenbank notwendig sind"},{"$f":"IF(OR('Anforderung Antragsteller'!AB38=\"muss nicht erneut eingereicht werden\",'Anforderung Antragsteller'!AB38=\"nicht erforderlich\"),\"-\",$C37)","v":"muss lt. EHPA Regularien nicht enthalten sein, wird jedoch verlangt, da diese Daten in der GET-Datenbank notwendig sind"},"muss im Technischen Datenblatt angepasst werden wenn durch die technische Änderung am Produkt betroffen"]
[null,"Leistungsdaten nach EN 14511 bei A7/W35 (Wärmeleistung, elektrische Leistungsaufnahme und COP)","muss lt. EHPA Regularien nicht enthalten sein, wird jedoch verlangt, da diese Daten in der GET-Datenbank notwendig sind",{"$f":"IF(OR('Anforderung Antragsteller'!H39=\"muss nicht erneut eingereicht werden\",'Anforderung Antragsteller'!H39=\"nicht erforderlich\"),\"-\",$C38)","v":"muss lt. EHPA Regularien nicht enthalten sein, wird jedoch verlangt, da diese Daten in der GET-Datenbank notwendig sind"},{"$f":"IF(OR('Anforderung Antragsteller'!M40=\"muss nicht erneut eingereicht werden\",'Anforderung Antragsteller'!M40=\"nicht erforderlich\"),\"-\",$C38)","v":"-"},{"$f":"IF(OR('Anforderung Antragsteller'!R39=\"muss nicht erneut eingereicht werden\",'Anforderung Antragsteller'!R39=\"nicht erforderlich\"),\"-\",$C38)","v":"muss lt. EHPA Regularien nicht enthalten sein, wird jedoch verlangt, da diese Daten in der GET-Datenbank notwendig sind"},{"$f":"IF(OR('Anforderung Antragsteller'!W39=\"muss nicht erneut eingereicht werden\",'Anforderung Antragsteller'!W39=\"nicht erforderlich\"),\"-\",$C38)","v":"muss lt. EHPA Regularien nicht enthalten sein, wird jedoch verlangt, da diese Daten in der GET-Datenbank notwendig sind"},{"$f":"IF(OR('Anforderung Antragsteller'!AB39=\"muss nicht erneut eingereicht werden\",'Anforderung Antragsteller'!AB39=\"nicht erforderlich\"),\"-\",$C38)","v":"muss lt. EHPA Regularien nicht enthalten sein, wird jedoch verlangt, da diese Daten in der GET-Datenbank notwendig sind"},"muss im Technischen Datenblatt angepasst werden wenn durch die technische Änderung am Produkt betroffen"]
[null,"Maßzeichnung","muss enthalten sein",{"$f":"IF(OR('Anforderung Antragsteller'!H40=\"muss nicht erneut eingereicht werden\",'Anforderung Antragsteller'!H40=\"nicht erforderlich\"),\"-\",$C39)","v":"muss enthalten sein"},{"$f":"IF(OR('Anforderung Antragsteller'!M41=\"muss nicht erneut eingereicht werden\",'Anforderung Antragsteller'!M41=\"nicht erforderlich\"),\"-\",$C39)","v":"-"},{"$f":"IF(OR('Anforderung Antragsteller'!R40=\"muss nicht erneut eingereicht werden\",'Anforderung Antragsteller'!R40=\"nicht erforderlich\"),\"-\",$C39)","v":"muss enthalten sein"},{"$f":"IF(OR('Anforderung Antragsteller'!W40=\"muss nicht erneut eingereicht werden\",'Anforderung Antragsteller'!W40=\"nicht erforderlich\"),\"-\",$C39)","v":"muss enthalten sein"},{"$f":"IF(OR('Anforderung Antragsteller'!AB40=\"muss nicht erneut eingereicht werden\",'Anforderung Antragsteller'!AB40=\"nicht erforderlich\"),\"-\",$C39)","v":"muss enthalten sein"},"muss im Technischen Datenblatt angepasst werden wenn durch die technische Änderung am Produkt betroffen"]
[null,"Mindestabstände","muss enthalten sein",{"$f":"IF(OR('Anforderung Antragsteller'!H41=\"muss nicht erneut eingereicht werden\",'Anforderung Antragsteller'!H41=\"nicht erforderlich\"),\"-\",$C40)","v":"muss enthalten sein"},{"$f":"IF(OR('Anforderung Antragsteller'!M42=\"muss nicht erneut eingereicht werden\",'Anforderung Antragsteller'!M42=\"nicht erforderlich\"),\"-\",$C40)","v":"-"},{"$f":"IF(OR('Anforderung Antragsteller'!R41=\"muss nicht erneut eingereicht werden\",'Anforderung Antragsteller'!R41=\"nicht erforderlich\"),\"-\",$C40)","v":"muss enthalten sein"},{"$f":"IF(OR('Anforderung Antragsteller'!W41=\"muss nicht erneut eingereicht werden\",'Anforderung Antragsteller'!W41=\"nicht erforderlich\"),\"-\",$C40)","v":"muss enthalten sein"},{"$f":"IF(OR('Anforderung Antragsteller'!AB41=\"muss nicht erneut eingereicht werden\",'Anforderung Antragsteller'!AB41=\"nicht erforderlich\"),\"-\",$C40)","v":"muss enthalten sein"},"muss im Technischen Datenblatt angepasst werden wenn durch die technische Änderung am Produkt betroffen"]
[null,"Kältemittel: Art und Füllmenge","muss enthalten sein",{"$f":"IF(OR('Anforderung Antragsteller'!H42=\"muss nicht erneut eingereicht werden\",'Anforderung Antragsteller'!H42=\"nicht erforderlich\"),\"-\",$C41)","v":"muss enthalten sein"},{"$f":"IF(OR('Anforderung Antragsteller'!M43=\"muss nicht erneut eingereicht werden\",'Anforderung Antragsteller'!M43=\"nicht erforderlich\"),\"-\",$C41)","v":"-"},{"$f":"IF(OR('Anforderung Antragsteller'!R42=\"muss nicht erneut eingereicht werden\",'Anforderung Antragsteller'!R42=\"nicht erforderlich\"),\"-\",$C41)","v":"muss enthalten sein"},{"$f":"IF(OR('Anforderung Antragsteller'!W42=\"muss nicht erneut eingereicht werden\",'Anforderung Antragsteller'!W42=\"nicht erforderlich\"),\"-\",$C41)","v":"muss enthalten sein"},{"$f":"IF(OR('Anforderung Antragsteller'!AB42=\"muss nicht erneut eingereicht werden\",'Anforderung Antragsteller'!AB42=\"nicht erforderlich\"),\"-\",$C41)","v":"muss enthalten sein"},"muss im Technischen Datenblatt angepasst werden wenn durch die technische Änderung am Produkt betroffen"]
[null,"Anlaufstrom / maximaler Betriebsstrom in A","Anlaufstrom oder maximaler Betriebsstrom",{"$f":"IF(OR('Anforderung Antragsteller'!H43=\"muss nicht erneut eingereicht werden\",'Anforderung Antragsteller'!H43=\"nicht erforderlich\"),\"-\",$C42)","v":"Anlaufstrom oder maximaler Betriebsstrom"},{"$f":"IF(OR('Anforderung Antragsteller'!M44=\"muss nicht erneut eingereicht werden\",'Anforderung Antragsteller'!M44=\"nicht erforderlich\"),\"-\",$C42)","v":"-"},{"$f":"IF(OR('Anforderung Antragsteller'!R43=\"muss nicht erneut eingereicht werden\",'Anforderung Antragsteller'!R43=\"nicht erforderlich\"),\"-\",$C42)","v":"Anlaufstrom oder maximaler Betriebsstrom"},{"$f":"IF(OR('Anforderung Antragsteller'!W43=\"muss nicht erneut eingereicht werden\",'Anforderung Antragsteller'!W43=\"nicht erforderlich\"),\"-\",$C42)","v":"Anlaufstrom oder maximaler Betriebsstrom"},{"$f":"IF(OR('Anforderung Antragsteller'!AB43=\"muss nicht erneut eingereicht werden\",'Anforderung Antragsteller'!AB43=\"nicht erforderlich\"),\"-\",$C42)","v":"Anlaufstrom oder maximaler Betriebsstrom"},"muss im Technischen Datenblatt angepasst werden wenn durch die technische Änderung am Produkt betroffen"]
[null,"Einsatzbereich / Einsatzgrenzen","muss enthalten sein",{"$f":"IF(OR('Anforderung Antragsteller'!H44=\"muss nicht erneut eingereicht werden\",'Anforderung Antragsteller'!H44=\"nicht erforderlich\"),\"-\",$C43)","v":"muss enthalten sein"},{"$f":"IF(OR('Anforderung Antragsteller'!M45=\"muss nicht erneut eingereicht werden\",'Anforderung Antragsteller'!M45=\"nicht erforderlich\"),\"-\",$C43)","v":"-"},{"$f":"IF(OR('Anforderung Antragsteller'!R44=\"muss nicht erneut eingereicht werden\",'Anforderung Antragsteller'!R44=\"nicht erforderlich\"),\"-\",$C43)","v":"muss enthalten sein"},{"$f":"IF(OR('Anforderung Antragsteller'!W44=\"muss nicht erneut eingereicht werden\",'Anforderung Antragsteller'!W44=\"nicht erforderlich\"),\"-\",$C43)","v":"muss enthalten sein"},{"$f":"IF(OR('Anforderung Antragsteller'!AB44=\"muss nicht erneut eingereicht werden\",'Anforderung Antragsteller'!AB44=\"nicht erforderlich\"),\"-\",$C43)","v":"muss enthalten sein"},"muss im Technischen Datenblatt angepasst werden wenn durch die technische Änderung am Produkt betroffen"]
[null,"Volumenstrom Quelle- und Senkenseite in m³/h, l/min","muss enthalten sein",{"$f":"IF(OR('Anforderung Antragsteller'!H45=\"muss nicht erneut eingereicht werden\",'Anforderung Antragsteller'!H45=\"nicht erforderlich\"),\"-\",$C44)","v":"muss enthalten sein"},{"$f":"IF(OR('Anforderung Antragsteller'!M46=\"muss nicht erneut eingereicht werden\",'Anforderung Antragsteller'!M46=\"nicht erforderlich\"),\"-\",$C44)","v":"-"},{"$f":"IF(OR('Anforderung Antragsteller'!R45=\"muss nicht erneut eingereicht werden\",'Anforderung Antragsteller'!R45=\"nicht erforderlich\"),\"-\",$C44)","v":"muss enthalten sein"},{"$f":"IF(OR('Anforderung Antragsteller'!W45=\"muss nicht erneut eingereicht werden\",'Anforderung Antragsteller'!W45=\"nicht erforderlich\"),\"-\",$C44)","v":"muss enthalten sein"},{"$f":"IF(OR('Anforderung Antragsteller'!AB45=\"muss nicht erneut eingereicht werden\",'Anforderung Antragsteller'!AB45=\"nicht erforderlich\"),\"-\",$C44)","v":"muss enthalten sein"},"muss im Technischen Datenblatt angepasst werden wenn durch die technische Änderung am Produkt betroffen"]
[null,"Volumen des WW-Speichers in Liter","muss enthalten sein",{"$f":"IF(OR('Anforderung Antragsteller'!H46=\"muss nicht erneut eingereicht werden\",'Anforderung Antragsteller'!H46=\"nicht erforderlich\"),\"-\",$C45)","v":"-"},{"$f":"IF(OR('Anforderung Antragsteller'!M47=\"muss nicht erneut eingereicht werden\",'Anforderung Antragsteller'!M47=\"nicht erforderlich\"),\"-\",$C45)","v":"-"},{"$f":"IF(OR('Anforderung Antragsteller'!R46=\"muss nicht erneut eingereicht werden\",'Anforderung Antragsteller'!R46=\"nicht erforderlich\"),\"-\",$C45)","v":"-"},{"$f":"IF(OR('Anforderung Antragsteller'!W46=\"muss nicht erneut eingereicht werden\",'Anforderung Antragsteller'!W46=\"nicht erforderlich\"),\"-\",$C45)","v":"-"},{"$f":"IF(OR('Anforderung Antragsteller'!AB46=\"muss nicht erneut eingereicht werden\",'Anforderung Antragsteller'!AB46=\"nicht erforderlich\"),\"-\",$C45)","v":"-"},"muss im Technischen Datenblatt angepasst werden wenn durch die technische Änderung am Produkt betroffen"]
[null,"Gewicht in kg","muss enthalten sein",{"$f":"IF(OR('Anforderung Antragsteller'!H47=\"muss nicht erneut eingereicht werden\",'Anforderung Antragsteller'!H47=\"nicht erforderlich\"),\"-\",$C46)","v":"muss enthalten sein"},{"$f":"IF(OR('Anforderung Antragsteller'!M48=\"muss nicht erneut eingereicht werden\",'Anforderung Antragsteller'!M48=\"nicht erforderlich\"),\"-\",$C46)","v":"-"},{"$f":"IF(OR('Anforderung Antragsteller'!R47=\"muss nicht erneut eingereicht werden\",'Anforderung Antragsteller'!R47=\"nicht erforderlich\"),\"-\",$C46)","v":"muss enthalten sein"},{"$f":"IF(OR('Anforderung Antragsteller'!W47=\"muss nicht erneut eingereicht werden\",'Anforderung Antragsteller'!W47=\"nicht erforderlich\"),\"-\",$C46)","v":"muss enthalten sein"},{"$f":"IF(OR('Anforderung Antragsteller'!AB47=\"muss nicht erneut eingereicht werden\",'Anforderung Antragsteller'!AB47=\"nicht erforderlich\"),\"-\",$C46)","v":"muss enthalten sein"},"muss im Technischen Datenblatt angepasst werden wenn durch die technische Änderung am Produkt betroffen"]
[null,"Schallleistung nach EN 12102 / Energy-Label in dB(A)","muss enthalten sein",{"$f":"IF(OR('Anforderung Antragsteller'!H48=\"muss nicht erneut eingereicht werden\",'Anforderung Antragsteller'!H48=\"nicht erforderlich\"),\"-\",$C47)","v":"muss enthalten sein"},{"$f":"IF(OR('Anforderung Antragsteller'!M49=\"muss nicht erneut eingereicht werden\",'Anforderung Antragsteller'!M49=\"nicht erforderlich\"),\"-\",$C47)","v":"-"},{"$f":"IF(OR('Anforderung Antragsteller'!R48=\"muss nicht erneut eingereicht werden\",'Anforderung Antragsteller'!R48=\"nicht erforderlich\"),\"-\",$C47)","v":"muss enthalten sein"},{"$f":"IF(OR('Anforderung Antragsteller'!W48=\"muss nicht erneut eingereicht werden\",'Anforderung Antragsteller'!W48=\"nicht erforderlich\"),\"-\",$C47)","v":"muss enthalten sein"},{"$f":"IF(OR('Anforderung Antragsteller'!AB48=\"muss nicht erneut eingereicht werden\",'Anforderung Antragsteller'!AB48=\"nicht erforderlich\"),\"-\",$C47)","v":"muss enthalten sein"},"Wenn keine gravierende Änderung am Produkt passiert ist, dann muss der Hersteller bestätigen, dass der Schall geblieben oder besser wird."]
[null,"Schallleistung im EN 14825 Prüfpunkt B (A2) in dB(A)","muss enthalten sein",{"$f":"IF(OR('Anforderung Antragsteller'!H49=\"muss nicht erneut eingereicht werden\",'Anforderung Antragsteller'!H49=\"nicht erforderlich\"),\"-\",$C48)","v":"muss enthalten sein"},{"$f":"IF(OR('Anforderung Antragsteller'!M50=\"muss nicht erneut eingereicht werden\",'Anforderung Antragsteller'!M50=\"nicht erforderlich\"),\"-\",$C48)","v":"-"},{"$f":"IF(OR('Anforderung Antragsteller'!R49=\"muss nicht erneut eingereicht werden\",'Anforderung Antragsteller'!R49=\"nicht erforderlich\"),\"-\",$C48)","v":"muss enthalten sein"},{"$f":"IF(OR('Anforderung Antragsteller'!W49=\"muss nicht erneut eingereicht werden\",'Anforderung Antragsteller'!W49=\"nicht erforderlich\"),\"-\",$C48)","v":"muss enthalten sein"},{"$f":"IF(OR('Anforderung Antragsteller'!AB49=\"muss nicht erneut eingereicht werden\",'Anforderung Antragsteller'!AB49=\"nicht erforderlich\"),\"-\",$C48)","v":"muss enthalten sein"},"Wenn keine gravierende Änderung am Produkt passiert ist, dann muss der Hersteller bestätigen, dass der Schall geblieben oder besser wird."]
[null,"maximaler Schallleistungspegel in dB(A) und dazugehörige Heizleistung in kW","muss enthalten sein",{"$f":"IF(OR('Anforderung Antragsteller'!H50=\"muss nicht erneut eingereicht werden\",'Anforderung Antragsteller'!H50=\"nicht erforderlich\"),\"-\",$C49)","v":"muss enthalten sein"},{"$f":"IF(OR('Anforderung Antragsteller'!M51=\"muss nicht erneut eingereicht werden\",'Anforderung Antragsteller'!M51=\"nicht erforderlich\"),\"-\",$C49)","v":"-"},{"$f":"IF(OR('Anforderung Antragsteller'!R50=\"muss nicht erneut eingereicht werden\",'Anforderung Antragsteller'!R50=\"nicht erforderlich\"),\"-\",$C49)","v":"muss enthalten sein"},{"$f":"IF(OR('Anforderung Antragsteller'!W50=\"muss nicht erneut eingereicht werden\",'Anforderung Antragsteller'!W50=\"nicht erforderlich\"),\"-\",$C49)","v":"muss enthalten sein"},{"$f":"IF(OR('Anforderung Antragsteller'!AB50=\"muss nicht erneut eingereicht werden\",'Anforderung Antragsteller'!AB50=\"nicht erforderlich\"),\"-\",$C49)","v":"muss enthalten sein"},"Wenn keine gravierende Änderung am Produkt passiert ist, dann muss der Hersteller bestätigen, dass der Schall geblieben oder besser wird."]
[null,"maximaler Schallleistungspegel \"Silent-Mode\" in dB(A) und dazugehörige Heizleistung in kW","muss enthalten sein",{"$f":"IF(OR('Anforderung Antragsteller'!H51=\"muss nicht erneut eingereicht werden\",'Anforderung Antragsteller'!H51=\"nicht erforderlich\"),\"-\",$C50)","v":"muss enthalten sein"},{"$f":"IF(OR('Anforderung Antragsteller'!M52=\"muss nicht erneut eingereicht werden\",'Anforderung Antragsteller'!M52=\"nicht erforderlich\"),\"-\",$C50)","v":"muss enthalten sein"},{"$f":"IF(OR('Anforderung Antragsteller'!R51=\"muss nicht erneut eingereicht werden\",'Anforderung Antragsteller'!R51=\"nicht erforderlich\"),\"-\",$C50)","v":"muss enthalten sein"},{"$f":"IF(OR('Anforderung Antragsteller'!W51=\"muss nicht erneut eingereicht werden\",'Anforderung Antragsteller'!W51=\"nicht erforderlich\"),\"-\",$C50)","v":"muss enthalten sein"},{"$f":"IF(OR('Anforderung Antragsteller'!AB51=\"muss nicht erneut eingereicht werden\",'Anforderung Antragsteller'!AB51=\"nicht erforderlich\"),\"-\",$C50)","v":"muss enthalten sein"},"Wenn keine gravierende Änderung am Produkt passiert ist, dann muss der Hersteller bestätigen, dass der Schall geblieben oder besser wird."]

{"sheet":"Prüfung Priorität","index":6,"n_rows":50,"n_cols":9,"rows_kept":50,"hidden":true}
["2. Prüfung Priorität - verpflichtende Anforderung zum Ausstellen"]
[]
[null,null,{"$f":"'Anforderung Antragsteller'!C3","v":"Erstantrag"},{"$f":"'Anforderung Antragsteller'!H3","v":"Übertragung von anderem Land oder anderem Unternehmen"},{"$f":"'Anforderung Antragsteller'!M3","v":"1. und 2. Verlängerung  (Gültigkeit max. 9 Jahre)"},{"$f":"'Anforderung Antragsteller'!R3","v":"ab 3. Verlängerung (Gültigkeit über 9 Jahre)"},{"$f":"'Anforderung Antragsteller'!W3","v":"Erweiterung von eigenem Gütesiegel"},{"$f":"'Anforderung Antragsteller'!AB3","v":"Änderung der Produktbezeichnungen"},{"$f":"'Anforderung Antragsteller'!AG3","v":"Technische Änderungen am Produkt"}]
[1,"Grundlegendes"]
[null,"akkreditierte Prüfberichte nach EN 12102-1 und -2, EN 14511-2 bis 4 und EN 14825, bzw. EN 16147 bei Trinkwasser\nAnzahl hängt vom Umfang der Modelreihe ab","-","-","-","-","-","-","-"]
[null,"- Unterschriebener detaillierter akkreditierter Leistungs-Prüfbericht nach EHPA Regularien oder HP-Keymark Regularien UND","ja, egal welches Prüfschema (HP-Keymark, EHPA, …)",{"$f":"IF(OR('Anforderung Antragsteller'!H7=\"muss nicht erneut eingereicht werden\",'Anforderung Antragsteller'!H7=\"nicht erforderlich\"),\"-\",$C6)","v":"ja, egal welches Prüfschema (HP-Keymark, EHPA, …)"},{"$f":"IF(OR('Anforderung Antragsteller'!M7=\"muss nicht erneut eingereicht werden\",'Anforderung Antragsteller'!M7=\"nicht erforderlich\"),\"-\",$C6)","v":"-"},{"$f":"IF(OR('Anforderung Antragsteller'!R7=\"muss nicht erneut eingereicht werden\",'Anforderung Antragsteller'!R7=\"nicht erforderlich\"),\"-\",$C6)","v":"ja, egal welches Prüfschema (HP-Keymark, EHPA, …)"},{"$f":"IF(OR('Anforderung Antragsteller'!W7=\"muss nicht erneut eingereicht werden\",'Anforderung Antragsteller'!W7=\"nicht erforderlich\"),\"-\",$C6)","v":"ja, egal welches Prüfschema (HP-Keymark, EHPA, …)"},{"$f":"IF(OR('Anforderung Antragsteller'!AB7=\"muss nicht erneut eingereicht werden\",'Anforderung Antragsteller'!AB7=\"nicht erforderlich\"),\"-\",$C6)","v":"-"},{"$f":"IF(OR('Anforderung Antragsteller'!AG7=\"muss nicht erneut eingereicht werden\",'Anforderung Antragsteller'!AG7=\"nicht erforderlich\"),\"-\",$C6)","v":"ja, egal welches Prüfschema (HP-Keymark, EHPA, …)"}]
[null,"- Unterschriebener detaillierter akkreditierter Schall-Prüfbericht  nach EHPA Regularien oder HP-Keymark Regularien UND","ja, egal welches Prüfschema (HP-Keymark, EHPA, …)",{"$f":"IF(OR('Anforderung Antragsteller'!H8=\"muss nicht erneut eingereicht werden\",'Anforderung Antragsteller'!H8=\"nicht erforderlich\"),\"-\",$C7)","v":"ja, egal welches Prüfschema (HP-Keymark, EHPA, …)"},{"$f":"IF(OR('Anforderung Antragsteller'!M8=\"muss nicht erneut eingereicht werden\",'Anforderung Antragsteller'!M8=\"nicht erforderlich\"),\"-\",$C7)","v":"-"},{"$f":"IF(OR('Anforderung Antragsteller'!R8=\"muss nicht erneut eingereicht werden\",'Anforderung Antragsteller'!R8=\"nicht erforderlich\"),\"-\",$C7)","v":"ja, egal welches Prüfschema (HP-Keymark, EHPA, …)"},{"$f":"IF(OR('Anforderung Antragsteller'!W8=\"muss nicht erneut eingereicht werden\",'Anforderung Antragsteller'!W8=\"nicht erforderlich\"),\"-\",$C7)","v":"ja, egal welches Prüfschema (HP-Keymark, EHPA, …)"},{"$f":"IF(OR('Anforderung Antragsteller'!AB8=\"muss nicht erneut eingereicht werden\",'Anforderung Antragsteller'!AB8=\"nicht erforderlich\"),\"-\",$C7)","v":"-"},{"$f":"IF(OR('Anforderung Antragsteller'!AG8=\"muss nicht erneut eingereicht werden\",'Anforderung Antragsteller'!AG8=\"nicht erforderlich\"),\"-\",$C7)","v":"ja, egal welches Prüfschema (HP-Keymark, EHPA, …)"}]
[null,"SCOP Anforderungen für Heizungs-Wärmepumpen","-",{"$f":"IF(OR('Anforderung Antragsteller'!H9=\"muss nicht erneut eingereicht werden\",'Anforderung Antragsteller'!H9=\"nicht erforderlich\"),\"-\",$C8)","v":"-"},{"$f":"IF(OR('Anforderung Antragsteller'!M9=\"muss nicht erneut eingereicht werden\",'Anforderung Antragsteller'!M9=\"nicht erforderlich\"),\"-\",$C8)","v":"-"},{"$f":"IF(OR('Anforderung Antragsteller'!R9=\"muss nicht erneut eingereicht werden\",'Anforderung Antragsteller'!R9=\"nicht erforderlich\"),\"-\",$C8)","v":"-"},{"$f":"IF(OR('Anforderung Antragsteller'!W9=\"muss nicht erneut eingereicht werden\",'Anforderung Antragsteller'!W9=\"nicht erforderlich\"),\"-\",$C8)","v":"-"},{"$f":"IF(OR('Anforderung Antragsteller'!AB9=\"muss nicht erneut eingereicht werden\",'Anforderung Antragsteller'!AB9=\"nicht erforderlich\"),\"-\",$C8)","v":"-"},{"$f":"IF(OR('Anforderung Antragsteller'!AG9=\"muss nicht erneut eingereicht werden\",'Anforderung Antragsteller'!AG9=\"nicht erforderlich\"),\"-\",$C8)","v":"-"}]
[null,"- Niedertemperaturanwendung (35°C) und durchschnittliches Klima:\n       SCOP Min : 3,70 (A/W)         SCOP Min : 4,70 (B/W, W/W)\n       SCOP Min : 4,10 (DX/W)       SCOP Min : 3,40 (A/A)","ja, bei Heizungs-WP",{"$f":"IF(OR('Anforderung Antragsteller'!H10=\"muss nicht erneut eingereicht werden\",'Anforderung Antragsteller'!H10=\"nicht erforderlich\"),\"-\",$C9)","v":"-"},{"$f":"IF(OR('Anforderung Antragsteller'!M10=\"muss nicht erneut eingereicht werden\",'Anforderung Antragsteller'!M10=\"nicht erforderlich\"),\"-\",$C9)","v":"-"},{"$f":"IF(OR('Anforderung Antragsteller'!R10=\"muss nicht erneut eingereicht werden\",'Anforderung Antragsteller'!R10=\"nicht erforderlich\"),\"-\",$C9)","v":"ja, bei Heizungs-WP"},{"$f":"IF(OR('Anforderung Antragsteller'!W10=\"muss nicht erneut eingereicht werden\",'Anforderung Antragsteller'!W10=\"nicht erforderlich\"),\"-\",$C9)","v":"ja, bei Heizungs-WP"},{"$f":"IF(OR('Anforderung Antragsteller'!AB10=\"muss nicht erneut eingereicht werden\",'Anforderung Antragsteller'!AB10=\"nicht erforderlich\"),\"-\",$C9)","v":"-"},{"$f":"IF(OR('Anforderung Antragsteller'!AG10=\"muss nicht erneut eingereicht werden\",'Anforderung Antragsteller'!AG10=\"nicht erforderlich\"),\"-\",$C9)","v":"ja, bei Heizungs-WP"}]
[null,"- Mitteltemperaturanwendung (55°C) und durchschnittliches Klima:\n       SCOP Min : 3,20 (A/W)       SCOP Min : 3,70 (B/W, W/W)\n       SCOP Min : 3,38 (DX/W)","ja, bei Heizungs-WP",{"$f":"IF(OR('Anforderung Antragsteller'!H11=\"muss nicht erneut eingereicht werden\",'Anforderung Antragsteller'!H11=\"nicht erforderlich\"),\"-\",$C10)","v":"-"},{"$f":"IF(OR('Anforderung Antragsteller'!M11=\"muss nicht erneut eingereicht werden\",'Anforderung Antragsteller'!M11=\"nicht erforderlich\"),\"-\",$C10)","v":"-"},{"$f":"IF(OR('Anforderung Antragsteller'!R11=\"muss nicht erneut eingereicht werden\",'Anforderung Antragsteller'!R11=\"nicht erforderlich\"),\"-\",$C10)","v":"ja, bei Heizungs-WP"},{"$f":"IF(OR('Anforderung Antragsteller'!W11=\"muss nicht erneut eingereicht werden\",'Anforderung Antragsteller'!W11=\"nicht erforderlich\"),\"-\",$C10)","v":"ja, bei Heizungs-WP"},{"$f":"IF(OR('Anforderung Antragsteller'!AB11=\"muss nicht erneut eingereicht werden\",'Anforderung Antragsteller'!AB11=\"nicht erforderlich\"),\"-\",$C10)","v":"-"},{"$f":"IF(OR('Anforderung Antragsteller'!AG11=\"muss nicht erneut eingereicht werden\",'Anforderung Antragsteller'!AG11=\"nicht erforderlich\"),\"-\",$C10)","v":"ja, bei Heizungs-WP"}]
[null,"Anforderungen für Brauchwasser-Wärmepumpen","-",{"$f":"IF(OR('Anforderung Antragsteller'!H12=\"muss nicht erneut eingereicht werden\",'Anforderung Antragsteller'!H12=\"nicht erforderlich\"),\"-\",$C11)","v":"-"},{"$f":"IF(OR('Anforderung Antragsteller'!M12=\"muss nicht erneut eingereicht werden\",'Anforderung Antragsteller'!M12=\"nicht erforderlich\"),\"-\",$C11)","v":"-"},{"$f":"IF(OR('Anforderung Antragsteller'!R12=\"muss nicht erneut eingereicht werden\",'Anforderung Antragsteller'!R12=\"nicht erforderlich\"),\"-\",$C11)","v":"-"},{"$f":"IF(OR('Anforderung Antragsteller'!W12=\"muss nicht erneut eingereicht werden\",'Anforderung Antragsteller'!W12=\"nicht erforderlich\"),\"-\",$C11)","v":"-"},{"$f":"IF(OR('Anforderung Antragsteller'!AB12=\"muss nicht erneut eingereicht werden\",'Anforderung Antragsteller'!AB12=\"nicht erforderlich\"),\"-\",$C11)","v":"-"},{"$f":"IF(OR('Anforderung Antragsteller'!AG12=\"muss nicht erneut eingereicht werden\",'Anforderung Antragsteller'!AG12=\"nicht erforderlich\"),\"-\",$C11)","v":"-"}]
[null,"- Die Wärmpumpe muss mindestens 52°C Warmwasser erzeugen können","ja, bei Brauchwasser-WP",{"$f":"IF(OR('Anforderung Antragsteller'!H13=\"muss nicht erneut eingereicht werden\",'Anforderung Antragsteller'!H13=\"nicht erforderlich\"),\"-\",$C12)","v":"-"},{"$f":"IF(OR('Anforderung Antragsteller'!M13=\"muss nicht erneut eingereicht werden\",'Anforderung Antragsteller'!M13=\"nicht erforderlich\"),\"-\",$C12)","v":"-"},{"$f":"IF(OR('Anforderung Antragsteller'!R13=\"muss nicht erneut eingereicht werden\",'Anforderung Antragsteller'!R13=\"nicht erforderlich\"),\"-\",$C12)","v":"-"},{"$f":"IF(OR('Anforderung Antragsteller'!W13=\"muss nicht erneut eingereicht werden\",'Anforderung Antragsteller'!W13=\"nicht erforderlich\"),\"-\",$C12)","v":"-"},{"$f":"IF(OR('Anforderung Antragsteller'!AB13=\"muss nicht erneut eingereicht werden\",'Anforderung Antragsteller'!AB13=\"nicht erforderlich\"),\"-\",$C12)","v":"-"},{"$f":"IF(OR('Anforderung Antragsteller'!AG13=\"muss nicht erneut eingereicht werden\",'Anforderung Antragsteller'!AG13=\"nicht erforderlich\"),\"-\",$C12)","v":"ja, bei Brauchwasser-WP"}]
[null,"- Minmaler \"SCOP_domestic hot water\", bzw. \"COP_domestic hot water\" wird eingehalten\nA7 ≥ 2,8 / A15 ≥ 2,9 / A20 ≥ 3,2 / B0 ≥ 2,8 / W10 ≥ 3,0","ja, bei Brauchwasser-WP",{"$f":"IF(OR('Anforderung Antragsteller'!H14=\"muss nicht erneut eingereicht werden\",'Anforderung Antragsteller'!H14=\"nicht erforderlich\"),\"-\",$C13)","v":"-"},{"$f":"IF(OR('Anforderung Antragsteller'!M14=\"muss nicht erneut eingereicht werden\",'Anforderung Antragsteller'!M14=\"nicht erforderlich\"),\"-\",$C13)","v":"-"},{"$f":"IF(OR('Anforderung Antragsteller'!R14=\"muss nicht erneut eingereicht werden\",'Anforderung Antragsteller'!R14=\"nicht erforderlich\"),\"-\",$C13)","v":"-"},{"$f":"IF(OR('Anforderung Antragsteller'!W14=\"muss nicht erneut eingereicht werden\",'Anforderung Antragsteller'!W14=\"nicht erforderlich\"),\"-\",$C13)","v":"-"},{"$f":"IF(OR('Anforderung Antragsteller'!AB14=\"muss nicht erneut eingereicht werden\",'Anforderung Antragsteller'!AB14=\"nicht erforderlich\"),\"-\",$C13)","v":"-"},{"$f":"IF(OR('Anforderung Antragsteller'!AG14=\"muss nicht erneut eingereicht werden\",'Anforderung Antragsteller'!AG14=\"nicht erforderlich\"),\"-\",$C13)","v":"ja, bei Brauchwasser-WP"}]
[null,"Unterfertigte Baugleicheitsbescheinigung des Herstellers, falls die Produktbezeichnungen am Prüfbericht/HP Keymark und am EHPA Label nicht gleich sind (siehe Vorlage unter www.waermepumpe-austria.at/dienste/guetesiegel/dokumente-und-links)","ja, wenn notwendig",{"$f":"IF(OR('Anforderung Antragsteller'!H15=\"muss nicht erneut eingereicht werden\",'Anforderung Antragsteller'!H15=\"nicht erforderlich\"),\"-\",$C14)","v":"ja, wenn notwendig"},{"$f":"IF(OR('Anforderung Antragsteller'!M15=\"muss nicht erneut eingereicht werden\",'Anforderung Antragsteller'!M15=\"nicht erforderlich\"),\"-\",$C14)","v":"-"},{"$f":"IF(OR('Anforderung Antragsteller'!R15=\"muss nicht erneut eingereicht werden\",'Anforderung Antragsteller'!R15=\"nicht erforderlich\"),\"-\",$C14)","v":"ja, wenn notwendig"},{"$f":"IF(OR('Anforderung Antragsteller'!W15=\"muss nicht erneut eingereicht werden\",'Anforderung Antragsteller'!W15=\"nicht erforderlich\"),\"-\",$C14)","v":"ja, wenn notwendig"},{"$f":"IF(OR('Anforderung Antragsteller'!AB15=\"muss nicht erneut eingereicht werden\",'Anforderung Antragsteller'!AB15=\"nicht erforderlich\"),\"-\",$C14)","v":"ja, wenn notwendig"},{"$f":"IF(OR('Anforderung Antragsteller'!AG15=\"muss nicht erneut eingereicht werden\",'Anforderung Antragsteller'!AG15=\"nicht erforderlich\"),\"-\",$C14)","v":"ja, wenn notwendig"}]
[null,"Unterfertigte CE-Konformitäts-Erklärung","ja",{"$f":"IF(OR('Anforderung Antragsteller'!H16=\"muss nicht erneut eingereicht werden\",'Anforderung Antragsteller'!H16=\"nicht erforderlich\"),\"-\",$C15)","v":"ja"},{"$f":"IF(OR('Anforderung Antragsteller'!M16=\"muss nicht erneut eingereicht werden\",'Anforderung Antragsteller'!M16=\"nicht erforderlich\"),\"-\",$C15)","v":"-"},{"$f":"IF(OR('Anforderung Antragsteller'!R16=\"muss nicht erneut eingereicht werden\",'Anforderung Antragsteller'!R16=\"nicht erforderlich\"),\"-\",$C15)","v":"ja"},{"$f":"IF(OR('Anforderung Antragsteller'!W16=\"muss nicht erneut eingereicht werden\",'Anforderung Antragsteller'!W16=\"nicht erforderlich\"),\"-\",$C15)","v":"ja"},{"$f":"IF(OR('Anforderung Antragsteller'!AB16=\"muss nicht erneut eingereicht werden\",'Anforderung Antragsteller'!AB16=\"nicht erforderlich\"),\"-\",$C15)","v":"ja"},{"$f":"IF(OR('Anforderung Antragsteller'!AG16=\"muss nicht erneut eingereicht werden\",'Anforderung Antragsteller'!AG16=\"nicht erforderlich\"),\"-\",$C15)","v":"ja"}]
[null,"Formelle Zustimmung vom Elterngütesiegel-Halter (siehe Vorlage unter www.waermepumpe-austria.at/dienste/guetesiegel/dokumente-und-links)","ja, wenn Übertragung",{"$f":"IF(OR('Anforderung Antragsteller'!H17=\"muss nicht erneut eingereicht werden\",'Anforderung Antragsteller'!H17=\"nicht erforderlich\"),\"-\",$C16)","v":"ja, wenn Übertragung"},{"$f":"IF(OR('Anforderung Antragsteller'!M17=\"muss nicht erneut eingereicht werden\",'Anforderung Antragsteller'!M17=\"nicht erforderlich\"),\"-\",$C16)","v":"-"},{"$f":"IF(OR('Anforderung Antragsteller'!R17=\"muss nicht erneut eingereicht werden\",'Anforderung Antragsteller'!R17=\"nicht erforderlich\"),\"-\",$C16)","v":"-"},{"$f":"IF(OR('Anforderung Antragsteller'!W17=\"muss nicht erneut eingereicht werden\",'Anforderung Antragsteller'!W17=\"nicht erforderlich\"),\"-\",$C16)","v":"-"},{"$f":"IF(OR('Anforderung Antragsteller'!AB17=\"muss nicht erneut eingereicht werden\",'Anforderung Antragsteller'!AB17=\"nicht erforderlich\"),\"-\",$C16)","v":"-"},{"$f":"IF(OR('Anforderung Antragsteller'!AG17=\"muss nicht erneut eingereicht werden\",'Anforderung Antragsteller'!AG17=\"nicht erforderlich\"),\"-\",$C16)","v":"-"}]
[2,"Antrag","-",{"$f":"IF(OR('Anforderung Antragsteller'!H18=\"muss nicht erneut eingereicht werden\",'Anforderung Antragsteller'!H18=\"nicht erforderlich\"),\"-\",$C17)","v":"-"},{"$f":"IF(OR('Anforderung Antragsteller'!M18=\"muss nicht erneut eingereicht werden\",'Anforderung Antragsteller'!M18=\"nicht erforderlich\"),\"-\",$C17)","v":"-"},{"$f":"IF(OR('Anforderung Antragsteller'!R18=\"muss nicht erneut eingereicht werden\",'Anforderung Antragsteller'!R18=\"nicht erforderlich\"),\"-\",$C17)","v":"-"},{"$f":"IF(OR('Anforderung Antragsteller'!W18=\"muss nicht erneut eingereicht werden\",'Anforderung Antragsteller'!W18=\"nicht erforderlich\"),\"-\",$C17)","v":"-"},{"$f":"IF(OR('Anforderung Antragsteller'!AB18=\"muss nicht erneut eingereicht werden\",'Anforderung Antragsteller'!AB18=\"nicht erforderlich\"),\"-\",$C17)","v":"-"},{"$f":"IF(OR('Anforderung Antragsteller'!AG18=\"muss nicht erneut eingereicht werden\",'Anforderung Antragsteller'!AG18=\"nicht erforderlich\"),\"-\",$C17)","v":"-"}]
[null,"Hauptkomponenten Liste hochladen (Hersteller, Typenbezeichnung) und in der Online-Maske im Model inkl. SCOP Werte ausfüllen.","ja, beim geprüften Produkt mit dem Prüfbericht vergleichen",{"$f":"IF(OR('Anforderung Antragsteller'!H19=\"muss nicht erneut eingereicht werden\",'Anforderung Antragsteller'!H19=\"nicht erforderlich\"),\"-\",$C18)","v":"-"},{"$f":"IF(OR('Anforderung Antragsteller'!M19=\"muss nicht erneut eingereicht werden\",'Anforderung Antragsteller'!M19=\"nicht erforderlich\"),\"-\",$C18)","v":"-"},{"$f":"IF(OR('Anforderung Antragsteller'!R19=\"muss nicht erneut eingereicht werden\",'Anforderung Antragsteller'!R19=\"nicht erforderlich\"),\"-\",$C18)","v":"ja, beim geprüften Produkt mit dem Prüfbericht vergleichen"},{"$f":"IF(OR('Anforderung Antragsteller'!W19=\"muss nicht erneut eingereicht werden\",'Anforderung Antragsteller'!W19=\"nicht erforderlich\"),\"-\",$C18)","v":"ja, beim geprüften Produkt mit dem Prüfbericht vergleichen"},{"$f":"IF(OR('Anforderung Antragsteller'!AB19=\"muss nicht erneut eingereicht werden\",'Anforderung Antragsteller'!AB19=\"nicht erforderlich\"),\"-\",$C18)","v":"-"},{"$f":"IF(OR('Anforderung Antragsteller'!AG19=\"muss nicht erneut eingereicht werden\",'Anforderung Antragsteller'!AG19=\"nicht erforderlich\"),\"-\",$C18)","v":"ja, beim geprüften Produkt mit dem Prüfbericht vergleichen"}]
[null,"Eintragen der Daten nach EN 14511, EN 14825 und EN 12102-1 in der Online-Maske bei den einzelnen Modellen ausfüllen.","ja","nein","nein",{"$f":"IF(OR('Anforderung Antragsteller'!R21=\"muss nicht erneut eingereicht werden\",'Anforderung Antragsteller'!R21=\"nicht erforderlich\"),\"-\",$C19)","v":"ja"},{"$f":"IF(OR('Anforderung Antragsteller'!W21=\"muss nicht erneut eingereicht werden\",'Anforderung Antragsteller'!W21=\"nicht erforderlich\"),\"-\",$C19)","v":"ja"},{"$f":"IF(OR('Anforderung Antragsteller'!AB21=\"muss nicht erneut eingereicht werden\",'Anforderung Antragsteller'!AB21=\"nicht erforderlich\"),\"-\",$C19)","v":"ja"},{"$f":"IF(OR('Anforderung Antragsteller'!AG21=\"muss nicht erneut eingereicht werden\",'Anforderung Antragsteller'!AG21=\"nicht erforderlich\"),\"-\",$C19)","v":"ja"}]
[3,"Kundenservice  (deutschsprachig)","-",{"$f":"IF(OR('Anforderung Antragsteller'!H21=\"muss nicht erneut eingereicht werden\",'Anforderung Antragsteller'!H21=\"nicht erforderlich\"),\"-\",$C20)","v":"-"},{"$f":"IF(OR('Anforderung Antragsteller'!M21=\"muss nicht erneut eingereicht werden\",'Anforderung Antragsteller'!M21=\"nicht erforderlich\"),\"-\",$C20)","v":"-"},{"$f":"IF(OR('Anforderung Antragsteller'!R21=\"muss nicht erneut eingereicht werden\",'Anforderung Antragsteller'!R21=\"nicht erforderlich\"),\"-\",$C20)","v":"-"},{"$f":"IF(OR('Anforderung Antragsteller'!W21=\"muss nicht erneut eingereicht werden\",'Anforderung Antragsteller'!W21=\"nicht erforderlich\"),\"-\",$C20)","v":"-"},{"$f":"IF(OR('Anforderung Antragsteller'!AB21=\"muss nicht erneut eingereicht werden\",'Anforderung Antragsteller'!AB21=\"nicht erforderlich\"),\"-\",$C20)","v":"-"},{"$f":"IF(OR('Anforderung Antragsteller'!AG21=\"muss nicht erneut eingereicht werden\",'Anforderung Antragsteller'!AG21=\"nicht erforderlich\"),\"-\",$C20)","v":"-"}]
[null,"Formular-Vorlage für den Inbetriebnahme- und Wartungs-Techniker","nein",{"$f":"IF(OR('Anforderung Antragsteller'!H22=\"muss nicht erneut eingereicht werden\",'Anforderung Antragsteller'!H22=\"nicht erforderlich\"),\"-\",$C21)","v":"nein"},{"$f":"IF(OR('Anforderung Antragsteller'!M22=\"muss nicht erneut eingereicht werden\",'Anforderung Antragsteller'!M22=\"nicht erforderlich\"),\"-\",$C21)","v":"-"},{"$f":"IF(OR('Anforderung Antragsteller'!R22=\"muss nicht erneut eingereicht werden\",'Anforderung Antragsteller'!R22=\"nicht erforderlich\"),\"-\",$C21)","v":"nein"},{"$f":"IF(OR('Anforderung Antragsteller'!W22=\"muss nicht erneut eingereicht werden\",'Anforderung Antragsteller'!W22=\"nicht erforderlich\"),\"-\",$C21)","v":"-"},{"$f":"IF(OR('Anforderung Antragsteller'!AB22=\"muss nicht erneut eingereicht werden\",'Anforderung Antragsteller'!AB22=\"nicht erforderlich\"),\"-\",$C21)","v":"-"},{"$f":"IF(OR('Anforderung Antragsteller'!AG22=\"muss nicht erneut eingereicht werden\",'Anforderung Antragsteller'!AG22=\"nicht erforderlich\"),\"-\",$C21)","v":"-"}]
[null,"Garantie für mindestens 2 Jahre","ja",{"$f":"IF(OR('Anforderung Antragsteller'!H23=\"muss nicht erneut eingereicht werden\",'Anforderung Antragsteller'!H23=\"nicht erforderlich\"),\"-\",$C22)","v":"ja"},{"$f":"IF(OR('Anforderung Antragsteller'!M23=\"muss nicht erneut eingereicht werden\",'Anforderung Antragsteller'!M23=\"nicht erforderlich\"),\"-\",$C22)","v":"-"},{"$f":"IF(OR('Anforderung Antragsteller'!R23=\"muss nicht erneut eingereicht werden\",'Anforderung Antragsteller'!R23=\"nicht erforderlich\"),\"-\",$C22)","v":"ja"},{"$f":"IF(OR('Anforderung Antragsteller'!W23=\"muss nicht erneut eingereicht werden\",'Anforderung Antragsteller'!W23=\"nicht erforderlich\"),\"-\",$C22)","v":"-"},{"$f":"IF(OR('Anforderung Antragsteller'!AB23=\"muss nicht erneut eingereicht werden\",'Anforderung Antragsteller'!AB23=\"nicht erforderlich\"),\"-\",$C22)","v":"-"},{"$f":"IF(OR('Anforderung Antragsteller'!AG23=\"muss nicht erneut eingereicht werden\",'Anforderung Antragsteller'!AG23=\"nicht erforderlich\"),\"-\",$C22)","v":"-"}]
[null,"Ersatzteilgarantie für mindestens 10 Jahre","ja",{"$f":"IF(OR('Anforderung Antragsteller'!H24=\"muss nicht erneut eingereicht werden\",'Anforderung Antragsteller'!H24=\"nicht erforderlich\"),\"-\",$C23)","v":"ja"},{"$f":"IF(OR('Anforderung Antragsteller'!M24=\"muss nicht erneut eingereicht werden\",'Anforderung Antragsteller'!M24=\"nicht erforderlich\"),\"-\",$C23)","v":"-"},{"$f":"IF(OR('Anforderung Antragsteller'!R24=\"muss nicht erneut eingereicht werden\",'Anforderung Antragsteller'!R24=\"nicht erforderlich\"),\"-\",$C23)","v":"ja"},{"$f":"IF(OR('Anforderung Antragsteller'!W24=\"muss nicht erneut eingereicht werden\",'Anforderung Antragsteller'!W24=\"nicht erforderlich\"),\"-\",$C23)","v":"-"},{"$f":"IF(OR('Anforderung Antragsteller'!AB24=\"muss nicht erneut eingereicht werden\",'Anforderung Antragsteller'!AB24=\"nicht erforderlich\"),\"-\",$C23)","v":"-"},{"$f":"IF(OR('Anforderung Antragsteller'!AG24=\"muss nicht erneut eingereicht werden\",'Anforderung Antragsteller'!AG24=\"nicht erforderlich\"),\"-\",$C23)","v":"-"}]
[null,"Reaktionszeit des Kundendienstes im Vertriebsgebiet innerhalb von 24\nStunden und Kontaktdaten zum Kundendienst im Vertriebsgebiet   (siehe Vorlage unter www.waermepumpe-austria.at/dienste/guetesiegel/dokumente-und-links)","ja",{"$f":"IF(OR('Anforderung Antragsteller'!H25=\"muss nicht erneut eingereicht werden\",'Anforderung Antragsteller'!H25=\"nicht erforderlich\"),\"-\",$C24)","v":"ja"},{"$f":"IF(OR('Anforderung Antragsteller'!M25=\"muss nicht erneut eingereicht werden\",'Anforderung Antragsteller'!M25=\"nicht erforderlich\"),\"-\",$C24)","v":"-"},{"$f":"IF(OR('Anforderung Antragsteller'!R25=\"muss nicht erneut eingereicht werden\",'Anforderung Antragsteller'!R25=\"nicht erforderlich\"),\"-\",$C24)","v":"ja"},{"$f":"IF(OR('Anforderung Antragsteller'!W25=\"muss nicht erneut eingereicht werden\",'Anforderung Antragsteller'!W25=\"nicht erforderlich\"),\"-\",$C24)","v":"-"},{"$f":"IF(OR('Anforderung Antragsteller'!AB25=\"muss nicht erneut eingereicht werden\",'Anforderung Antragsteller'!AB25=\"nicht erforderlich\"),\"-\",$C24)","v":"-"},{"$f":"IF(OR('Anforderung Antragsteller'!AG25=\"muss nicht erneut eingereicht werden\",'Anforderung Antragsteller'!AG25=\"nicht erforderlich\"),\"-\",$C24)","v":"-"}]
[4,"Bedienungsanleitungen  (deutschsprachig)","-",{"$f":"IF(OR('Anforderung Antragsteller'!H26=\"muss nicht erneut eingereicht werden\",'Anforderung Antragsteller'!H26=\"nicht erforderlich\"),\"-\",$C25)","v":"-"},{"$f":"IF(OR('Anforderung Antragsteller'!M26=\"muss nicht erneut eingereicht werden\",'Anforderung Antragsteller'!M26=\"nicht erforderlich\"),\"-\",$C25)","v":"-"},{"$f":"IF(OR('Anforderung Antragsteller'!R26=\"muss nicht erneut eingereicht werden\",'Anforderung Antragsteller'!R26=\"nicht erforderlich\"),\"-\",$C25)","v":"-"},{"$f":"IF(OR('Anforderung Antragsteller'!W26=\"muss nicht erneut eingereicht werden\",'Anforderung Antragsteller'!W26=\"nicht erforderlich\"),\"-\",$C25)","v":"-"},{"$f":"IF(OR('Anforderung Antragsteller'!AB26=\"muss nicht erneut eingereicht werden\",'Anforderung Antragsteller'!AB26=\"nicht erforderlich\"),\"-\",$C25)","v":"-"},{"$f":"IF(OR('Anforderung Antragsteller'!AG26=\"muss nicht erneut eingereicht werden\",'Anforderung Antragsteller'!AG26=\"nicht erforderlich\"),\"-\",$C25)","v":"-"}]
[null,"Informationen und Sicherheitshinweise für eine ordnungsgemäße\nNutzung","ja",{"$f":"IF(OR('Anforderung Antragsteller'!H27=\"muss nicht erneut eingereicht werden\",'Anforderung Antragsteller'!H27=\"nicht erforderlich\"),\"-\",$C26)","v":"ja"},{"$f":"IF(OR('Anforderung Antragsteller'!M27=\"muss nicht erneut eingereicht werden\",'Anforderung Antragsteller'!M27=\"nicht erforderlich\"),\"-\",$C26)","v":"-"},{"$f":"IF(OR('Anforderung Antragsteller'!R27=\"muss nicht erneut eingereicht werden\",'Anforderung Antragsteller'!R27=\"nicht erforderlich\"),\"-\",$C26)","v":"ja"},{"$f":"IF(OR('Anforderung Antragsteller'!W27=\"muss nicht erneut eingereicht werden\",'Anforderung Antragsteller'!W27=\"nicht erforderlich\"),\"-\",$C26)","v":"ja"},{"$f":"IF(OR('Anforderung Antragsteller'!AB27=\"muss nicht erneut eingereicht werden\",'Anforderung Antragsteller'!AB27=\"nicht erforderlich\"),\"-\",$C26)","v":"ja"},{"$f":"IF(OR('Anforderung Antragsteller'!AG27=\"muss nicht erneut eingereicht werden\",'Anforderung Antragsteller'!AG27=\"nicht erforderlich\"),\"-\",$C26)","v":"ja"}]
[null,"Anleitung zur Bedienung der Wärmepumpe","ja",{"$f":"IF(OR('Anforderung Antragsteller'!H28=\"muss nicht erneut eingereicht werden\",'Anforderung Antragsteller'!H28=\"nicht erforderlich\"),\"-\",$C27)","v":"ja"},{"$f":"IF(OR('Anforderung Antragsteller'!M28=\"muss nicht erneut eingereicht werden\",'Anforderung Antragsteller'!M28=\"nicht erforderlich\"),\"-\",$C27)","v":"-"},{"$f":"IF(OR('Anforderung Antragsteller'!R28=\"muss nicht erneut eingereicht werden\",'Anforderung Antragsteller'!R28=\"nicht erforderlich\"),\"-\",$C27)","v":"ja"},{"$f":"IF(OR('Anforderung Antragsteller'!W28=\"muss nicht erneut eingereicht werden\",'Anforderung Antragsteller'!W28=\"nicht erforderlich\"),\"-\",$C27)","v":"ja"},{"$f":"IF(OR('Anforderung Antragsteller'!AB28=\"muss nicht erneut eingereicht werden\",'Anforderung Antragsteller'!AB28=\"nicht erforderlich\"),\"-\",$C27)","v":"ja"},{"$f":"IF(OR('Anforderung Antragsteller'!AG28=\"muss nicht erneut eingereicht werden\",'Anforderung Antragsteller'!AG28=\"nicht erforderlich\"),\"-\",$C27)","v":"ja"}]
[null,"Ersatzteilliste","nein",{"$f":"IF(OR('Anforderung Antragsteller'!H29=\"muss nicht erneut eingereicht werden\",'Anforderung Antragsteller'!H29=\"nicht erforderlich\"),\"-\",$C28)","v":"nein"},{"$f":"IF(OR('Anforderung Antragsteller'!M29=\"muss nicht erneut eingereicht werden\",'Anforderung Antragsteller'!M29=\"nicht erforderlich\"),\"-\",$C28)","v":"-"},{"$f":"IF(OR('Anforderung Antragsteller'!R29=\"muss nicht erneut eingereicht werden\",'Anforderung Antragsteller'!R29=\"nicht erforderlich\"),\"-\",$C28)","v":"nein"},{"$f":"IF(OR('Anforderung Antragsteller'!W29=\"muss nicht erneut eingereicht werden\",'Anforderung Antragsteller'!W29=\"nicht erforderlich\"),\"-\",$C28)","v":"nein"},{"$f":"IF(OR('Anforderung Antragsteller'!AB29=\"muss nicht erneut eingereicht werden\",'Anforderung Antragsteller'!AB29=\"nicht erforderlich\"),\"-\",$C28)","v":"nein"},{"$f":"IF(OR('Anforderung Antragsteller'!AG29=\"muss nicht erneut eingereicht werden\",'Anforderung Antragsteller'!AG29=\"nicht erforderlich\"),\"-\",$C28)","v":"nein"}]
[5,"Installationsanleitungen  (deutschsprachig)","-",{"$f":"IF(OR('Anforderung Antragsteller'!H30=\"muss nicht erneut eingereicht werden\",'Anforderung Antragsteller'!H30=\"nicht erforderlich\"),\"-\",$C29)","v":"-"},{"$f":"IF(OR('Anforderung Antragsteller'!M30=\"muss nicht erneut eingereicht werden\",'Anforderung Antragsteller'!M30=\"nicht erforderlich\"),\"-\",$C29)","v":"-"},{"$f":"IF(OR('Anforderung Antragsteller'!R30=\"muss nicht erneut eingereicht werden\",'Anforderung Antragsteller'!R30=\"nicht erforderlich\"),\"-\",$C29)","v":"-"},{"$f":"IF(OR('Anforderung Antragsteller'!W30=\"muss nicht erneut eingereicht werden\",'Anforderung Antragsteller'!W30=\"nicht erforderlich\"),\"-\",$C29)","v":"-"},{"$f":"IF(OR('Anforderung Antragsteller'!AB30=\"muss nicht erneut eingereicht werden\",'Anforderung Antragsteller'!AB30=\"nicht erforderlich\"),\"-\",$C29)","v":"-"},{"$f":"IF(OR('Anforderung Antragsteller'!AG30=\"muss nicht erneut eingereicht werden\",'Anforderung Antragsteller'!AG30=\"nicht erforderlich\"),\"-\",$C29)","v":"-"}]
[null,"Installationsanleitung","nein",{"$f":"IF(OR('Anforderung Antragsteller'!H31=\"muss nicht erneut eingereicht werden\",'Anforderung Antragsteller'!H31=\"nicht erforderlich\"),\"-\",$C30)","v":"nein"},{"$f":"IF(OR('Anforderung Antragsteller'!M31=\"muss nicht erneut eingereicht werden\",'Anforderung Antragsteller'!M31=\"nicht erforderlich\"),\"-\",$C30)","v":"-"},{"$f":"IF(OR('Anforderung Antragsteller'!R31=\"muss nicht erneut eingereicht werden\",'Anforderung Antragsteller'!R31=\"nicht erforderlich\"),\"-\",$C30)","v":"nein"},{"$f":"IF(OR('Anforderung Antragsteller'!W31=\"muss nicht erneut eingereicht werden\",'Anforderung Antragsteller'!W31=\"nicht erforderlich\"),\"-\",$C30)","v":"nein"},{"$f":"IF(OR('Anforderung Antragsteller'!AB31=\"muss nicht erneut eingereicht werden\",'Anforderung Antragsteller'!AB31=\"nicht erforderlich\"),\"-\",$C30)","v":"nein"},{"$f":"IF(OR('Anforderung Antragsteller'!AG31=\"muss nicht erneut eingereicht werden\",'Anforderung Antragsteller'!AG31=\"nicht erforderlich\"),\"-\",$C30)","v":"nein"}]
[null,"Sicherheitshinweise","nein",{"$f":"IF(OR('Anforderung Antragsteller'!H32=\"muss nicht erneut eingereicht werden\",'Anforderung Antragsteller'!H32=\"nicht erforderlich\"),\"-\",$C31)","v":"nein"},{"$f":"IF(OR('Anforderung Antragsteller'!M32=\"muss nicht erneut eingereicht werden\",'Anforderung Antragsteller'!M32=\"nicht erforderlich\"),\"-\",$C31)","v":"-"},{"$f":"IF(OR('Anforderung Antragsteller'!R32=\"muss nicht erneut eingereicht werden\",'Anforderung Antragsteller'!R32=\"nicht erforderlich\"),\"-\",$C31)","v":"nein"},{"$f":"IF(OR('Anforderung Antragsteller'!W32=\"muss nicht erneut eingereicht werden\",'Anforderung Antragsteller'!W32=\"nicht erforderlich\"),\"-\",$C31)","v":"nein"},{"$f":"IF(OR('Anforderung Antragsteller'!AB32=\"muss nicht erneut eingereicht werden\",'Anforderung Antragsteller'!AB32=\"nicht erforderlich\"),\"-\",$C31)","v":"nein"},{"$f":"IF(OR('Anforderung Antragsteller'!AG32=\"muss nicht erneut eingereicht werden\",'Anforderung Antragsteller'!AG32=\"nicht erforderlich\"),\"-\",$C31)","v":"nein"}]
[null,"Inbetriebnahmehinweise","nein",{"$f":"IF(OR('Anforderung Antragsteller'!H33=\"muss nicht erneut eingereicht werden\",'Anforderung Antragsteller'!H33=\"nicht erforderlich\"),\"-\",$C32)","v":"nein"},{"$f":"IF(OR('Anforderung Antragsteller'!M33=\"muss nicht erneut eingereicht werden\",'Anforderung Antragsteller'!M33=\"nicht erforderlich\"),\"-\",$C32)","v":"-"},{"$f":"IF(OR('Anforderung Antragsteller'!R33=\"muss nicht erneut eingereicht werden\",'Anforderung Antragsteller'!R33=\"nicht erforderlich\"),\"-\",$C32)","v":"nein"},{"$f":"IF(OR('Anforderung Antragsteller'!W33=\"muss nicht erneut eingereicht werden\",'Anforderung Antragsteller'!W33=\"nicht erforderlich\"),\"-\",$C32)","v":"nein"},{"$f":"IF(OR('Anforderung Antragsteller'!AB33=\"muss nicht erneut eingereicht werden\",'Anforderung Antragsteller'!AB33=\"nicht erforderlich\"),\"-\",$C32)","v":"nein"},{"$f":"IF(OR('Anforderung Antragsteller'!AG33=\"muss nicht erneut eingereicht werden\",'Anforderung Antragsteller'!AG33=\"nicht erforderlich\"),\"-\",$C32)","v":"nein"}]
[null,"Fluidschemata Kältekreis und Wasserkreis","nein",{"$f":"IF(OR('Anforderung Antragsteller'!H34=\"muss nicht erneut eingereicht werden\",'Anforderung Antragsteller'!H34=\"nicht erforderlich\"),\"-\",$C33)","v":"nein"},{"$f":"IF(OR('Anforderung Antragsteller'!M34=\"muss nicht erneut eingereicht werden\",'Anforderung Antragsteller'!M34=\"nicht erforderlich\"),\"-\",$C33)","v":"-"},{"$f":"IF(OR('Anforderung Antragsteller'!R34=\"muss nicht erneut eingereicht werden\",'Anforderung Antragsteller'!R34=\"nicht erforderlich\"),\"-\",$C33)","v":"nein"},{"$f":"IF(OR('Anforderung Antragsteller'!W34=\"muss nicht erneut eingereicht werden\",'Anforderung Antragsteller'!W34=\"nicht erforderlich\"),\"-\",$C33)","v":"nein"},{"$f":"IF(OR('Anforderung Antragsteller'!AB34=\"muss nicht erneut eingereicht werden\",'Anforderung Antragsteller'!AB34=\"nicht erforderlich\"),\"-\",$C33)","v":"nein"},{"$f":"IF(OR('Anforderung Antragsteller'!AG34=\"muss nicht erneut eingereicht werden\",'Anforderung Antragsteller'!AG34=\"nicht erforderlich\"),\"-\",$C33)","v":"nein"}]
[null,"Elektroschema zum Anschluss der Wärmepumpe","nein",{"$f":"IF(OR('Anforderung Antragsteller'!H35=\"muss nicht erneut eingereicht werden\",'Anforderung Antragsteller'!H35=\"nicht erforderlich\"),\"-\",$C34)","v":"nein"},{"$f":"IF(OR('Anforderung Antragsteller'!M35=\"muss nicht erneut eingereicht werden\",'Anforderung Antragsteller'!M35=\"nicht erforderlich\"),\"-\",$C34)","v":"-"},{"$f":"IF(OR('Anforderung Antragsteller'!R35=\"muss nicht erneut eingereicht werden\",'Anforderung Antragsteller'!R35=\"nicht erforderlich\"),\"-\",$C34)","v":"nein"},{"$f":"IF(OR('Anforderung Antragsteller'!W35=\"muss nicht erneut eingereicht werden\",'Anforderung Antragsteller'!W35=\"nicht erforderlich\"),\"-\",$C34)","v":"nein"},{"$f":"IF(OR('Anforderung Antragsteller'!AB35=\"muss nicht erneut eingereicht werden\",'Anforderung Antragsteller'!AB35=\"nicht erforderlich\"),\"-\",$C34)","v":"nein"},{"$f":"IF(OR('Anforderung Antragsteller'!AG35=\"muss nicht erneut eingereicht werden\",'Anforderung Antragsteller'!AG35=\"nicht erforderlich\"),\"-\",$C34)","v":"nein"}]
[null,"Energy-Label und Energy-Label-Datenblatt nach 811/2013 (Heizungs- und Kombiwärmepumpen), bzw 812/2013 (Warmwasserwärmepumpe)\n(nur bei Geräten mit höchstens 70kW Nennleistung)","nein",{"$f":"IF(OR('Anforderung Antragsteller'!H36=\"muss nicht erneut eingereicht werden\",'Anforderung Antragsteller'!H36=\"nicht erforderlich\"),\"-\",$C35)","v":"nein"},{"$f":"IF(OR('Anforderung Antragsteller'!M36=\"muss nicht erneut eingereicht werden\",'Anforderung Antragsteller'!M36=\"nicht erforderlich\"),\"-\",$C35)","v":"-"},{"$f":"IF(OR('Anforderung Antragsteller'!R36=\"muss nicht erneut eingereicht werden\",'Anforderung Antragsteller'!R36=\"nicht erforderlich\"),\"-\",$C35)","v":"nein"},{"$f":"IF(OR('Anforderung Antragsteller'!W36=\"muss nicht erneut eingereicht werden\",'Anforderung Antragsteller'!W36=\"nicht erforderlich\"),\"-\",$C35)","v":"nein"},{"$f":"IF(OR('Anforderung Antragsteller'!AB36=\"muss nicht erneut eingereicht werden\",'Anforderung Antragsteller'!AB36=\"nicht erforderlich\"),\"-\",$C35)","v":"nein"},{"$f":"IF(OR('Anforderung Antragsteller'!AG36=\"muss nicht erneut eingereicht werden\",'Anforderung Antragsteller'!AG36=\"nicht erforderlich\"),\"-\",$C35)","v":"nein"}]
[6,"Technische Daten  (deutschsprachig)","-",{"$f":"IF(OR('Anforderung Antragsteller'!H37=\"muss nicht erneut eingereicht werden\",'Anforderung Antragsteller'!H37=\"nicht erforderlich\"),\"-\",$C36)","v":"-"},{"$f":"IF(OR('Anforderung Antragsteller'!M37=\"muss nicht erneut eingereicht werden\",'Anforderung Antragsteller'!M37=\"nicht erforderlich\"),\"-\",$C36)","v":"-"},{"$f":"IF(OR('Anforderung Antragsteller'!R37=\"muss nicht erneut eingereicht werden\",'Anforderung Antragsteller'!R37=\"nicht erforderlich\"),\"-\",$C36)","v":"-"},{"$f":"IF(OR('Anforderung Antragsteller'!W37=\"muss nicht erneut eingereicht werden\",'Anforderung Antragsteller'!W37=\"nicht erforderlich\"),\"-\",$C36)","v":"-"},{"$f":"IF(OR('Anforderung Antragsteller'!AB37=\"muss nicht erneut eingereicht werden\",'Anforderung Antragsteller'!AB37=\"nicht erforderlich\"),\"-\",$C36)","v":"-"},{"$f":"IF(OR('Anforderung Antragsteller'!AG37=\"muss nicht erneut eingereicht werden\",'Anforderung Antragsteller'!AG37=\"nicht erforderlich\"),\"-\",$C36)","v":"-"}]
[null,"Leistungsdaten (Wärmeleistung, elektrische Leistungsaufnahme und COP über den gesamten Leistungsbereich)","nein",{"$f":"IF(OR('Anforderung Antragsteller'!H38=\"muss nicht erneut eingereicht werden\",'Anforderung Antragsteller'!H38=\"nicht erforderlich\"),\"-\",$C37)","v":"nein"},{"$f":"IF(OR('Anforderung Antragsteller'!M38=\"muss nicht erneut eingereicht werden\",'Anforderung Antragsteller'!M38=\"nicht erforderlich\"),\"-\",$C37)","v":"-"},{"$f":"IF(OR('Anforderung Antragsteller'!R38=\"muss nicht erneut eingereicht werden\",'Anforderung Antragsteller'!R38=\"nicht erforderlich\"),\"-\",$C37)","v":"nein"},{"$f":"IF(OR('Anforderung Antragsteller'!W38=\"muss nicht erneut eingereicht werden\",'Anforderung Antragsteller'!W38=\"nicht erforderlich\"),\"-\",$C37)","v":"nein"},{"$f":"IF(OR('Anforderung Antragsteller'!AB38=\"muss nicht erneut eingereicht werden\",'Anforderung Antragsteller'!AB38=\"nicht erforderlich\"),\"-\",$C37)","v":"nein"},{"$f":"IF(OR('Anforderung Antragsteller'!AG38=\"muss nicht erneut eingereicht werden\",'Anforderung Antragsteller'!AG38=\"nicht erforderlich\"),\"-\",$C37)","v":"nein"}]
[null,"Leistungsdaten nach EN 14511 bei A7/W35 (Wärmeleistung, elektrische Leistungsaufnahme und COP)","ja","ja","-","nein","ja","ja","nein"]
[null,"Maßzeichnung","nein",{"$f":"IF(OR('Anforderung Antragsteller'!H40=\"muss nicht erneut eingereicht werden\",'Anforderung Antragsteller'!H40=\"nicht erforderlich\"),\"-\",$C39)","v":"nein"},{"$f":"IF(OR('Anforderung Antragsteller'!M40=\"muss nicht erneut eingereicht werden\",'Anforderung Antragsteller'!M40=\"nicht erforderlich\"),\"-\",$C39)","v":"-"},{"$f":"IF(OR('Anforderung Antragsteller'!R40=\"muss nicht erneut eingereicht werden\",'Anforderung Antragsteller'!R40=\"nicht erforderlich\"),\"-\",$C39)","v":"nein"},{"$f":"IF(OR('Anforderung Antragsteller'!W40=\"muss nicht erneut eingereicht werden\",'Anforderung Antragsteller'!W40=\"nicht erforderlich\"),\"-\",$C39)","v":"nein"},{"$f":"IF(OR('Anforderung Antragsteller'!AB40=\"muss nicht erneut eingereicht werden\",'Anforderung Antragsteller'!AB40=\"nicht erforderlich\"),\"-\",$C39)","v":"nein"},{"$f":"IF(OR('Anforderung Antragsteller'!AG40=\"muss nicht erneut eingereicht werden\",'Anforderung Antragsteller'!AG40=\"nicht erforderlich\"),\"-\",$C39)","v":"nein"}]
[null,"Mindestabstände","nein",{"$f":"IF(OR('Anforderung Antragsteller'!H41=\"muss nicht erneut eingereicht werden\",'Anforderung Antragsteller'!H41=\"nicht erforderlich\"),\"-\",$C40)","v":"nein"},{"$f":"IF(OR('Anforderung Antragsteller'!M41=\"muss nicht erneut eingereicht werden\",'Anforderung Antragsteller'!M41=\"nicht erforderlich\"),\"-\",$C40)","v":"-"},{"$f":"IF(OR('Anforderung Antragsteller'!R41=\"muss nicht erneut eingereicht werden\",'Anforderung Antragsteller'!R41=\"nicht erforderlich\"),\"-\",$C40)","v":"nein"},{"$f":"IF(OR('Anforderung Antragsteller'!W41=\"muss nicht erneut eingereicht werden\",'Anforderung Antragsteller'!W41=\"nicht erforderlich\"),\"-\",$C40)","v":"nein"},{"$f":"IF(OR('Anforderung Antragsteller'!AB41=\"muss nicht erneut eingereicht werden\",'Anforderung Antragsteller'!AB41=\"nicht erforderlich\"),\"-\",$C40)","v":"nein"},{"$f":"IF(OR('Anforderung Antragsteller'!AG41=\"muss nicht erneut eingereicht werden\",'Anforderung Antragsteller'!AG41=\"nicht erforderlich\"),\"-\",$C40)","v":"nein"}]
[null,"Kältemittel: Art und Füllmenge","ja",{"$f":"IF(OR('Anforderung Antragsteller'!H42=\"muss nicht erneut eingereicht werden\",'Anforderung Antragsteller'!H42=\"nicht erforderlich\"),\"-\",$C41)","v":"ja"},{"$f":"IF(OR('Anforderung Antragsteller'!M42=\"muss nicht erneut eingereicht werden\",'Anforderung Antragsteller'!M42=\"nicht erforderlich\"),\"-\",$C41)","v":"-"},{"$f":"IF(OR('Anforderung Antragsteller'!R42=\"muss nicht erneut eingereicht werden\",'Anforderung Antragsteller'!R42=\"nicht erforderlich\"),\"-\",$C41)","v":"ja"},{"$f":"IF(OR('Anforderung Antragsteller'!W42=\"muss nicht erneut eingereicht werden\",'Anforderung Antragsteller'!W42=\"nicht erforderlich\"),\"-\",$C41)","v":"ja"},{"$f":"IF(OR('Anforderung Antragsteller'!AB42=\"muss nicht erneut eingereicht werden\",'Anforderung Antragsteller'!AB42=\"nicht erforderlich\"),\"-\",$C41)","v":"ja"},{"$f":"IF(OR('Anforderung Antragsteller'!AG42=\"muss nicht erneut eingereicht werden\",'Anforderung Antragsteller'!AG42=\"nicht erforderlich\"),\"-\",$C41)","v":"ja"}]
[null,"Anlaufstrom / maximaler Betriebsstrom in A","nein",{"$f":"IF(OR('Anforderung Antragsteller'!H43=\"muss nicht erneut eingereicht werden\",'Anforderung Antragsteller'!H43=\"nicht erforderlich\"),\"-\",$C42)","v":"nein"},{"$f":"IF(OR('Anforderung Antragsteller'!M43=\"muss nicht erneut eingereicht werden\",'Anforderung Antragsteller'!M43=\"nicht erforderlich\"),\"-\",$C42)","v":"-"},{"$f":"IF(OR('Anforderung Antragsteller'!R43=\"muss nicht erneut eingereicht werden\",'Anforderung Antragsteller'!R43=\"nicht erforderlich\"),\"-\",$C42)","v":"nein"},{"$f":"IF(OR('Anforderung Antragsteller'!W43=\"muss nicht erneut eingereicht werden\",'Anforderung Antragsteller'!W43=\"nicht erforderlich\"),\"-\",$C42)","v":"nein"},{"$f":"IF(OR('Anforderung Antragsteller'!AB43=\"muss nicht erneut eingereicht werden\",'Anforderung Antragsteller'!AB43=\"nicht erforderlich\"),\"-\",$C42)","v":"nein"},{"$f":"IF(OR('Anforderung Antragsteller'!AG43=\"muss nicht erneut eingereicht werden\",'Anforderung Antragsteller'!AG43=\"nicht erforderlich\"),\"-\",$C42)","v":"nein"}]
[null,"Einsatzbereich / Einsatzgrenzen","nein",{"$f":"IF(OR('Anforderung Antragsteller'!H44=\"muss nicht erneut eingereicht werden\",'Anforderung Antragsteller'!H44=\"nicht erforderlich\"),\"-\",$C43)","v":"nein"},{"$f":"IF(OR('Anforderung Antragsteller'!M44=\"muss nicht erneut eingereicht werden\",'Anforderung Antragsteller'!M44=\"nicht erforderlich\"),\"-\",$C43)","v":"-"},{"$f":"IF(OR('Anforderung Antragsteller'!R44=\"muss nicht erneut eingereicht werden\",'Anforderung Antragsteller'!R44=\"nicht erforderlich\"),\"-\",$C43)","v":"nein"},{"$f":"IF(OR('Anforderung Antragsteller'!W44=\"muss nicht erneut eingereicht werden\",'Anforderung Antragsteller'!W44=\"nicht erforderlich\"),\"-\",$C43)","v":"nein"},{"$f":"IF(OR('Anforderung Antragsteller'!AB44=\"muss nicht erneut eingereicht werden\",'Anforderung Antragsteller'!AB44=\"nicht erforderlich\"),\"-\",$C43)","v":"nein"},{"$f":"IF(OR('Anforderung Antragsteller'!AG44=\"muss nicht erneut eingereicht werden\",'Anforderung Antragsteller'!AG44=\"nicht erforderlich\"),\"-\",$C43)","v":"nein"}]
[null,"Volumenstrom Quelle- und Senkenseite in m³/h, l/min","nein",{"$f":"IF(OR('Anforderung Antragsteller'!H45=\"muss nicht erneut eingereicht werden\",'Anforderung Antragsteller'!H45=\"nicht erforderlich\"),\"-\",$C44)","v":"nein"},{"$f":"IF(OR('Anforderung Antragsteller'!M45=\"muss nicht erneut eingereicht werden\",'Anforderung Antragsteller'!M45=\"nicht erforderlich\"),\"-\",$C44)","v":"-"},{"$f":"IF(OR('Anforderung Antragsteller'!R45=\"muss nicht erneut eingereicht werden\",'Anforderung Antragsteller'!R45=\"nicht erforderlich\"),\"-\",$C44)","v":"nein"},{"$f":"IF(OR('Anforderung Antragsteller'!W45=\"muss nicht erneut eingereicht werden\",'Anforderung Antragsteller'!W45=\"nicht erforderlich\"),\"-\",$C44)","v":"nein"},{"$f":"IF(OR('Anforderung Antragsteller'!AB45=\"muss nicht erneut eingereicht werden\",'Anforderung Antragsteller'!AB45=\"nicht erforderlich\"),\"-\",$C44)","v":"nein"},{"$f":"IF(OR('Anforderung Antragsteller'!AG45=\"muss nicht erneut eingereicht werden\",'Anforderung Antragsteller'!AG45=\"nicht erforderlich\"),\"-\",$C44)","v":"nein"}]
[null,"Volumen des WW-Speichers in Liter","nein",{"$f":"IF(OR('Anforderung Antragsteller'!H46=\"muss nicht erneut eingereicht werden\",'Anforderung Antragsteller'!H46=\"nicht erforderlich\"),\"-\",$C45)","v":"-"},{"$f":"IF(OR('Anforderung Antragsteller'!M46=\"muss nicht erneut eingereicht werden\",'Anforderung Antragsteller'!M46=\"nicht erforderlich\"),\"-\",$C45)","v":"-"},{"$f":"IF(OR('Anforderung Antragsteller'!R46=\"muss nicht erneut eingereicht werden\",'Anforderung Antragsteller'!R46=\"nicht erforderlich\"),\"-\",$C45)","v":"-"},{"$f":"IF(OR('Anforderung Antragsteller'!W46=\"muss nicht erneut eingereicht werden\",'Anforderung Antragsteller'!W46=\"nicht erforderlich\"),\"-\",$C45)","v":"-"},{"$f":"IF(OR('Anforderung Antragsteller'!AB46=\"muss nicht erneut eingereicht werden\",'Anforderung Antragsteller'!AB46=\"nicht erforderlich\"),\"-\",$C45)","v":"-"},{"$f":"IF(OR('Anforderung Antragsteller'!AG46=\"muss nicht erneut eingereicht werden\",'Anforderung Antragsteller'!AG46=\"nicht erforderlich\"),\"-\",$C45)","v":"nein"}]
[null,"Gewicht in kg","nein",{"$f":"IF(OR('Anforderung Antragsteller'!H47=\"muss nicht erneut eingereicht werden\",'Anforderung Antragsteller'!H47=\"nicht erforderlich\"),\"-\",$C46)","v":"nein"},{"$f":"IF(OR('Anforderung Antragsteller'!M47=\"muss nicht erneut eingereicht werden\",'Anforderung Antragsteller'!M47=\"nicht erforderlich\"),\"-\",$C46)","v":"-"},{"$f":"IF(OR('Anforderung Antragsteller'!R47=\"muss nicht erneut eingereicht werden\",'Anforderung Antragsteller'!R47=\"nicht erforderlich\"),\"-\",$C46)","v":"nein"},{"$f":"IF(OR('Anforderung Antragsteller'!W47=\"muss nicht erneut eingereicht werden\",'Anforderung Antragsteller'!W47=\"nicht erforderlich\"),\"-\",$C46)","v":"nein"},{"$f":"IF(OR('Anforderung Antragsteller'!AB47=\"muss nicht erneut eingereicht werden\",'Anforderung Antragsteller'!AB47=\"nicht erforderlich\"),\"-\",$C46)","v":"nein"},{"$f":"IF(OR('Anforderung Antragsteller'!AG47=\"muss nicht erneut eingereicht werden\",'Anforderung Antragsteller'!AG47=\"nicht erforderlich\"),\"-\",$C46)","v":"nein"}]
[null,"Schallleistung nach EN 12102 / Energy-Label in dB(A)","ja",{"$f":"IF(OR('Anforderung Antragsteller'!H48=\"muss nicht erneut eingereicht werden\",'Anforderung Antragsteller'!H48=\"nicht erforderlich\"),\"-\",$C47)","v":"ja"},{"$f":"IF(OR('Anforderung Antragsteller'!M48=\"muss nicht erneut eingereicht werden\",'Anforderung Antragsteller'!M48=\"nicht erforderlich\"),\"-\",$C47)","v":"-"},{"$f":"IF(OR('Anforderung Antragsteller'!R48=\"muss nicht erneut eingereicht werden\",'Anforderung Antragsteller'!R48=\"nicht erforderlich\"),\"-\",$C47)","v":"ja"},{"$f":"IF(OR('Anforderung Antragsteller'!W48=\"muss nicht erneut eingereicht werden\",'Anforderung Antragsteller'!W48=\"nicht erforderlich\"),\"-\",$C47)","v":"ja"},{"$f":"IF(OR('Anforderung Antragsteller'!AB48=\"muss nicht erneut eingereicht werden\",'Anforderung Antragsteller'!AB48=\"nicht erforderlich\"),\"-\",$C47)","v":"ja"},{"$f":"IF(OR('Anforderung Antragsteller'!AG48=\"muss nicht erneut eingereicht werden\",'Anforderung Antragsteller'!AG48=\"nicht erforderlich\"),\"-\",$C47)","v":"ja"}]
[null,"Schallleistung im EN 14825 Prüfpunkt B (A2) in dB(A)","ja",{"$f":"IF(OR('Anforderung Antragsteller'!H49=\"muss nicht erneut eingereicht werden\",'Anforderung Antragsteller'!H49=\"nicht erforderlich\"),\"-\",$C48)","v":"ja"},{"$f":"IF(OR('Anforderung Antragsteller'!M49=\"muss nicht erneut eingereicht werden\",'Anforderung Antragsteller'!M49=\"nicht erforderlich\"),\"-\",$C48)","v":"-"},{"$f":"IF(OR('Anforderung Antragsteller'!R49=\"muss nicht erneut eingereicht werden\",'Anforderung Antragsteller'!R49=\"nicht erforderlich\"),\"-\",$C48)","v":"ja"},{"$f":"IF(OR('Anforderung Antragsteller'!W49=\"muss nicht erneut eingereicht werden\",'Anforderung Antragsteller'!W49=\"nicht erforderlich\"),\"-\",$C48)","v":"ja"},{"$f":"IF(OR('Anforderung Antragsteller'!AB49=\"muss nicht erneut eingereicht werden\",'Anforderung Antragsteller'!AB49=\"nicht erforderlich\"),\"-\",$C48)","v":"ja"},{"$f":"IF(OR('Anforderung Antragsteller'!AG49=\"muss nicht erneut eingereicht werden\",'Anforderung Antragsteller'!AG49=\"nicht erforderlich\"),\"-\",$C48)","v":"ja"}]
[null,"maximaler Schallleistungspegel in dB(A) und dazugehörige Heizleistung in kW","nein",{"$f":"IF(OR('Anforderung Antragsteller'!H50=\"muss nicht erneut eingereicht werden\",'Anforderung Antragsteller'!H50=\"nicht erforderlich\"),\"-\",$C49)","v":"nein"},{"$f":"IF(OR('Anforderung Antragsteller'!M50=\"muss nicht erneut eingereicht werden\",'Anforderung Antragsteller'!M50=\"nicht erforderlich\"),\"-\",$C49)","v":"-"},{"$f":"IF(OR('Anforderung Antragsteller'!R50=\"muss nicht erneut eingereicht werden\",'Anforderung Antragsteller'!R50=\"nicht erforderlich\"),\"-\",$C49)","v":"nein"},{"$f":"IF(OR('Anforderung Antragsteller'!W50=\"muss nicht erneut eingereicht werden\",'Anforderung Antragsteller'!W50=\"nicht erforderlich\"),\"-\",$C49)","v":"nein"},{"$f":"IF(OR('Anforderung Antragsteller'!AB50=\"muss nicht erneut eingereicht werden\",'Anforderung Antragsteller'!AB50=\"nicht erforderlich\"),\"-\",$C49)","v":"nein"},{"$f":"IF(OR('Anforderung Antragsteller'!AG50=\"muss nicht erneut eingereicht werden\",'Anforderung Antragsteller'!AG50=\"nicht erforderlich\"),\"-\",$C49)","v":"nein"}]
[null,"maximaler Schallleistungspegel \"Silent-Mode\" in dB(A) und dazugehörige Heizleistung in kW","nein",{"$f":"IF(OR('Anforderung Antragsteller'!H51=\"muss nicht erneut eingereicht werden\",'Anforderung Antragsteller'!H51=\"nicht erforderlich\"),\"-\",$C50)","v":"nein"},{"$f":"IF(OR('Anforderung Antragsteller'!M51=\"muss nicht erneut eingereicht werden\",'Anforderung Antragsteller'!M51=\"nicht erforderlich\"),\"-\",$C50)","v":"-"},{"$f":"IF(OR('Anforderung Antragsteller'!R51=\"muss nicht erneut eingereicht werden\",'Anforderung Antragsteller'!R51=\"nicht erforderlich\"),\"-\",$C50)","v":"nein"},{"$f":"IF(OR('Anforderung Antragsteller'!W51=\"muss nicht erneut eingereicht werden\",'Anforderung Antragsteller'!W51=\"nicht erforderlich\"),\"-\",$C50)","v":"nein"},{"$f":"IF(OR('Anforderung Antragsteller'!AB51=\"muss nicht erneut eingereicht werden\",'Anforderung Antragsteller'!AB51=\"nicht erforderlich\"),\"-\",$C50)","v":"nein"},{"$f":"IF(OR('Anforderung Antragsteller'!AG51=\"muss nicht erneut eingereicht werden\",'Anforderung Antragsteller'!AG51=\"nicht erforderlich\"),\"-\",$C50)","v":"nein"}]

{"sheet":"ALT 1.Prüfung","index":7,"n_rows":49,"n_cols":9,"rows_kept":49,"hidden":true}
["Liste für 1.Prüfung"]
[]
[null,null,{"$f":"'Anforderung Antragsteller'!C3","v":"Erstantrag"},{"$f":"'Anforderung Antragsteller'!H3","v":"Übertragung von anderem Land oder anderem Unternehmen"},{"$f":"'Anforderung Antragsteller'!M3","v":"1. und 2. Verlängerung  (Gültigkeit max. 9 Jahre)"},{"$f":"'Anforderung Antragsteller'!R3","v":"ab 3. Verlängerung (Gültigkeit über 9 Jahre)"},{"$f":"'Anforderung Antragsteller'!W3","v":"Erweiterung von eigenem Gütesiegel"},{"$f":"'Anforderung Antragsteller'!AB3","v":"Änderung der Produktbezeichnungen"},{"$f":"'Anforderung Antragsteller'!AG3","v":"Technische Änderungen am Produkt"}]
[1,"Grundlegendes"]
[null,"akkreditierte Prüfberichte nach EN 14511-1 bis 4 und EN 14825, bzw. EN 16147 und EN 12102-1 \nAnzahl hängt vom Umfang der Modelreihe ab","-",{"$f":"IF(OR('Anforderung Antragsteller'!H6=\"muss nicht erneut eingereicht werden\",'Anforderung Antragsteller'!H6=\"nicht erforderlich\"),\"-\",$C5)","v":"-"},{"$f":"IF(OR('Anforderung Antragsteller'!M6=\"muss nicht erneut eingereicht werden\",'Anforderung Antragsteller'!M6=\"nicht erforderlich\"),\"-\",$C5)","v":"-"},{"$f":"IF(OR('Anforderung Antragsteller'!R6=\"muss nicht erneut eingereicht werden\",'Anforderung Antragsteller'!R6=\"nicht erforderlich\"),\"-\",$C5)","v":"-"},{"$f":"IF(OR('Anforderung Antragsteller'!W6=\"muss nicht erneut eingereicht werden\",'Anforderung Antragsteller'!W6=\"nicht erforderlich\"),\"-\",$C5)","v":"-"},{"$f":"IF(OR('Anforderung Antragsteller'!AB6=\"muss nicht erneut eingereicht werden\",'Anforderung Antragsteller'!AB6=\"nicht erforderlich\"),\"-\",$C5)","v":"-"},{"$f":"IF(OR('Anforderung Antragsteller'!AG6=\"muss nicht erneut eingereicht werden\",'Anforderung Antragsteller'!AG6=\"nicht erforderlich\"),\"-\",$C5)","v":"-"}]
[null,"- Unterschriebener akkreditierter Leistungs-Prüfbericht UND","ja",{"$f":"IF(OR('Anforderung Antragsteller'!H7=\"muss nicht erneut eingereicht werden\",'Anforderung Antragsteller'!H7=\"nicht erforderlich\"),\"-\",$C6)","v":"ja"},{"$f":"IF(OR('Anforderung Antragsteller'!M7=\"muss nicht erneut eingereicht werden\",'Anforderung Antragsteller'!M7=\"nicht erforderlich\"),\"nein\",$C6)","v":"nein"},{"$f":"IF(OR('Anforderung Antragsteller'!R7=\"muss nicht erneut eingereicht werden\",'Anforderung Antragsteller'!R7=\"nicht erforderlich\"),\"-\",$C6)","v":"ja"},"nein",{"$f":"IF(OR('Anforderung Antragsteller'!AB7=\"muss nicht erneut eingereicht werden\",'Anforderung Antragsteller'!AB7=\"nicht erforderlich\"),\"nein\",$C6)","v":"nein"},"Prüfung KAI"]
[null,"- Unterschriebener akkreditierter Schall-Prüfbericht UND","ja",{"$f":"IF(OR('Anforderung Antragsteller'!H8=\"muss nicht erneut eingereicht werden\",'Anforderung Antragsteller'!H8=\"nicht erforderlich\"),\"-\",$C7)","v":"ja"},{"$f":"IF(OR('Anforderung Antragsteller'!M8=\"muss nicht erneut eingereicht werden\",'Anforderung Antragsteller'!M8=\"nicht erforderlich\"),\"nein\",$C7)","v":"nein"},{"$f":"IF(OR('Anforderung Antragsteller'!R8=\"muss nicht erneut eingereicht werden\",'Anforderung Antragsteller'!R8=\"nicht erforderlich\"),\"-\",$C7)","v":"ja"},"nein",{"$f":"IF(OR('Anforderung Antragsteller'!AB8=\"muss nicht erneut eingereicht werden\",'Anforderung Antragsteller'!AB8=\"nicht erforderlich\"),\"nein\",$C7)","v":"nein"},{"$f":"$I$6","v":"Prüfung KAI"}]
[null,"- Wenn auf Basis einer HP-Keymark Zertifizierung eingereicht wurde:   gültige HP-Keymarkzertifizierung jedes einzelnes Produktes","nein",{"$f":"IF(OR('Anforderung Antragsteller'!#REF!=\"muss nicht erneut eingereicht werden\",'Anforderung Antragsteller'!#REF!=\"nicht erforderlich\"),\"-\",$C8)","v":{"$error":"#REF!"}},{"$f":"IF(OR('Anforderung Antragsteller'!#REF!=\"muss nicht erneut eingereicht werden\",'Anforderung Antragsteller'!#REF!=\"nicht erforderlich\"),\"nein\",$C8)","v":{"$error":"#REF!"}},{"$f":"IF(OR('Anforderung Antragsteller'!#REF!=\"muss nicht erneut eingereicht werden\",'Anforderung Antragsteller'!#REF!=\"nicht erforderlich\"),\"nein\",$C8)","v":{"$error":"#REF!"}},{"$f":"IF(OR('Anforderung Antragsteller'!#REF!=\"muss nicht erneut eingereicht werden\",'Anforderung Antragsteller'!#REF!=\"nicht erforderlich\"),\"-\",$C8)","v":{"$error":"#REF!"}},{"$f":"IF(OR('Anforderung Antragsteller'!#REF!=\"muss nicht erneut eingereicht werden\",'Anforderung Antragsteller'!#REF!=\"nicht erforderlich\"),\"-\",$C8)","v":{"$error":"#REF!"}},{"$f":"$I$6","v":"Prüfung KAI"}]
[null,"SCOP Anforderungen für Heizungs-Wärmepumpen\n(nicht notwendig bei reinen Brauchwasser-Wärmepumpen)","-",{"$f":"IF(OR('Anforderung Antragsteller'!H9=\"muss nicht erneut eingereicht werden\",'Anforderung Antragsteller'!H9=\"nicht erforderlich\"),\"-\",$C9)","v":"-"},{"$f":"IF(OR('Anforderung Antragsteller'!M9=\"muss nicht erneut eingereicht werden\",'Anforderung Antragsteller'!M9=\"nicht erforderlich\"),\"-\",$C9)","v":"-"},{"$f":"IF(OR('Anforderung Antragsteller'!R9=\"muss nicht erneut eingereicht werden\",'Anforderung Antragsteller'!R9=\"nicht erforderlich\"),\"-\",$C9)","v":"-"},{"$f":"IF(OR('Anforderung Antragsteller'!W9=\"muss nicht erneut eingereicht werden\",'Anforderung Antragsteller'!W9=\"nicht erforderlich\"),\"-\",$C9)","v":"-"},{"$f":"IF(OR('Anforderung Antragsteller'!AB9=\"muss nicht erneut eingereicht werden\",'Anforderung Antragsteller'!AB9=\"nicht erforderlich\"),\"-\",$C9)","v":"-"},{"$f":"IF(OR('Anforderung Antragsteller'!AG9=\"muss nicht erneut eingereicht werden\",'Anforderung Antragsteller'!AG9=\"nicht erforderlich\"),\"-\",$C9)","v":"-"}]
[null,"- Niedertemperaturanwendung (35°C) und durchschnittliches Klima:\n       SCOP Min : 4,3 (B/W, W/W, DX/W);\n       SCOP Min : 3,5 (A/W); SCOP Min : 3,4 (A/A);","ja, bei Heizungs-WP","nein","nein",{"$f":"IF(OR('Anforderung Antragsteller'!R10=\"muss nicht erneut eingereicht werden\",'Anforderung Antragsteller'!R10=\"nicht erforderlich\"),\"-\",$C10)","v":"ja, bei Heizungs-WP"},{"$f":"IF(OR('Anforderung Antragsteller'!W10=\"muss nicht erneut eingereicht werden\",'Anforderung Antragsteller'!W10=\"nicht erforderlich\"),\"-\",$C10)","v":"ja, bei Heizungs-WP"},"nein",{"$f":"$I$6","v":"Prüfung KAI"}]
[null,"- Mitteltemperaturanwendung (55°C) und durchschnittliches Klima:\n       SCOP Min : 3,38 (B/W, W/W, DX/W);\n       SCOP Min : 3 (A/W)","ja, bei Heizungs-WP","nein","nein",{"$f":"IF(OR('Anforderung Antragsteller'!R11=\"muss nicht erneut eingereicht werden\",'Anforderung Antragsteller'!R11=\"nicht erforderlich\"),\"-\",$C11)","v":"ja, bei Heizungs-WP"},{"$f":"IF(OR('Anforderung Antragsteller'!W11=\"muss nicht erneut eingereicht werden\",'Anforderung Antragsteller'!W11=\"nicht erforderlich\"),\"-\",$C11)","v":"ja, bei Heizungs-WP"},"nein",{"$f":"$I$6","v":"Prüfung KAI"}]
[null,"Anforderungen für Brauchwasser-Wärmepumpen\n(nur bei Brauchwasser-Wärmepumpen)","-",{"$f":"IF(OR('Anforderung Antragsteller'!H12=\"muss nicht erneut eingereicht werden\",'Anforderung Antragsteller'!H12=\"nicht erforderlich\"),\"-\",$C12)","v":"-"},{"$f":"IF(OR('Anforderung Antragsteller'!M12=\"muss nicht erneut eingereicht werden\",'Anforderung Antragsteller'!M12=\"nicht erforderlich\"),\"-\",$C12)","v":"-"},{"$f":"IF(OR('Anforderung Antragsteller'!R12=\"muss nicht erneut eingereicht werden\",'Anforderung Antragsteller'!R12=\"nicht erforderlich\"),\"-\",$C12)","v":"-"},{"$f":"IF(OR('Anforderung Antragsteller'!W12=\"muss nicht erneut eingereicht werden\",'Anforderung Antragsteller'!W12=\"nicht erforderlich\"),\"-\",$C12)","v":"-"},{"$f":"IF(OR('Anforderung Antragsteller'!AB12=\"muss nicht erneut eingereicht werden\",'Anforderung Antragsteller'!AB12=\"nicht erforderlich\"),\"-\",$C12)","v":"-"},{"$f":"IF(OR('Anforderung Antragsteller'!AG12=\"muss nicht erneut eingereicht werden\",'Anforderung Antragsteller'!AG12=\"nicht erforderlich\"),\"-\",$C12)","v":"-"}]
[null,"- Die Wärmpumpe muss mindestens 52°C Warmwasser erzeugen können","ja, bei Brauchwasser-WP","nein","nein",{"$f":"IF(OR('Anforderung Antragsteller'!R13=\"muss nicht erneut eingereicht werden\",'Anforderung Antragsteller'!R13=\"nicht erforderlich\"),\"-\",$C13)","v":"-"},{"$f":"IF(OR('Anforderung Antragsteller'!W13=\"muss nicht erneut eingereicht werden\",'Anforderung Antragsteller'!W13=\"nicht erforderlich\"),\"-\",$C13)","v":"-"},"nein",{"$f":"$I$6","v":"Prüfung KAI"}]
[null,"- Minmaler \"SCOP_domestic hot water\", bzw. \"COP_domestic hot water\" wird eingehalten\nA7 ≥ 2,8 / A15 ≥ 2,9 / A20 ≥ 3,2 / B0 ≥ 2,8 / W10 ≥ 3,0","ja, bei Brauchwasser-WP","nein","nein",{"$f":"IF(OR('Anforderung Antragsteller'!R14=\"muss nicht erneut eingereicht werden\",'Anforderung Antragsteller'!R14=\"nicht erforderlich\"),\"-\",$C14)","v":"-"},{"$f":"IF(OR('Anforderung Antragsteller'!W14=\"muss nicht erneut eingereicht werden\",'Anforderung Antragsteller'!W14=\"nicht erforderlich\"),\"-\",$C14)","v":"-"},"nein",{"$f":"$I$6","v":"Prüfung KAI"}]
[null,"Unterfertigte Baugleicheitsbescheinigung des Herstellers, falls die Produktbezeichnungen am Prüfbericht/HP Keymark und am EHPA Label nicht gleich sind (siehe Vorlage unter www.waermepumpe-austria.at/dienste/guetesiegel/dokumente-und-links)","nein","ja, wenn sich Produktnamen ändern","nein",{"$f":"IF(OR('Anforderung Antragsteller'!R15=\"muss nicht erneut eingereicht werden\",'Anforderung Antragsteller'!R15=\"nicht erforderlich\"),\"-\",$C15)","v":"nein"},{"$f":"IF(OR('Anforderung Antragsteller'!W15=\"muss nicht erneut eingereicht werden\",'Anforderung Antragsteller'!W15=\"nicht erforderlich\"),\"-\",$C15)","v":"nein"},"ja",{"$f":"$I$6","v":"Prüfung KAI"}]
[null,"Unterfertigte CE-Konformitäts-Erklärung","ja",{"$f":"IF(OR('Anforderung Antragsteller'!H16=\"muss nicht erneut eingereicht werden\",'Anforderung Antragsteller'!H16=\"nicht erforderlich\"),\"-\",\"nein\")","v":"nein"},"nein","nein",{"$f":"IF(OR('Anforderung Antragsteller'!W16=\"muss nicht erneut eingereicht werden\",'Anforderung Antragsteller'!W16=\"nicht erforderlich\"),\"-\",$C16)","v":"ja"},{"$f":"IF(OR('Anforderung Antragsteller'!AB16=\"muss nicht erneut eingereicht werden\",'Anforderung Antragsteller'!AB16=\"nicht erforderlich\"),\"-\",$C16)","v":"ja"},{"$f":"$I$6","v":"Prüfung KAI"}]
[null,"Formelle Zustimmung vom Elterngütesiegel-Halter (siehe Vorlage unter www.waermepumpe-austria.at/dienste/guetesiegel/dokumente-und-links)","nein",{"$f":"IF(OR('Anforderung Antragsteller'!H17=\"muss nicht erneut eingereicht werden\",'Anforderung Antragsteller'!H17=\"nicht erforderlich\"),\"-\",\"ja\")","v":"ja"},"nein","nein","nein","nein",{"$f":"$I$6","v":"Prüfung KAI"}]
[2,"Antrag","-",{"$f":"IF(OR('Anforderung Antragsteller'!H18=\"muss nicht erneut eingereicht werden\",'Anforderung Antragsteller'!H18=\"nicht erforderlich\"),\"-\",$C18)","v":"-"},{"$f":"IF(OR('Anforderung Antragsteller'!M18=\"muss nicht erneut eingereicht werden\",'Anforderung Antragsteller'!M18=\"nicht erforderlich\"),\"-\",$C18)","v":"-"},{"$f":"IF(OR('Anforderung Antragsteller'!R18=\"muss nicht erneut eingereicht werden\",'Anforderung Antragsteller'!R18=\"nicht erforderlich\"),\"-\",$C18)","v":"-"},{"$f":"IF(OR('Anforderung Antragsteller'!W18=\"muss nicht erneut eingereicht werden\",'Anforderung Antragsteller'!W18=\"nicht erforderlich\"),\"-\",$C18)","v":"-"},{"$f":"IF(OR('Anforderung Antragsteller'!AB18=\"muss nicht erneut eingereicht werden\",'Anforderung Antragsteller'!AB18=\"nicht erforderlich\"),\"-\",$C18)","v":"-"},{"$f":"IF(OR('Anforderung Antragsteller'!AG18=\"muss nicht erneut eingereicht werden\",'Anforderung Antragsteller'!AG18=\"nicht erforderlich\"),\"-\",$C18)","v":"-"}]
[null,"Hauptkomponenten (Hersteller, Typenbezeichnung) und technische Werte in der Online-Maske ausfüllen","ja","nein","nein",{"$f":"IF(OR('Anforderung Antragsteller'!R19=\"muss nicht erneut eingereicht werden\",'Anforderung Antragsteller'!R19=\"nicht erforderlich\"),\"-\",$C19)","v":"ja"},{"$f":"IF(OR('Anforderung Antragsteller'!W19=\"muss nicht erneut eingereicht werden\",'Anforderung Antragsteller'!W19=\"nicht erforderlich\"),\"-\",$C19)","v":"ja"},"nein",{"$f":"$I$6","v":"Prüfung KAI"}]
[3,"Kundenservice  (deutschsprachig)","-","-",{"$f":"IF(OR('Anforderung Antragsteller'!M21=\"muss nicht erneut eingereicht werden\",'Anforderung Antragsteller'!M21=\"nicht erforderlich\"),\"-\",$C20)","v":"-"},{"$f":"IF(OR('Anforderung Antragsteller'!R21=\"muss nicht erneut eingereicht werden\",'Anforderung Antragsteller'!R21=\"nicht erforderlich\"),\"-\",$C20)","v":"-"},{"$f":"IF(OR('Anforderung Antragsteller'!W21=\"muss nicht erneut eingereicht werden\",'Anforderung Antragsteller'!W21=\"nicht erforderlich\"),\"-\",$C20)","v":"-"},{"$f":"IF(OR('Anforderung Antragsteller'!AB21=\"muss nicht erneut eingereicht werden\",'Anforderung Antragsteller'!AB21=\"nicht erforderlich\"),\"-\",$C20)","v":"-"},"-"]
[null,"Formular-Vorlage für den Inbetriebnahme- und Wartungs-Techniker","ja","ja","nein","nein","nein","nein",{"$f":"$I$6","v":"Prüfung KAI"}]
[null,"Garantie für mindestens 2 Jahre","ja",{"$f":"IF(OR('Anforderung Antragsteller'!H23=\"muss nicht erneut eingereicht werden\",'Anforderung Antragsteller'!H23=\"nicht erforderlich\"),\"-\",$C22)","v":"ja"},"nein","nein","nein","nein",{"$f":"$I$6","v":"Prüfung KAI"}]
[null,"Ersatzteilgarantie für mindestens 10 Jahre","ja",{"$f":"IF(OR('Anforderung Antragsteller'!H24=\"muss nicht erneut eingereicht werden\",'Anforderung Antragsteller'!H24=\"nicht erforderlich\"),\"-\",$C23)","v":"ja"},"nein","nein","nein","nein",{"$f":"$I$6","v":"Prüfung KAI"}]
[null,"Reaktionszeit des Kundendienstes im Vertriebsgebiet innerhalb von 24\nStunden und Kontaktdaten zum Kundendienst im Vertriebsgebiet   (siehe Vorlage unter www.waermepumpe-austria.at/dienste/guetesiegel/dokumente-und-links)","ja",{"$f":"IF(OR('Anforderung Antragsteller'!H25=\"muss nicht erneut eingereicht werden\",'Anforderung Antragsteller'!H25=\"nicht erforderlich\"),\"-\",$C24)","v":"ja"},"nein","nein","nein","nein",{"$f":"$I$6","v":"Prüfung KAI"}]
[4,"Bedienungsanleitungen  (deutschsprachig)","-",{"$f":"IF(OR('Anforderung Antragsteller'!H26=\"muss nicht erneut eingereicht werden\",'Anforderung Antragsteller'!H26=\"nicht erforderlich\"),\"-\",$C25)","v":"-"},{"$f":"IF(OR('Anforderung Antragsteller'!M26=\"muss nicht erneut eingereicht werden\",'Anforderung Antragsteller'!M26=\"nicht erforderlich\"),\"-\",$C25)","v":"-"},{"$f":"IF(OR('Anforderung Antragsteller'!R26=\"muss nicht erneut eingereicht werden\",'Anforderung Antragsteller'!R26=\"nicht erforderlich\"),\"-\",$C25)","v":"-"},{"$f":"IF(OR('Anforderung Antragsteller'!W26=\"muss nicht erneut eingereicht werden\",'Anforderung Antragsteller'!W26=\"nicht erforderlich\"),\"-\",$C25)","v":"-"},{"$f":"IF(OR('Anforderung Antragsteller'!AB26=\"muss nicht erneut eingereicht werden\",'Anforderung Antragsteller'!AB26=\"nicht erforderlich\"),\"-\",$C25)","v":"-"},"-"]
[null,"Informationen und Sicherheitshinweise für eine ordnungsgemäße\nNutzung","ja","ja, wenn sich Produktnamen ändern","nein","nein",{"$f":"IF(OR('Anforderung Antragsteller'!W27=\"muss nicht erneut eingereicht werden\",'Anforderung Antragsteller'!W27=\"nicht erforderlich\"),\"-\",$C26)","v":"ja"},{"$f":"IF(OR('Anforderung Antragsteller'!AB27=\"muss nicht erneut eingereicht werden\",'Anforderung Antragsteller'!AB27=\"nicht erforderlich\"),\"-\",$C26)","v":"ja"},{"$f":"$I$6","v":"Prüfung KAI"}]
[null,"Anleitung zur Bedienung der Wärmepumpe","ja","ja, wenn sich Produktnamen ändern","nein","nein",{"$f":"IF(OR('Anforderung Antragsteller'!W28=\"muss nicht erneut eingereicht werden\",'Anforderung Antragsteller'!W28=\"nicht erforderlich\"),\"-\",$C27)","v":"ja"},{"$f":"IF(OR('Anforderung Antragsteller'!AB28=\"muss nicht erneut eingereicht werden\",'Anforderung Antragsteller'!AB28=\"nicht erforderlich\"),\"-\",$C27)","v":"ja"},{"$f":"$I$6","v":"Prüfung KAI"}]
[null,"Ersatzteilliste","ja","ja, wenn sich Produktnamen ändern","nein","nein",{"$f":"IF(OR('Anforderung Antragsteller'!W29=\"muss nicht erneut eingereicht werden\",'Anforderung Antragsteller'!W29=\"nicht erforderlich\"),\"-\",$C28)","v":"ja"},{"$f":"IF(OR('Anforderung Antragsteller'!AB29=\"muss nicht erneut eingereicht werden\",'Anforderung Antragsteller'!AB29=\"nicht erforderlich\"),\"-\",$C28)","v":"ja"},{"$f":"$I$6","v":"Prüfung KAI"}]
[5,"Installationsanleitungen  (deutschsprachig)","-",{"$f":"IF(OR('Anforderung Antragsteller'!H30=\"muss nicht erneut eingereicht werden\",'Anforderung Antragsteller'!H30=\"nicht erforderlich\"),\"-\",$C29)","v":"-"},{"$f":"IF(OR('Anforderung Antragsteller'!M30=\"muss nicht erneut eingereicht werden\",'Anforderung Antragsteller'!M30=\"nicht erforderlich\"),\"-\",$C29)","v":"-"},{"$f":"IF(OR('Anforderung Antragsteller'!R30=\"muss nicht erneut eingereicht werden\",'Anforderung Antragsteller'!R30=\"nicht erforderlich\"),\"-\",$C29)","v":"-"},{"$f":"IF(OR('Anforderung Antragsteller'!W30=\"muss nicht erneut eingereicht werden\",'Anforderung Antragsteller'!W30=\"nicht erforderlich\"),\"-\",$C29)","v":"-"},{"$f":"IF(OR('Anforderung Antragsteller'!AB30=\"muss nicht erneut eingereicht werden\",'Anforderung Antragsteller'!AB30=\"nicht erforderlich\"),\"-\",$C29)","v":"-"},"-"]
[null,"Installationsanleitung","ja","ja, wenn sich Produktnamen ändern","nein","nein",{"$f":"IF(OR('Anforderung Antragsteller'!W31=\"muss nicht erneut eingereicht werden\",'Anforderung Antragsteller'!W31=\"nicht erforderlich\"),\"-\",$C30)","v":"ja"},{"$f":"IF(OR('Anforderung Antragsteller'!AB31=\"muss nicht erneut eingereicht werden\",'Anforderung Antragsteller'!AB31=\"nicht erforderlich\"),\"-\",$C30)","v":"ja"},{"$f":"$I$6","v":"Prüfung KAI"}]
[null,"Sicherheitshinweise","ja","ja, wenn sich Produktnamen ändern","nein","nein",{"$f":"IF(OR('Anforderung Antragsteller'!W32=\"muss nicht erneut eingereicht werden\",'Anforderung Antragsteller'!W32=\"nicht erforderlich\"),\"-\",$C31)","v":"ja"},{"$f":"IF(OR('Anforderung Antragsteller'!AB32=\"muss nicht erneut eingereicht werden\",'Anforderung Antragsteller'!AB32=\"nicht erforderlich\"),\"-\",$C31)","v":"ja"},"Prüfung KAI"]
[null,"Inbetriebnahmehinweise","ja","ja, wenn sich Produktnamen ändern","nein","nein",{"$f":"IF(OR('Anforderung Antragsteller'!W33=\"muss nicht erneut eingereicht werden\",'Anforderung Antragsteller'!W33=\"nicht erforderlich\"),\"-\",$C32)","v":"ja"},{"$f":"IF(OR('Anforderung Antragsteller'!AB33=\"muss nicht erneut eingereicht werden\",'Anforderung Antragsteller'!AB33=\"nicht erforderlich\"),\"-\",$C32)","v":"ja"},"Prüfung KAI"]
[null,"Fluidschemata Kältekreis und Wasserkreis","ja","ja, wenn sich Produktnamen ändern","nein","nein",{"$f":"IF(OR('Anforderung Antragsteller'!W34=\"muss nicht erneut eingereicht werden\",'Anforderung Antragsteller'!W34=\"nicht erforderlich\"),\"-\",$C33)","v":"ja"},{"$f":"IF(OR('Anforderung Antragsteller'!AB34=\"muss nicht erneut eingereicht werden\",'Anforderung Antragsteller'!AB34=\"nicht erforderlich\"),\"-\",$C33)","v":"ja"},"Prüfung KAI"]
[null,"Elektroschema zum Anschluss der Wärmepumpe","ja","ja, wenn sich Produktnamen ändern","nein","nein",{"$f":"IF(OR('Anforderung Antragsteller'!W35=\"muss nicht erneut eingereicht werden\",'Anforderung Antragsteller'!W35=\"nicht erforderlich\"),\"-\",$C34)","v":"ja"},{"$f":"IF(OR('Anforderung Antragsteller'!AB35=\"muss nicht erneut eingereicht werden\",'Anforderung Antragsteller'!AB35=\"nicht erforderlich\"),\"-\",$C34)","v":"ja"},"Prüfung KAI"]
[null,"Energy-Label und Energy-Label-Datenblatt nach 811/2013 (Heizungs- und Kombiwärmepumpen), bzw 812/2013 (Warmwasserwärmepumpe)\n(nur bei Geräten mit höchstens 70kW Nennleistung)","ja","ja, wenn sich Produktnamen ändern","nein","nein",{"$f":"IF(OR('Anforderung Antragsteller'!W36=\"muss nicht erneut eingereicht werden\",'Anforderung Antragsteller'!W36=\"nicht erforderlich\"),\"-\",$C35)","v":"ja"},{"$f":"IF(OR('Anforderung Antragsteller'!AB36=\"muss nicht erneut eingereicht werden\",'Anforderung Antragsteller'!AB36=\"nicht erforderlich\"),\"-\",$C35)","v":"ja"},"Prüfung KAI"]
[6,"Technische Daten  (deutschsprachig)","-",{"$f":"IF(OR('Anforderung Antragsteller'!H37=\"muss nicht erneut eingereicht werden\",'Anforderung Antragsteller'!H37=\"nicht erforderlich\"),\"-\",$C36)","v":"-"},{"$f":"IF(OR('Anforderung Antragsteller'!M37=\"muss nicht erneut eingereicht werden\",'Anforderung Antragsteller'!M37=\"nicht erforderlich\"),\"-\",$C36)","v":"-"},{"$f":"IF(OR('Anforderung Antragsteller'!R37=\"muss nicht erneut eingereicht werden\",'Anforderung Antragsteller'!R37=\"nicht erforderlich\"),\"-\",$C36)","v":"-"},{"$f":"IF(OR('Anforderung Antragsteller'!W37=\"muss nicht erneut eingereicht werden\",'Anforderung Antragsteller'!W37=\"nicht erforderlich\"),\"-\",$C36)","v":"-"},{"$f":"IF(OR('Anforderung Antragsteller'!AB37=\"muss nicht erneut eingereicht werden\",'Anforderung Antragsteller'!AB37=\"nicht erforderlich\"),\"-\",$C36)","v":"-"},"-"]
[null,"Leistungsdaten (Wärmeleistung, elektrische Leistungsaufnahme und COP über den gesamten Leistungsbereich)","ja","ja, wenn sich Produktnamen ändern","nein",{"$f":"IF(OR('Anforderung Antragsteller'!R38=\"muss nicht erneut eingereicht werden\",'Anforderung Antragsteller'!R38=\"nicht erforderlich\"),\"-\",\"ja\")","v":"ja"},{"$f":"IF(OR('Anforderung Antragsteller'!W38=\"muss nicht erneut eingereicht werden\",'Anforderung Antragsteller'!W38=\"nicht erforderlich\"),\"-\",$C37)","v":"ja"},{"$f":"IF(OR('Anforderung Antragsteller'!AB38=\"muss nicht erneut eingereicht werden\",'Anforderung Antragsteller'!AB38=\"nicht erforderlich\"),\"-\",$C37)","v":"ja"},{"$f":"$I$6","v":"Prüfung KAI"}]
[null,"Leistungsdaten nach EN 14511 bei A7/W35 (Wärmeleistung, elektrische Leistungsaufnahme und COP)","ja","ja","nein","nein","ja","ja","Prüfung KAI"]
[null,"Maßzeichnung","ja","ja, wenn sich Produktnamen ändern","nein","nein",{"$f":"IF(OR('Anforderung Antragsteller'!W40=\"muss nicht erneut eingereicht werden\",'Anforderung Antragsteller'!W40=\"nicht erforderlich\"),\"-\",$C39)","v":"ja"},{"$f":"IF(OR('Anforderung Antragsteller'!AB40=\"muss nicht erneut eingereicht werden\",'Anforderung Antragsteller'!AB40=\"nicht erforderlich\"),\"-\",$C39)","v":"ja"},"Prüfung KAI"]
[null,"Mindestabstände","ja","ja, wenn sich Produktnamen ändern","nein","nein",{"$f":"IF(OR('Anforderung Antragsteller'!W41=\"muss nicht erneut eingereicht werden\",'Anforderung Antragsteller'!W41=\"nicht erforderlich\"),\"-\",$C40)","v":"ja"},{"$f":"IF(OR('Anforderung Antragsteller'!AB41=\"muss nicht erneut eingereicht werden\",'Anforderung Antragsteller'!AB41=\"nicht erforderlich\"),\"-\",$C40)","v":"ja"},"Prüfung KAI"]
[null,"Kältemittel: Art und Füllmenge","ja","ja, wenn sich Produktnamen ändern","nein","nein",{"$f":"IF(OR('Anforderung Antragsteller'!W42=\"muss nicht erneut eingereicht werden\",'Anforderung Antragsteller'!W42=\"nicht erforderlich\"),\"-\",$C41)","v":"ja"},{"$f":"IF(OR('Anforderung Antragsteller'!AB42=\"muss nicht erneut eingereicht werden\",'Anforderung Antragsteller'!AB42=\"nicht erforderlich\"),\"-\",$C41)","v":"ja"},"Prüfung KAI"]
[null,"Anlaufstrom / maximaler Betriebsstrom in A","ja","ja, wenn sich Produktnamen ändern","nein","nein",{"$f":"IF(OR('Anforderung Antragsteller'!W43=\"muss nicht erneut eingereicht werden\",'Anforderung Antragsteller'!W43=\"nicht erforderlich\"),\"-\",$C42)","v":"ja"},{"$f":"IF(OR('Anforderung Antragsteller'!AB43=\"muss nicht erneut eingereicht werden\",'Anforderung Antragsteller'!AB43=\"nicht erforderlich\"),\"-\",$C42)","v":"ja"},"Prüfung KAI"]
[null,"Einsatzbereich / Einsatzgrenzen","ja","ja, wenn sich Produktnamen ändern","nein","nein",{"$f":"IF(OR('Anforderung Antragsteller'!W44=\"muss nicht erneut eingereicht werden\",'Anforderung Antragsteller'!W44=\"nicht erforderlich\"),\"-\",$C43)","v":"ja"},{"$f":"IF(OR('Anforderung Antragsteller'!AB44=\"muss nicht erneut eingereicht werden\",'Anforderung Antragsteller'!AB44=\"nicht erforderlich\"),\"-\",$C43)","v":"ja"},"Prüfung KAI"]
[null,"Volumenstrom Quelle- und Senkenseite in m³/h, l/min","ja","ja, wenn sich Produktnamen ändern","nein","nein",{"$f":"IF(OR('Anforderung Antragsteller'!W45=\"muss nicht erneut eingereicht werden\",'Anforderung Antragsteller'!W45=\"nicht erforderlich\"),\"-\",$C44)","v":"ja"},{"$f":"IF(OR('Anforderung Antragsteller'!AB45=\"muss nicht erneut eingereicht werden\",'Anforderung Antragsteller'!AB45=\"nicht erforderlich\"),\"-\",$C44)","v":"ja"},"Prüfung KAI"]
[null,"Volumen des WW-Speichers in Liter","nein","ja, wenn sich Produktnamen ändern","nein","nein",{"$f":"IF(OR('Anforderung Antragsteller'!W46=\"muss nicht erneut eingereicht werden\",'Anforderung Antragsteller'!W46=\"nicht erforderlich\"),\"-\",$C45)","v":"-"},{"$f":"IF(OR('Anforderung Antragsteller'!AB46=\"muss nicht erneut eingereicht werden\",'Anforderung Antragsteller'!AB46=\"nicht erforderlich\"),\"-\",$C45)","v":"-"},"Prüfung KAI"]
[null,"Gewicht in kg","ja","ja, wenn sich Produktnamen ändern","nein","nein",{"$f":"IF(OR('Anforderung Antragsteller'!W47=\"muss nicht erneut eingereicht werden\",'Anforderung Antragsteller'!W47=\"nicht erforderlich\"),\"-\",$C46)","v":"ja"},{"$f":"IF(OR('Anforderung Antragsteller'!AB47=\"muss nicht erneut eingereicht werden\",'Anforderung Antragsteller'!AB47=\"nicht erforderlich\"),\"-\",$C46)","v":"ja"},"Prüfung KAI"]
[null,"Schallleistung (ErP-Anforderungen) in[dB(A)","ja","ja, wenn sich Produktnamen ändern","nein",{"$f":"IF(OR('Anforderung Antragsteller'!R48=\"muss nicht erneut eingereicht werden\",'Anforderung Antragsteller'!R48=\"nicht erforderlich\"),\"-\",$C47)","v":"ja"},{"$f":"IF(OR('Anforderung Antragsteller'!W48=\"muss nicht erneut eingereicht werden\",'Anforderung Antragsteller'!W48=\"nicht erforderlich\"),\"-\",$C47)","v":"ja"},{"$f":"IF(OR('Anforderung Antragsteller'!AB48=\"muss nicht erneut eingereicht werden\",'Anforderung Antragsteller'!AB48=\"nicht erforderlich\"),\"-\",$C47)","v":"ja"},"Prüfung KAI"]
[null,"maximaler Schallleistungspegel in dB(A) und dazugehörige Heizleistung in kW","ja","ja, wenn sich Produktnamen ändern","nein",{"$f":"IF(OR('Anforderung Antragsteller'!R50=\"muss nicht erneut eingereicht werden\",'Anforderung Antragsteller'!R50=\"nicht erforderlich\"),\"-\",$C48)","v":"ja"},{"$f":"IF(OR('Anforderung Antragsteller'!W50=\"muss nicht erneut eingereicht werden\",'Anforderung Antragsteller'!W50=\"nicht erforderlich\"),\"-\",$C48)","v":"ja"},{"$f":"IF(OR('Anforderung Antragsteller'!AB50=\"muss nicht erneut eingereicht werden\",'Anforderung Antragsteller'!AB50=\"nicht erforderlich\"),\"-\",$C48)","v":"ja"},"Prüfung KAI"]
[null,"maximaler Schallleistungspegel \"Silent-Mode\" in dB(A) und dazugehörige Heizleistung in kW","ja","ja, wenn sich Produktnamen ändern","nein",{"$f":"IF(OR('Anforderung Antragsteller'!R51=\"muss nicht erneut eingereicht werden\",'Anforderung Antragsteller'!R51=\"nicht erforderlich\"),\"-\",$C49)","v":"ja"},{"$f":"IF(OR('Anforderung Antragsteller'!W51=\"muss nicht erneut eingereicht werden\",'Anforderung Antragsteller'!W51=\"nicht erforderlich\"),\"-\",$C49)","v":"ja"},{"$f":"IF(OR('Anforderung Antragsteller'!AB51=\"muss nicht erneut eingereicht werden\",'Anforderung Antragsteller'!AB51=\"nicht erforderlich\"),\"-\",$C49)","v":"ja"},"Prüfung KAI"]